Workbook

Sheet Objetivos PMD
A1: Objetivos del Plan Municipal de Desarrollo
B3: Entidad Pública: Municipio de Jilotlán de los Dolores, Jalisco
A4: No. | B4: DESCRIPCIÓN
A5: 1 | B5: MEJORAR LA ADMINISTRACIÓN Y LA CALIDAD EN LA PRESTACION DE SERVICIOS PUBLICOS MUNICIPALES
A6: 2 | B6: APLICAR PROGRAMAS Y ACCIONES QUE IMPACTEN EN LA CALIDAD DE VIDA DE LOS HABITANTES
A7: 3 | B7: INCREMENTAR LA INFRAESTRUCTURA Y EL DESARROLLO ECONOMICO Y SOCIAL DE LA POBLACION
A8: 4 | B8: MEJORAR LA SEGURIDAD PUBLICA Y LA PROTECCION CIVIL PARA MANTENER UNA SOCIEDAD EN ARMONIA
A9: 5 | B9: MEJORAR EL NIVEL DE INGRESOS DE LA POBLACION
A10: 6 | B10: REPARAR, MANTENER Y CREAR VIAS DE COMUNICACIÓN PARA EL MUNICIPIO
A11: 7
A12: 8
A13: 9
A14: 10

Sheet Compromisos PMD
B1: Compromisos del Plan Municipal de Desarrollo y asuntos críticos de atención
C3: ='Objetivos PMD'!$B$3 -> Entidad Pública: Municipio de Jilotlán de los Dolores, Jalisco
B4: No. | C4: DESCRIPCIÓN
B5: 1 | C5: SERVICIOS PUBLICOS DE CALIDAD Y TRANSPARENCIA AL ALCANCE DE LA POBLACION
B6: 2 | C6: ADMINISTRACION EFICIENTE Y TRANSPARENTE DE LOS RECURSOS PUBLICOS MUNICIPALES, CON UN COMPROMISO DE VERACIDAD
B7: 3 | C7: INFRAESTRUCTURA BASICA QUE GARANTICE UN MEJOR CRECIMIENTO ECONOMICO Y SOCIAL
B8: 4 | C8: CAPACITACION CONSTANTE DE LOS AGENTES DE SEGURIDAD PUBLICA
B9: 5 | C9: GESTIONAR NUEVAS OPORTUNIDADES DE EMPLEO, ECONOMICAS Y DE SALUD
B10: 6 | C10: MANTENIMIENTO CONSTANTE Y EVALUACION PARA LA APERTURA DE NUEVAS VIAS DE COMUNICACIÓN
B11: 7
B12: 8
B13: 9
B14: 10
B15: 11

Sheet INDICADORES
B1: INDICADORES DE DESEMPEÑO
B3: ='Objetivos PMD'!B3 -> Entidad Pública: Municipio de Jilotlán de los Dolores, Jalisco
B5: Dimensión a medir | I5: Nombre del indicador y definición | U5: Método de cálculo | AF5: Sentido del indicador | AM5: Frecuencia de medición | AT5: Unidad de medida | AZ5: Línea base | BL5: Metas | CD5: Semaforización
AZ6: Valor | BH6: Año | BL6: del Ciclo | BU6: del Año 2015 | CD6: Verde | CM6: Amarillo | CV6: Rojo
B7: Eficacia
B9: Eficiencia

Sheet PROGRAMACIÓN
A1: PROGRAMACIÓN
A3: ='Objetivos PMD'!B3 -> Entidad Pública: Municipio de Jilotlán de los Dolores, Jalisco
A5: Programa presupuestario: | AM5: Desagregación programa:
A8: Sub-programa (s)
A9: Resúmen narrativo: | AM9: Objetivo:
AM13: Medios.
A17: Indicador y definición: | BK17: Sentido del indicador:
A20: Método de cálculo: | AX20: Unidad de medida: | BK20: Frecuencia de medición:
A24: Unidad(es) ejecutora (s) del Gasto | AH24: PRESUPUESTO ESTIMADO
A25: 1 | B25: 0008 TESORERIA | AH25: Servicios personales | BP25: ='S.H. EGRESOS'!F6 -> $14,472,924.00
A26: 2 | B26: 0012 DIRECCION DE DESARROLLO Y HUMANO | AH26: Materiales y suministros | BP26: ='S.H. EGRESOS'!F14 -> $11,056,090.00
A27: 3 | B27: 0013 DIRECCION GENERAL DE OBRAS PUBLICAS | AH27: Servicios generales | BP27: ='S.H. EGRESOS'!F24 -> $5,881,907.00
A28: 4 | B28: 0014 DIRECCION GENERAL DE ECOLOGIA Y FOMENTO AGROPECUARIO | AH28: Transferencias, asignaciones, subsidios y otras ayudas | BP28: ='S.H. EGRESOS'!F34 -> $3,158,532.00
A29: 5 | B29: 0015 DIRECION GENERAL DE SERVICIOS PUBLICOS | AH29: Bienes muebles, inmuebles e intangibles | BP29: ='S.H. EGRESOS'!F44 -> $913,002.00
A30: 6 | B30: 0016 DIRECCION GENERAL DE SEGURIDAD PUBLICA | AH30: Inversión pública | BP30: ='S.H. EGRESOS'!F54 -> $8,781,985.00
A31: 7 | AH31: Inversiones financieras y otras provisiones | BP31: ='S.H. EGRESOS'!F58 -> 0
A32: 8 | AH32: Deuda pública | BP32: ='S.H. EGRESOS'!F67 -> $1,632,816.00
A33: 9 | AH33: Importe total presupuestado | BP33: =SUM(BP25:CC32) -> $45,897,256
A34: 10

Sheet S.H-INGRESOS
A1: Informe de Situación Hacendaria Ingresos - 2016
A2: ='Objetivos PMD'!$B$3 -> Entidad Pública: Municipio de Jilotlán de los Dolores, Jalisco
A3: CONCEPTOS | E3: EJERCICIO 2015 | F3: ESTIMACIÓN 2016 | G3: VARIACIÓN 2015 - 2016
A5: I N G R E S O S
A6: 1 | B6: IMPUESTOS | E6: =SUM(E7:E14) -> $461,300 | F6: =SUM(F7:F14) -> $470,526 | G6: =F6/E6-1 -> 2%
A7: 11 | B7: Impuesto Sobre los Ingresos | E7: 0 | F7: ='ESTIM.INGRESOS BASE MENSUAL'!C6 -> 0 | G7: =F7/E7-1 -> 
A8: 12 | B8: Impuestos Sobre Patrimonio | E8: $425,200 | F8: ='ESTIM.INGRESOS BASE MENSUAL'!$C$15 -> $433,704 | G8: =F8/E8-1 -> 2%
A9: 13 | B9: Impuestos Sobre la Producción, el Consumo y las Transacciones | E9: 0 | F9: ='ESTIM.INGRESOS BASE MENSUAL'!$C$26 -> 0
A10: 14 | B10: Impuestos al Comercio Exterior | E10: 0 | F10: ='ESTIM.INGRESOS BASE MENSUAL'!$C$27 -> 0
A11: 15 | B11: Impuestos Sobre Nóminas y Asimilables | E11: 0 | F11: ='ESTIM.INGRESOS BASE MENSUAL'!$C$28 -> 0
A12: 16 | B12: Impuestos Ecológicos | E12: 0 | F12: ='ESTIM.INGRESOS BASE MENSUAL'!$C$29 -> 0
A13: 17 | B13: Accesorios | E13: $36,100 | F13: ='ESTIM.INGRESOS BASE MENSUAL'!$C$30 -> $36,822 | G13: 2%
A14: 18 | B14: Otros Impuestos | E14: 0 | F14: ='ESTIM.INGRESOS BASE MENSUAL'!$C$43 -> 0
A15: 2 | B15: CUOTAS Y APORTACIONES DE SEGURIDAD SOCIAL | E15: 0 | F15: ='ESTIM.INGRESOS BASE MENSUAL'!C47 -> 0
A16: 3 | B16: CONTRIBUCIONES DE MEJORAS | E16: =SUM(E17) -> 0 | F16: ='ESTIM.INGRESOS BASE MENSUAL'!C53 -> 0
A17: 31 | B17: Contribuciones de Mejoras por Obras Públicas | E17: 0 | F17: ='ESTIM.INGRESOS BASE MENSUAL'!C54 -> 0
A18: 4 | B18: DERECHOS. | E18: =SUM(E19:E23) -> $1,034,630 | F18: =SUM(F19:F23) -> $1,055,323 | G18: 2%
A19: 41 | B19: Dererechos por el Uso, Goce, Aprovechamiento o Explotación de Bienes de dominio público | E19: $9,500 | F19: ='ESTIM.INGRESOS BASE MENSUAL'!C58 -> $9,690 | G19: 2%
A20: 42 | B20: Derecho a los hidrocarburos | E20: 0 | F20: ='ESTIM.INGRESOS BASE MENSUAL'!$C$78 -> 0
A21: 43 | B21: Derechos por prestación de servicios | E21: $1,010,730 | F21: ='ESTIM.INGRESOS BASE MENSUAL'!$C$79 -> $1,030,945 | G21: 2%
A22: 44 | B22: Otros derechos | E22: $2,400 | F22: ='ESTIM.INGRESOS BASE MENSUAL'!$C$155 -> $2,448 | G22: =F22/E22-1 -> 2%
A23: 45 | B23: Accesorios | E23: $12,000 | F23: ='ESTIM.INGRESOS BASE MENSUAL'!$C$162 -> $12,240 | G23: 2%
A24: 5 | B24: PRODUCTOS | E24: =SUM(E25:E27) -> $10,800 | F24: =SUM(F25:F27) -> $11,016 | G24: 2%
A25: 51 | B25: Productos de tipo corriente | E25: $10,800 | F25: ='ESTIM.INGRESOS BASE MENSUAL'!C176 -> $11,016 | G25: 2%
A26: 52 | B26: Productos de capital | E26: 0 | F26: ='ESTIM.INGRESOS BASE MENSUAL'!$C$198 -> 0
A27: 53 | B27: Accesorios | E27: 0 | F27: ='ESTIM.INGRESOS BASE MENSUAL'!$C$201 -> 0
A28: 6 | B28: APROVECHAMIENTOS | E28: =SUM(E29:E32) -> $2,000 | F28: =SUM(F29:F32) -> $2,040 | G28: 2%
A29: 61 | B29: Aprovechamientos de tipo corriente | E29: $2,000 | F29: ='ESTIM.INGRESOS BASE MENSUAL'!C205 -> $2,040 | G29: 2%
A30: 62 | B30: Aprovechamientos de capital | E30: 0 | F30: ='ESTIM.INGRESOS BASE MENSUAL'!$C$220 -> 0
A31: 63 | B31: Otros aprovechamientos | F31: ='ESTIM.INGRESOS BASE MENSUAL'!$C$221 -> 0
A32: 64 | B32: Accesorios | F32: ='ESTIM.INGRESOS BASE MENSUAL'!$C$224 -> 0
A33: 7 | B33: INGRESOS POR VENTA DE BIENES Y SERVICIOS | E33: =SUM(E34:E37) -> 0 | F33: =SUM(F34:F37) -> 0
A34: 71 | B34: Ingreso por ventas de mercancías | F34: ='ESTIM.INGRESOS BASE MENSUAL'!C228 -> 0
A35: 72 | B35: Ingresos por ventas de bienes y servicios producidos en establecimientos del Gobierno | F35: ='ESTIM.INGRESOS BASE MENSUAL'!$C$229 -> 0
A36: 73 | B36: Ingresos por ventas y servicios de organismos descentralizados | F36: ='ESTIM.INGRESOS BASE MENSUAL'!$C$231 -> 0
A37: 74 | B37: Ingresos de operación de entidades paraestatales empresariales | F37: ='ESTIM.INGRESOS BASE MENSUAL'!$C$233 -> 0
A38: 8 | B38: PARTICIPACIONES Y APORTACIONES | E38: =SUM(E39:E41) -> $41,724,891 | F38: =SUM(F39:F41) -> $44,358,352 | G38: 6%
A39: 81 | B39: Participaciones | E39: $32,544,807 | F39: ='ESTIM.INGRESOS BASE MENSUAL'!C239 -> $33,183,982 | G39: 2%
A40: 82 | B40: Aportaciones | E40: $9,180,084 | F40: ='ESTIM.INGRESOS BASE MENSUAL'!$C$243 -> $11,174,370 | G40: 22%
A41: 83 | B41: Convenios | E41: 0 | F41: ='ESTIM.INGRESOS BASE MENSUAL'!$C$249 -> 0
A42: 9 | B42: TRANSF., ASIGNACIONES, SUBSIDIOS Y OTRAS AYUDAS | E42: =SUM(E43:E48) -> 0 | F42: =SUM(F43:F48) -> 0
A43: 91 | B43: Transferencias internas y asignaciones al Sector Público | E43: 0 | F43: ='ESTIM.INGRESOS BASE MENSUAL'!C255 -> 0
A44: 92 | B44: Transferencias al resto del sector Público | E44: 0 | F44: ='ESTIM.INGRESOS BASE MENSUAL'!$C$258 -> 0
A45: 93 | B45: Subsidios y suvbenciones | E45: 0 | F45: ='ESTIM.INGRESOS BASE MENSUAL'!$C$259 -> 0
A46: 94 | B46: Ayudas sociales | E46: 0 | F46: ='ESTIM.INGRESOS BASE MENSUAL'!$C$264 -> 0
A47: 95 | B47: Pensiones y jubilaciones | E47: 0 | F47: ='ESTIM.INGRESOS BASE MENSUAL'!$C$268 -> 0
A48: 96 | B48: Transferencias a Fideicomisos, mandatos y análogos | E48: 0 | F48: ='ESTIM.INGRESOS BASE MENSUAL'!$C$269 -> 0
A49: 001 | B49: OTROS INGRESOS Y BENEFICIOS | E49: 0 | F49: =SUM(F43:F48) -> 0 | G49: =F49/E49-1 -> 
A50: 100 | B50: Ingresos financieros | E50: 0 | F50: ='ESTIM.INGRESOS BASE MENSUAL'!C275 -> 0
A51: 200 | B51: Diferencias por tipo de cambio a favor, en efectivo y equivalentes | E51: 0 | F51: ='ESTIM.INGRESOS BASE MENSUAL'!C278 -> 0
A52: 300 | B52: Otros ingresos y beneficios varios | E52: 0 | F52: ='ESTIM.INGRESOS BASE MENSUAL'!C280 -> 0
A53: 002 | B53: INGRESOS DERIVADOS DE FINANCIAMIENTO | E53: =SUM(E54) -> 0 | F53: =SUM(F54) -> 0 | G53: =F53/E53-1 -> 
A54: 01 | B54: Endeudamiento interno | F54: ='ESTIM.INGRESOS BASE MENSUAL'!C283 -> 0 | G54: =F54/E54-1 -> 
A55: Total de Ingresos | E55: =E6+E15+E16+E18+E24+E28+E33+E38+E42+E49+E53 -> $43,233,621 | F55: =F6+F15+F16+F18+F24+F28+F33+F38+F42+F49+F53 -> $45,897,257 | G55: =F55/E55-1 -> 6.16%
A56: Clasificación por tipo de ingresos (CTI)
A57: TI | B57: Descripción | C57: Estimación | D57: %
A58: 1 | B58: INGRESOS DE GESTIÓN | C58: =F6+F15+F16+F18+F24+F28+F33 -> 1,538,905 | D58: =C58/C61 -> 3.35%
A59: 2 | B59: PARTICIPACIONES, APORTACIONES, TRANSFERENCIAS, ASIGNACIONES, SUBSIDIOS y OTRAS AYUDAS | C59: =F38+F42 -> 44,358,352 | D59: =C59/C61 -> 96.65%
A60: 3 | B60: OTROS INGRESOS | C60: =F49+F53 -> 0 | D60: =C60/C61 -> 0.00%
B61: Suma | C61: =SUM(C58:C60) -> 45,897,257 | D61: =SUM(D58:D60) -> 100.00%
A62: Clasificación por Fuente de Financiamiento
A63: FF | B63: Descripción | C63: Estimación | D63: %
A64: 100 | B64: RECURSOS FISCALES | C64: =F6+F16+F18+F24+F28+F15+F42 -> 1,538,905 | D64: =C64/C70 -> 3.35%
A65: 200 | B65: FINANCIAMIENTOS INTERNOS | C65: =F53 -> 0 | D65: =C65/C70 -> 0.00%
A66: 400 | B66: INGRESOS PROPIOS | C66: =F33 -> 0 | D66: =C66/C70 -> 0.00%
A67: 500 | B67: RECURSOS FEDERALES | C67: ='ESTIM.INGRESOS BASE MENSUAL'!C241+'ESTIM.INGRESOS BASE MENSUAL'!C243+'ESTIM.INGRESOS BASE MENSUAL'!C251 -> 44,333,872 | D67: =C67/C70 -> 96.59%
A68: 600 | B68: RECURSOS ESTATALES | C68: ='ESTIM.INGRESOS BASE MENSUAL'!C242+'ESTIM.INGRESOS BASE MENSUAL'!C252 -> 24,480 | D68: =C68/C70 -> 0.05%
A69: 700 | B69: OTROS RECURSOS | C69: =F49 -> 0 | D69: =C69/C70 -> 0.00%
B70: Suma | C70: =SUM(C64:C69) -> 45,897,257 | D70: =SUM(D64:D69) -> 100.00%

Sheet S.H. EGRESOS
A1: Informe de Situación Hacendaria Egresos - 2016
A2: ='Objetivos PMD'!$B$3 -> Entidad Pública: Municipio de Jilotlán de los Dolores, Jalisco
A3: CONCEPTOS | E3: EJERCICIO 2015 | F3: ESTIMACIÓN 2016 | G3: VARIACIÓN 2015 - 2016
A5: E G R E S O S
A6: 1000 | B6: SERVICIOS PERSONALES | E6: =SUM(E7:E13) -> $13,880,447 | F6: =SUM(F7:F13) -> $14,472,924 | G6: =F6/E6-1 -> 4%
A7: 1100 | B7: Remuneraciones al Personal de Carácter Permanente | E7: $11,677,476 | F7: ='PRESUP. EGRESOS BASE MENSUAL'!$C$6 -> $12,270,428 | G7: =F7/E7-1 -> 5%
A8: 1200 | B8: Remuneraciones al Personal de Carácter Transitorio | E8: $835,812 | F8: ='PRESUP. EGRESOS BASE MENSUAL'!$C$11 -> $734,400 | G8: =F8/E8-1 -> -12%
A9: 1300 | B9: Remuneraciones Adicionales Especiales | E9: $1,327,512 | F9: ='PRESUP. EGRESOS BASE MENSUAL'!$C$16 -> $1,373,596 | G9: 3%
A10: 1400 | B10: Seguridad Social | E10: 0 | F10: ='PRESUP. EGRESOS BASE MENSUAL'!$C$25 -> $51,000
A11: 1500 | B11: Otras Prestaciones Sociales y Económicas | E11: $39,647 | F11: ='PRESUP. EGRESOS BASE MENSUAL'!$C$30 -> $43,500 | G11: 10%
A12: 1600 | B12: Previsiones | E12: 0 | F12: ='PRESUP. EGRESOS BASE MENSUAL'!$C$37 -> 0
A13: 1700 | B13: Pago Estímulos a Servidores Públicos | E13: 0 | F13: ='PRESUP. EGRESOS BASE MENSUAL'!$C$39 -> 0
A14: 2000 | B14: MATERIALES Y SUMINISTROS | E14: =SUM(E15:E23) -> $8,981,616 | F14: =SUM(F15:F23) -> $11,056,090 | G14: =F14/E14-1 -> 23%
A15: 2100 | B15: Materiales de Administración, Emisión de Documentos y Artículos Oficiales | E15: $728,304 | F15: ='PRESUP. EGRESOS BASE MENSUAL'!$C$43 -> $783,874 | G15: =F15/E15-1 -> 8%
A16: 2200 | B16: Alimentos y Autensilios | E16: $438,204 | F16: ='PRESUP. EGRESOS BASE MENSUAL'!$C$52 -> $483,484 | G16: =F16/E16-1 -> 10%
A17: 2300 | B17: Materias Primas y Materiales de Producción y Comercialización | E17: 0 | F17: ='PRESUP. EGRESOS BASE MENSUAL'!$C$56 -> 0
A18: 2400 | B18: Materiales y Artículos de Construcción y de Reparación | E18: $1,302,200 | F18: ='PRESUP. EGRESOS BASE MENSUAL'!$C$66 -> $2,173,110 | G18: 67%
A19: 2500 | B19: Productos Químicos, Farmacéuticos y de Laboratorio | E19: $1,639,996 | F19: ='PRESUP. EGRESOS BASE MENSUAL'!$C$76 -> $1,821,716 | G19: 11%
A20: 2600 | B20: Combustibles, Lubricantes y Aditivos | E20: $3,281,064 | F20: ='PRESUP. EGRESOS BASE MENSUAL'!$C$84 -> $4,579,800 | G20: 40%
A21: 2700 | B21: Vestuario, Blancos, Prendas de Protección y Artículos Deportivos | E21: $404,000 | F21: ='PRESUP. EGRESOS BASE MENSUAL'!$C$87 -> $515,100 | G21: 28%
A22: 2800 | B22: Materiales y Suministros de Seguridad | E22: $80,000 | F22: ='PRESUP. EGRESOS BASE MENSUAL'!$C$93 -> $117,300 | G22: 47%
A23: 2900 | B23: Herramientas, Refacciones y Accesorios Menores | E23: $1,107,848 | F23: ='PRESUP. EGRESOS BASE MENSUAL'!$C$97 -> $581,706 | G23: -47%
A24: 3000 | B24: SERVICIOS GENERALES | E24: =SUM(E25:E33) -> $5,036,528 | F24: =SUM(F25:F33) -> $5,881,907 | G24: =F24/E24-1 -> 17%
A25: 3100 | B25: Servicios Básicos | E25: $1,852,664 | F25: ='PRESUP. EGRESOS BASE MENSUAL'!$C$108 -> $2,124,048 | G25: =F25/E25-1 -> 15%
A26: 3200 | B26: Servicios de Arrendamiento | E26: $335,000 | F26: ='PRESUP. EGRESOS BASE MENSUAL'!$C$118 -> $378,420 | G26: =F26/E26-1 -> 13%
A27: 3300 | B27: Servicios Profesionales, Científicos, Técnicos y Otros Servicios | E27: $116,000 | F27: ='PRESUP. EGRESOS BASE MENSUAL'!$C$128 -> $559,980 | G27: 383%
A28: 3400 | B28: Servicios Financieros, Bancarios y Comerciales | E28: $154,200 | F28: ='PRESUP. EGRESOS BASE MENSUAL'!$C$138 -> $181,152 | G28: 17%
A29: 3500 | B29: Servicios de Instalación, Reparación, Mantenimiento y Conservación | E29: $1,110,620 | F29: ='PRESUP. EGRESOS BASE MENSUAL'!$C$148 -> $1,132,557 | G29: 2%
A30: 3600 | B30: Servicios de Comunicación Social y Publicidad | E30: $74,200 | F30: ='PRESUP. EGRESOS BASE MENSUAL'!$C$158 -> $68,646 | G30: -7%
A31: 3700 | B31: Servicios de Traslado y Viáticos | E31: $598,636 | F31: ='PRESUP. EGRESOS BASE MENSUAL'!$C$166 -> $653,846 | G31: 9%
A32: 3800 | B32: Servicios Oficiales | E32: $525,000 | F32: ='PRESUP. EGRESOS BASE MENSUAL'!$C$176 -> $548,862 | G32: 5%
A33: 3900 | B33: Otros Servicios Generales | E33: $270,208 | F33: ='PRESUP. EGRESOS BASE MENSUAL'!$C$182 -> $234,396 | G33: =F33/E33-1 -> -13%
A34: 4000 | B34: TRANSFERENCIAS, ASIGNACIONES, SUBSIDIOS Y OTRAS AYUDAS | E34: =SUM(E35:E43) -> $3,044,020 | F34: =SUM(F35:F43) -> $3,158,532 | G34: =F34/E34-1 -> 4%
A35: 4100 | B35: Transferencias internas y Asignaciones al Sector Público | F35: ='PRESUP. EGRESOS BASE MENSUAL'!$C$193 -> 0 | G35: =F35/E35-1 -> 
A36: 4200 | B36: Transferencias al Resto del Sector Público | E36: $1,920,000 | F36: ='PRESUP. EGRESOS BASE MENSUAL'!$C$203 -> $1,958,400 | G36: 2%
A37: 4300 | B37: Susbsidios y Subvenciones | E37: 0 | F37: ='PRESUP. EGRESOS BASE MENSUAL'!$C$209 -> 0
A38: 4400 | B38: Ayudas Sociales | E38: $875,200 | F38: ='PRESUP. EGRESOS BASE MENSUAL'!$C$219 -> $951,660 | G38: =F38/E38-1 -> 9%
A39: 4500 | B39: Pensiones y Jubilaciones | E39: $248,820 | F39: ='PRESUP. EGRESOS BASE MENSUAL'!$C$228 -> $248,472 | G39: =F39/E39-1 -> -0%
A40: 4600 | B40: Transferencias a Fideicomisos, Mandatos y Análogos | E40: 0 | F40: ='PRESUP. EGRESOS BASE MENSUAL'!$C$232 -> 0 | G40: =F40/E40-1 -> 
A41: 4700 | B41: Transferencias a la Seguridad Social | E41: 0 | F41: ='PRESUP. EGRESOS BASE MENSUAL'!$C$239 -> 0 | G41: =F41/E41-1 -> 
A42: 4800 | B42: Donativos | E42: 0 | F42: ='PRESUP. EGRESOS BASE MENSUAL'!$C$241 -> 0 | G42: =F42/E42-1 -> 
A43: 4900 | B43: Transferencias al Exterior | E43: 0 | F43: ='PRESUP. EGRESOS BASE MENSUAL'!$C$247 -> 0
A44: 5000 | B44: BIENES MUEBLES, INMUEBLES E INTANGIBLES | E44: =SUM(E45:E53) -> $855,000 | F44: =SUM(F45:F53) -> $913,002 | G44: 7%
A45: 5100 | B45: Mobiliario y Equipo de Administración | E45: $170,000 | F45: ='PRESUP. EGRESOS BASE MENSUAL'!$C$252 -> $255,306 | G45: 50%
A46: 5200 | B46: Mobiliario y Equipo Educacional y Recreativo | E46: $10,000 | F46: ='PRESUP. EGRESOS BASE MENSUAL'!$C$259 -> $23,664 | G46: 137%
A47: 5300 | B47: Equiipo e Instrumental Médico y de Laboratorio | E47: 0 | F47: ='PRESUP. EGRESOS BASE MENSUAL'!$C$264 -> $231,540
A48: 5400 | B48: Vehículos y Equipo de Transporte | E48: $600,000 | F48: ='PRESUP. EGRESOS BASE MENSUAL'!$C$267 -> $306,000 | G48: =F48/E48-1 -> -49%
A49: 5500 | B49: Equipo de Defensa y Seguridad | E49: 0 | F49: ='PRESUP. EGRESOS BASE MENSUAL'!$C$274 -> 0 | G49: =F49/E49-1 -> 
A50: 5600 | B50: Maquinaria, Otros Equipos y Herramientas | E50: $35,000 | F50: ='PRESUP. EGRESOS BASE MENSUAL'!$C$276 -> $38,352 | G50: =F50/E50-1 -> 10%
A51: 5700 | B51: Activos Biológicos | E51: 0 | F51: ='PRESUP. EGRESOS BASE MENSUAL'!$C$285 -> 0 | G51: =F51/E51-1 -> 
A52: 5800 | B52: Bienes Inmuebles | E52: 0 | F52: ='PRESUP. EGRESOS BASE MENSUAL'!$C$295 -> 0 | G52: =F52/E52-1 -> 
A53: 5900 | B53: Activos Intangibles | E53: $40,000 | F53: ='PRESUP. EGRESOS BASE MENSUAL'!$C$300 -> $58,140 | G53: =F53/E53-1 -> 45%
A54: 6000 | B54: INVERSIÓN PÚBLICA | E54: =SUM(E55:E57) -> $9,086,689 | F54: =SUM(F55:F57) -> $8,781,985 | G54: -3%
A55: 6100 | B55: Obra Pública en Bienes de Dominio Público | E55: $9,086,689 | F55: ='PRESUP. EGRESOS BASE MENSUAL'!$C$311 -> $8,781,985 | G55: -3%
A56: 6200 | B56: Obra Pública en Bienes de Dominio Propios | E56: 0 | F56: ='PRESUP. EGRESOS BASE MENSUAL'!$C$320 -> 0
A57: 6300 | B57: Proyectos Productivos y Acciones de Fomento | E57: 0 | F57: ='PRESUP. EGRESOS BASE MENSUAL'!$C$329 -> 0
A58: 7000 | B58: INVERSIONES FINANCIERAS Y OTRAS PROVISIONES | E58: =SUM(E59:E65) -> 0 | F58: =SUM(F59:F65) -> 0
A59: 7100 | B59: Inversiones para el Fomento de Actividades Productivas | E59: 0 | F59: ='PRESUP. EGRESOS BASE MENSUAL'!$C$333 -> 0 | I59: 61 | M59: 61 | Q59: 61 | U59: 61 | Y59: 61 | AC59: 61 | AG59: 61 | AK59: 61 | AO59: 61 | AS59: 61 | AW59: 61 | BA59: 61 | BE59: 61 | BI59: 61 | BM59: 61 | BQ59: 61 | BU59: 61 | BY59: 61 | CC59: 61 | CG59: 61 | CK59: 61 | CO59: 61 | CS59: 61 | CW59: 61 | DA59: 61 | DE59: 61 | DI59: 61 | DM59: 61 | DQ59: 61 | DU59: 61 | DY59: 61 | EC59: 61 | EG59: 61 | EK59: 61 | EO59: 61 | ES59: 61 | EW59: 61 | FA59: 61 | FE59: 61 | FI59: 61 | FM59: 61 | FQ59: 61 | FU59: 61 | FY59: 61 | GC59: 61 | GG59: 61 | GK59: 61 | GO59: 61 | GS59: 61 | GW59: 61 | HA59: 61 | HE59: 61 | HI59: 61 | HM59: 61 | HQ59: 61 | HU59: 61 | HY59: 61 | IC59: 61 | IG59: 61 | IK59: 61 | IO59: 61 | IS59: 61 | IW59: 61 | JA59: 61 | JE59: 61 | JI59: 61 | JM59: 61 | JQ59: 61 | JU59: 61 | JY59: 61 | KC59: 61 | KG59: 61 | KK59: 61 | KO59: 61 | KS59: 61 | KW59: 61 | LA59: 61 | LE59: 61 | LI59: 61 | LM59: 61 | LQ59: 61 | LU59: 61 | LY59: 61 | MC59: 61 | MG59: 61 | MK59: 61 | MO59: 61 | MS59: 61 | MW59: 61 | NA59: 61 | NE59: 61 | NI59: 61 | NM59: 61 | NQ59: 61 | NU59: 61 | NY59: 61 | OC59: 61 | OG59: 61 | OK59: 61 | OO59: 61 | OS59: 61 | OW59: 61 | PA59: 61 | PE59: 61 | PI59: 61 | PM59: 61 | PQ59: 61 | PU59: 61 | PY59: 61 | QC59: 61 | QG59: 61 | QK59: 61 | QO59: 61 | QS59: 61 | QW59: 61 | RA59: 61 | RE59: 61 | RI59: 61 | RM59: 61 | RQ59: 61 | RU59: 61 | RY59: 61 | SC59: 61 | SG59: 61 | SK59: 61 | SO59: 61 | SS59: 61 | SW59: 61 | TA59: 61 | TE59: 61 | TI59: 61 | TM59: 61 | TQ59: 61 | TU59: 61 | TY59: 61 | UC59: 61 | UG59: 61 | UK59: 61 | UO59: 61 | US59: 61 | UW59: 61 | VA59: 61 | VE59: 61 | VI59: 61 | VM59: 61 | VQ59: 61 | VU59: 61 | VY59: 61 | WC59: 61 | WG59: 61 | WK59: 61 | WO59: 61 | WS59: 61 | WW59: 61 | XA59: 61 | XE59: 61 | XI59: 61 | XM59: 61 | XQ59: 61 | XU59: 61 | XY59: 61 | YC59: 61 | YG59: 61 | YK59: 61 | YO59: 61 | YS59: 61 | YW59: 61 | ZA59: 61 | ZE59: 61 | ZI59: 61 | ZM59: 61 | ZQ59: 61 | ZU59: 61 | ZY59: 61 | AAC59: 61 | AAG59: 61 | AAK59: 61 | AAO59: 61 | AAS59: 61 | AAW59: 61 | ABA59: 61 | ABE59: 61 | ABI59: 61 | ABM59: 61 | ABQ59: 61 | ABU59: 61 | ABY59: 61 | ACC59: 61 | ACG59: 61 | ACK59: 61 | ACO59: 61 | ACS59: 61 | ACW59: 61 | ADA59: 61 | ADE59: 61 | ADI59: 61 | ADM59: 61 | ADQ59: 61 | ADU59: 61 | ADY59: 61 | AEC59: 61 | AEG59: 61 | AEK59: 61 | AEO59: 61 | AES59: 61 | AEW59: 61 | AFA59: 61 | AFE59: 61 | AFI59: 61 | AFM59: 61 | AFQ59: 61 | AFU59: 61 | AFY59: 61 | AGC59: 61 | AGG59: 61 | AGK59: 61 | AGO59: 61 | AGS59: 61 | AGW59: 61 | AHA59: 61 | AHE59: 61 | AHI59: 61 | AHM59: 61 | AHQ59: 61 | AHU59: 61 | AHY59: 61 | AIC59: 61 | AIG59: 61 | AIK59: 61 | AIO59: 61 | AIS59: 61 | AIW59: 61 | AJA59: 61 | AJE59: 61 | AJI59: 61 | AJM59: 61 | AJQ59: 61 | AJU59: 61 | AJY59: 61 | AKC59: 61 | AKG59: 61 | AKK59: 61 | AKO59: 61 | AKS59: 61 | AKW59: 61 | ALA59: 61 | ALE59: 61 | ALI59: 61 | ALM59: 61 | ALQ59: 61 | ALU59: 61 | ALY59: 61 | AMC59: 61 | AMG59: 61 | AMK59: 61 | AMO59: 61 | AMS59: 61 | AMW59: 61 | ANA59: 61 | ANE59: 61 | ANI59: 61 | ANM59: 61 | ANQ59: 61 | ANU59: 61 | ANY59: 61 | AOC59: 61 | AOG59: 61 | AOK59: 61 | AOO59: 61 | AOS59: 61 | AOW59: 61 | APA59: 61 | APE59: 61 | API59: 61 | APM59: 61 | APQ59: 61 | APU59: 61 | APY59: 61 | AQC59: 61 | AQG59: 61 | AQK59: 61 | AQO59: 61 | AQS59: 61 | AQW59: 61 | ARA59: 61 | ARE59: 61 | ARI59: 61 | ARM59: 61 | ARQ59: 61 | ARU59: 61 | ARY59: 61 | ASC59: 61 | ASG59: 61 | ASK59: 61 | ASO59: 61 | ASS59: 61 | ASW59: 61 | ATA59: 61 | ATE59: 61 | ATI59: 61 | ATM59: 61 | ATQ59: 61 | ATU59: 61 | ATY59: 61 | AUC59: 61 | AUG59: 61 | AUK59: 61 | AUO59: 61 | AUS59: 61 | AUW59: 61 | AVA59: 61 | AVE59: 61 | AVI59: 61 | AVM59: 61 | AVQ59: 61 | AVU59: 61 | AVY59: 61 | AWC59: 61 | AWG59: 61 | AWK59: 61 | AWO59: 61 | AWS59: 61 | AWW59: 61 | AXA59: 61 | AXE59: 61 | AXI59: 61 | AXM59: 61 | AXQ59: 61 | AXU59: 61 | AXY59: 61 | AYC59: 61 | AYG59: 61 | AYK59: 61 | AYO59: 61 | AYS59: 61 | AYW59: 61 | AZA59: 61 | AZE59: 61 | AZI59: 61 | AZM59: 61 | AZQ59: 61 | AZU59: 61 | AZY59: 61 | BAC59: 61 | BAG59: 61 | BAK59: 61 | BAO59: 61 | BAS59: 61 | BAW59: 61 | BBA59: 61 | BBE59: 61 | BBI59: 61 | BBM59: 61 | BBQ59: 61 | BBU59: 61 | BBY59: 61 | BCC59: 61 | BCG59: 61 | BCK59: 61 | BCO59: 61 | BCS59: 61 | BCW59: 61 | BDA59: 61 | BDE59: 61 | BDI59: 61 | BDM59: 61 | BDQ59: 61 | BDU59: 61 | BDY59: 61 | BEC59: 61 | BEG59: 61 | BEK59: 61 | BEO59: 61 | BES59: 61 | BEW59: 61 | BFA59: 61 | BFE59: 61 | BFI59: 61 | BFM59: 61 | BFQ59: 61 | BFU59: 61 | BFY59: 61 | BGC59: 61 | BGG59: 61 | BGK59: 61 | BGO59: 61 | BGS59: 61 | BGW59: 61 | BHA59: 61 | BHE59: 61 | BHI59: 61 | BHM59: 61 | BHQ59: 61 | BHU59: 61 | BHY59: 61 | BIC59: 61 | BIG59: 61 | BIK59: 61 | BIO59: 61 | BIS59: 61 | BIW59: 61 | BJA59: 61 | BJE59: 61 | BJI59: 61 | BJM59: 61 | BJQ59: 61 | BJU59: 61 | BJY59: 61 | BKC59: 61 | BKG59: 61 | BKK59: 61 | BKO59: 61 | BKS59: 61 | BKW59: 61 | BLA59: 61 | BLE59: 61 | BLI59: 61 | BLM59: 61 | BLQ59: 61 | BLU59: 61 | BLY59: 61 | BMC59: 61 | BMG59: 61 | BMK59: 61 | BMO59: 61 | BMS59: 61 | BMW59: 61 | BNA59: 61 | BNE59: 61 | BNI59: 61 | BNM59: 61 | BNQ59: 61 | BNU59: 61 | BNY59: 61 | BOC59: 61 | BOG59: 61 | BOK59: 61 | BOO59: 61 | BOS59: 61 | BOW59: 61 | BPA59: 61 | BPE59: 61 | BPI59: 61 | BPM59: 61 | BPQ59: 61 | BPU59: 61 | BPY59: 61 | BQC59: 61 | BQG59: 61 | BQK59: 61 | BQO59: 61 | BQS59: 61 | BQW59: 61 | BRA59: 61 | BRE59: 61 | BRI59: 61 | BRM59: 61 | BRQ59: 61 | BRU59: 61 | BRY59: 61 | BSC59: 61 | BSG59: 61 | BSK59: 61 | BSO59: 61 | BSS59: 61 | BSW59: 61 | BTA59: 61 | BTE59: 61 | BTI59: 61 | BTM59: 61 | BTQ59: 61 | BTU59: 61 | BTY59: 61 | BUC59: 61 | BUG59: 61 | BUK59: 61 | BUO59: 61 | BUS59: 61 | BUW59: 61 | BVA59: 61 | BVE59: 61 | BVI59: 61 | BVM59: 61 | BVQ59: 61 | BVU59: 61 | BVY59: 61 | BWC59: 61 | BWG59: 61 | BWK59: 61 | BWO59: 61 | BWS59: 61 | BWW59: 61 | BXA59: 61 | BXE59: 61 | BXI59: 61 | BXM59: 61 | BXQ59: 61 | BXU59: 61 | BXY59: 61 | BYC59: 61 | BYG59: 61 | BYK59: 61 | BYO59: 61 | BYS59: 61 | BYW59: 61 | BZA59: 61 | BZE59: 61 | BZI59: 61 | BZM59: 61 | BZQ59: 61 | BZU59: 61 | BZY59: 61 | CAC59: 61 | CAG59: 61 | CAK59: 61 | CAO59: 61 | CAS59: 61 | CAW59: 61 | CBA59: 61 | CBE59: 61 | CBI59: 61 | CBM59: 61 | CBQ59: 61 | CBU59: 61 | CBY59: 61 | CCC59: 61 | CCG59: 61 | CCK59: 61 | CCO59: 61 | CCS59: 61 | CCW59: 61 | CDA59: 61 | CDE59: 61 | CDI59: 61 | CDM59: 61 | CDQ59: 61 | CDU59: 61 | CDY59: 61 | CEC59: 61 | CEG59: 61 | CEK59: 61 | CEO59: 61 | CES59: 61 | CEW59: 61 | CFA59: 61 | CFE59: 61 | CFI59: 61 | CFM59: 61 | CFQ59: 61 | CFU59: 61 | CFY59: 61 | CGC59: 61 | CGG59: 61 | CGK59: 61 | CGO59: 61 | CGS59: 61 | CGW59: 61 | CHA59: 61 | CHE59: 61 | CHI59: 61 | CHM59: 61 | CHQ59: 61 | CHU59: 61 | CHY59: 61 | CIC59: 61 | CIG59: 61 | CIK59: 61 | CIO59: 61 | CIS59: 61 | CIW59: 61 | CJA59: 61 | CJE59: 61 | CJI59: 61 | CJM59: 61 | CJQ59: 61 | CJU59: 61 | CJY59: 61 | CKC59: 61 | CKG59: 61 | CKK59: 61 | CKO59: 61 | CKS59: 61 | CKW59: 61 | CLA59: 61 | CLE59: 61 | CLI59: 61 | CLM59: 61 | CLQ59: 61 | CLU59: 61 | CLY59: 61 | CMC59: 61 | CMG59: 61 | CMK59: 61 | CMO59: 61 | CMS59: 61 | CMW59: 61 | CNA59: 61 | CNE59: 61 | CNI59: 61 | CNM59: 61 | CNQ59: 61 | CNU59: 61 | CNY59: 61 | COC59: 61 | COG59: 61 | COK59: 61 | COO59: 61 | COS59: 61 | COW59: 61 | CPA59: 61 | CPE59: 61 | CPI59: 61 | CPM59: 61 | CPQ59: 61 | CPU59: 61 | CPY59: 61 | CQC59: 61 | CQG59: 61 | CQK59: 61 | CQO59: 61 | CQS59: 61 | CQW59: 61 | CRA59: 61 | CRE59: 61 | CRI59: 61 | CRM59: 61 | CRQ59: 61 | CRU59: 61 | CRY59: 61 | CSC59: 61 | CSG59: 61 | CSK59: 61 | CSO59: 61 | CSS59: 61 | CSW59: 61 | CTA59: 61 | CTE59: 61 | CTI59: 61 | CTM59: 61 | CTQ59: 61 | CTU59: 61 | CTY59: 61 | CUC59: 61 | CUG59: 61 | CUK59: 61 | CUO59: 61 | CUS59: 61 | CUW59: 61 | CVA59: 61 | CVE59: 61 | CVI59: 61 | CVM59: 61 | CVQ59: 61 | CVU59: 61 | CVY59: 61 | CWC59: 61 | CWG59: 61 | CWK59: 61 | CWO59: 61 | CWS59: 61 | CWW59: 61 | CXA59: 61 | CXE59: 61 | CXI59: 61 | CXM59: 61 | CXQ59: 61 | CXU59: 61 | CXY59: 61 | CYC59: 61 | CYG59: 61 | CYK59: 61 | CYO59: 61 | CYS59: 61 | CYW59: 61 | CZA59: 61 | CZE59: 61 | CZI59: 61 | CZM59: 61 | CZQ59: 61 | CZU59: 61 | CZY59: 61 | DAC59: 61 | DAG59: 61 | DAK59: 61 | DAO59: 61 | DAS59: 61 | DAW59: 61 | DBA59: 61 | DBE59: 61 | DBI59: 61 | DBM59: 61 | DBQ59: 61 | DBU59: 61 | DBY59: 61 | DCC59: 61 | DCG59: 61 | DCK59: 61 | DCO59: 61 | DCS59: 61 | DCW59: 61 | DDA59: 61 | DDE59: 61 | DDI59: 61 | DDM59: 61 | DDQ59: 61 | DDU59: 61 | DDY59: 61 | DEC59: 61 | DEG59: 61 | DEK59: 61 | DEO59: 61 | DES59: 61 | DEW59: 61 | DFA59: 61 | DFE59: 61 | DFI59: 61 | DFM59: 61 | DFQ59: 61 | DFU59: 61 | DFY59: 61 | DGC59: 61 | DGG59: 61 | DGK59: 61 | DGO59: 61 | DGS59: 61 | DGW59: 61 | DHA59: 61 | DHE59: 61 | DHI59: 61 | DHM59: 61 | DHQ59: 61 | DHU59: 61 | DHY59: 61 | DIC59: 61 | DIG59: 61 | DIK59: 61 | DIO59: 61 | DIS59: 61 | DIW59: 61 | DJA59: 61 | DJE59: 61 | DJI59: 61 | DJM59: 61 | DJQ59: 61 | DJU59: 61 | DJY59: 61 | DKC59: 61 | DKG59: 61 | DKK59: 61 | DKO59: 61 | DKS59: 61 | DKW59: 61 | DLA59: 61 | DLE59: 61 | DLI59: 61 | DLM59: 61 | DLQ59: 61 | DLU59: 61 | DLY59: 61 | DMC59: 61 | DMG59: 61 | DMK59: 61 | DMO59: 61 | DMS59: 61 | DMW59: 61 | DNA59: 61 | DNE59: 61 | DNI59: 61 | DNM59: 61 | DNQ59: 61 | DNU59: 61 | DNY59: 61 | DOC59: 61 | DOG59: 61 | DOK59: 61 | DOO59: 61 | DOS59: 61 | DOW59: 61 | DPA59: 61 | DPE59: 61 | DPI59: 61 | DPM59: 61 | DPQ59: 61 | DPU59: 61 | DPY59: 61 | DQC59: 61 | DQG59: 61 | DQK59: 61 | DQO59: 61 | DQS59: 61 | DQW59: 61 | DRA59: 61 | DRE59: 61 | DRI59: 61 | DRM59: 61 | DRQ59: 61 | DRU59: 61 | DRY59: 61 | DSC59: 61 | DSG59: 61 | DSK59: 61 | DSO59: 61 | DSS59: 61 | DSW59: 61 | DTA59: 61 | DTE59: 61 | DTI59: 61 | DTM59: 61 | DTQ59: 61 | DTU59: 61 | DTY59: 61 | DUC59: 61 | DUG59: 61 | DUK59: 61 | DUO59: 61 | DUS59: 61 | DUW59: 61 | DVA59: 61 | DVE59: 61 | DVI59: 61 | DVM59: 61 | DVQ59: 61 | DVU59: 61 | DVY59: 61 | DWC59: 61 | DWG59: 61 | DWK59: 61 | DWO59: 61 | DWS59: 61 | DWW59: 61 | DXA59: 61 | DXE59: 61 | DXI59: 61 | DXM59: 61 | DXQ59: 61 | DXU59: 61 | DXY59: 61 | DYC59: 61 | DYG59: 61 | DYK59: 61 | DYO59: 61 | DYS59: 61 | DYW59: 61 | DZA59: 61 | DZE59: 61 | DZI59: 61 | DZM59: 61 | DZQ59: 61 | DZU59: 61 | DZY59: 61 | EAC59: 61 | EAG59: 61 | EAK59: 61 | EAO59: 61 | EAS59: 61 | EAW59: 61 | EBA59: 61 | EBE59: 61 | EBI59: 61 | EBM59: 61 | EBQ59: 61 | EBU59: 61 | EBY59: 61 | ECC59: 61 | ECG59: 61 | ECK59: 61 | ECO59: 61 | ECS59: 61 | ECW59: 61 | EDA59: 61 | EDE59: 61 | EDI59: 61 | EDM59: 61 | EDQ59: 61 | EDU59: 61 | EDY59: 61 | EEC59: 61 | EEG59: 61 | EEK59: 61 | EEO59: 61 | EES59: 61 | EEW59: 61 | EFA59: 61 | EFE59: 61 | EFI59: 61 | EFM59: 61 | EFQ59: 61 | EFU59: 61 | EFY59: 61 | EGC59: 61 | EGG59: 61 | EGK59: 61 | EGO59: 61 | EGS59: 61 | EGW59: 61 | EHA59: 61 | EHE59: 61 | EHI59: 61 | EHM59: 61 | EHQ59: 61 | EHU59: 61 | EHY59: 61 | EIC59: 61 | EIG59: 61 | EIK59: 61 | EIO59: 61 | EIS59: 61 | EIW59: 61 | EJA59: 61 | EJE59: 61 | EJI59: 61 | EJM59: 61 | EJQ59: 61 | EJU59: 61 | EJY59: 61 | EKC59: 61 | EKG59: 61 | EKK59: 61 | EKO59: 61 | EKS59: 61 | EKW59: 61 | ELA59: 61 | ELE59: 61 | ELI59: 61 | ELM59: 61 | ELQ59: 61 | ELU59: 61 | ELY59: 61 | EMC59: 61 | EMG59: 61 | EMK59: 61 | EMO59: 61 | EMS59: 61 | EMW59: 61 | ENA59: 61 | ENE59: 61 | ENI59: 61 | ENM59: 61 | ENQ59: 61 | ENU59: 61 | ENY59: 61 | EOC59: 61 | EOG59: 61 | EOK59: 61 | EOO59: 61 | EOS59: 61 | EOW59: 61 | EPA59: 61 | EPE59: 61 | EPI59: 61 | EPM59: 61 | EPQ59: 61 | EPU59: 61 | EPY59: 61 | EQC59: 61 | EQG59: 61 | EQK59: 61 | EQO59: 61 | EQS59: 61 | EQW59: 61 | ERA59: 61 | ERE59: 61 | ERI59: 61 | ERM59: 61 | ERQ59: 61 | ERU59: 61 | ERY59: 61 | ESC59: 61 | ESG59: 61 | ESK59: 61 | ESO59: 61 | ESS59: 61 | ESW59: 61 | ETA59: 61 | ETE59: 61 | ETI59: 61 | ETM59: 61 | ETQ59: 61 | ETU59: 61 | ETY59: 61 | EUC59: 61 | EUG59: 61 | EUK59: 61 | EUO59: 61 | EUS59: 61 | EUW59: 61 | EVA59: 61 | EVE59: 61 | EVI59: 61 | EVM59: 61 | EVQ59: 61 | EVU59: 61 | EVY59: 61 | EWC59: 61 | EWG59: 61 | EWK59: 61 | EWO59: 61 | EWS59: 61 | EWW59: 61 | EXA59: 61 | EXE59: 61 | EXI59: 61 | EXM59: 61 | EXQ59: 61 | EXU59: 61 | EXY59: 61 | EYC59: 61 | EYG59: 61 | EYK59: 61 | EYO59: 61 | EYS59: 61 | EYW59: 61 | EZA59: 61 | EZE59: 61 | EZI59: 61 | EZM59: 61 | EZQ59: 61 | EZU59: 61 | EZY59: 61 | FAC59: 61 | FAG59: 61 | FAK59: 61 | FAO59: 61 | FAS59: 61 | FAW59: 61 | FBA59: 61 | FBE59: 61 | FBI59: 61 | FBM59: 61 | FBQ59: 61 | FBU59: 61 | FBY59: 61 | FCC59: 61 | FCG59: 61 | FCK59: 61 | FCO59: 61 | FCS59: 61 | FCW59: 61 | FDA59: 61 | FDE59: 61 | FDI59: 61 | FDM59: 61 | FDQ59: 61 | FDU59: 61 | FDY59: 61 | FEC59: 61 | FEG59: 61 | FEK59: 61 | FEO59: 61 | FES59: 61 | FEW59: 61 | FFA59: 61 | FFE59: 61 | FFI59: 61 | FFM59: 61 | FFQ59: 61 | FFU59: 61 | FFY59: 61 | FGC59: 61 | FGG59: 61 | FGK59: 61 | FGO59: 61 | FGS59: 61 | FGW59: 61 | FHA59: 61 | FHE59: 61 | FHI59: 61 | FHM59: 61 | FHQ59: 61 | FHU59: 61 | FHY59: 61 | FIC59: 61 | FIG59: 61 | FIK59: 61 | FIO59: 61 | FIS59: 61 | FIW59: 61 | FJA59: 61 | FJE59: 61 | FJI59: 61 | FJM59: 61 | FJQ59: 61 | FJU59: 61 | FJY59: 61 | FKC59: 61 | FKG59: 61 | FKK59: 61 | FKO59: 61 | FKS59: 61 | FKW59: 61 | FLA59: 61 | FLE59: 61 | FLI59: 61 | FLM59: 61 | FLQ59: 61 | FLU59: 61 | FLY59: 61 | FMC59: 61 | FMG59: 61 | FMK59: 61 | FMO59: 61 | FMS59: 61 | FMW59: 61 | FNA59: 61 | FNE59: 61 | FNI59: 61 | FNM59: 61 | FNQ59: 61 | FNU59: 61 | FNY59: 61 | FOC59: 61 | FOG59: 61 | FOK59: 61 | FOO59: 61 | FOS59: 61 | FOW59: 61 | FPA59: 61 | FPE59: 61 | FPI59: 61 | FPM59: 61 | FPQ59: 61 | FPU59: 61 | FPY59: 61 | FQC59: 61 | FQG59: 61 | FQK59: 61 | FQO59: 61 | FQS59: 61 | FQW59: 61 | FRA59: 61 | FRE59: 61 | FRI59: 61 | FRM59: 61 | FRQ59: 61 | FRU59: 61 | FRY59: 61 | FSC59: 61 | FSG59: 61 | FSK59: 61 | FSO59: 61 | FSS59: 61 | FSW59: 61 | FTA59: 61 | FTE59: 61 | FTI59: 61 | FTM59: 61 | FTQ59: 61 | FTU59: 61 | FTY59: 61 | FUC59: 61 | FUG59: 61 | FUK59: 61 | FUO59: 61 | FUS59: 61 | FUW59: 61 | FVA59: 61 | FVE59: 61 | FVI59: 61 | FVM59: 61 | FVQ59: 61 | FVU59: 61 | FVY59: 61 | FWC59: 61 | FWG59: 61 | FWK59: 61 | FWO59: 61 | FWS59: 61 | FWW59: 61 | FXA59: 61 | FXE59: 61 | FXI59: 61 | FXM59: 61 | FXQ59: 61 | FXU59: 61 | FXY59: 61 | FYC59: 61 | FYG59: 61 | FYK59: 61 | FYO59: 61 | FYS59: 61 | FYW59: 61 | FZA59: 61 | FZE59: 61 | FZI59: 61 | FZM59: 61 | FZQ59: 61 | FZU59: 61 | FZY59: 61 | GAC59: 61 | GAG59: 61 | GAK59: 61 | GAO59: 61 | GAS59: 61 | GAW59: 61 | GBA59: 61 | GBE59: 61 | GBI59: 61 | GBM59: 61 | GBQ59: 61 | GBU59: 61 | GBY59: 61 | GCC59: 61 | GCG59: 61 | GCK59: 61 | GCO59: 61 | GCS59: 61 | GCW59: 61 | GDA59: 61 | GDE59: 61 | GDI59: 61 | GDM59: 61 | GDQ59: 61 | GDU59: 61 | GDY59: 61 | GEC59: 61 | GEG59: 61 | GEK59: 61 | GEO59: 61 | GES59: 61 | GEW59: 61 | GFA59: 61 | GFE59: 61 | GFI59: 61 | GFM59: 61 | GFQ59: 61 | GFU59: 61 | GFY59: 61 | GGC59: 61 | GGG59: 61 | GGK59: 61 | GGO59: 61 | GGS59: 61 | GGW59: 61 | GHA59: 61 | GHE59: 61 | GHI59: 61 | GHM59: 61 | GHQ59: 61 | GHU59: 61 | GHY59: 61 | GIC59: 61 | GIG59: 61 | GIK59: 61 | GIO59: 61 | GIS59: 61 | GIW59: 61 | GJA59: 61 | GJE59: 61 | GJI59: 61 | GJM59: 61 | GJQ59: 61 | GJU59: 61 | GJY59: 61 | GKC59: 61 | GKG59: 61 | GKK59: 61 | GKO59: 61 | GKS59: 61 | GKW59: 61 | GLA59: 61 | GLE59: 61 | GLI59: 61 | GLM59: 61 | GLQ59: 61 | GLU59: 61 | GLY59: 61 | GMC59: 61 | GMG59: 61 | GMK59: 61 | GMO59: 61 | GMS59: 61 | GMW59: 61 | GNA59: 61 | GNE59: 61 | GNI59: 61 | GNM59: 61 | GNQ59: 61 | GNU59: 61 | GNY59: 61 | GOC59: 61 | GOG59: 61 | GOK59: 61 | GOO59: 61 | GOS59: 61 | GOW59: 61 | GPA59: 61 | GPE59: 61 | GPI59: 61 | GPM59: 61 | GPQ59: 61 | GPU59: 61 | GPY59: 61 | GQC59: 61 | GQG59: 61 | GQK59: 61 | GQO59: 61 | GQS59: 61 | GQW59: 61 | GRA59: 61 | GRE59: 61 | GRI59: 61 | GRM59: 61 | GRQ59: 61 | GRU59: 61 | GRY59: 61 | GSC59: 61 | GSG59: 61 | GSK59: 61 | GSO59: 61 | GSS59: 61 | GSW59: 61 | GTA59: 61 | GTE59: 61 | GTI59: 61 | GTM59: 61 | GTQ59: 61 | GTU59: 61 | GTY59: 61 | GUC59: 61 | GUG59: 61 | GUK59: 61 | GUO59: 61 | GUS59: 61 | GUW59: 61 | GVA59: 61 | GVE59: 61 | GVI59: 61 | GVM59: 61 | GVQ59: 61 | GVU59: 61 | GVY59: 61 | GWC59: 61 | GWG59: 61 | GWK59: 61 | GWO59: 61 | GWS59: 61 | GWW59: 61 | GXA59: 61 | GXE59: 61 | GXI59: 61 | GXM59: 61 | GXQ59: 61 | GXU59: 61 | GXY59: 61 | GYC59: 61 | GYG59: 61 | GYK59: 61 | GYO59: 61 | GYS59: 61 | GYW59: 61 | GZA59: 61 | GZE59: 61 | GZI59: 61 | GZM59: 61 | GZQ59: 61 | GZU59: 61 | GZY59: 61 | HAC59: 61 | HAG59: 61 | HAK59: 61 | HAO59: 61 | HAS59: 61 | HAW59: 61 | HBA59: 61 | HBE59: 61 | HBI59: 61 | HBM59: 61 | HBQ59: 61 | HBU59: 61 | HBY59: 61 | HCC59: 61 | HCG59: 61 | HCK59: 61 | HCO59: 61 | HCS59: 61 | HCW59: 61 | HDA59: 61 | HDE59: 61 | HDI59: 61 | HDM59: 61 | HDQ59: 61 | HDU59: 61 | HDY59: 61 | HEC59: 61 | HEG59: 61 | HEK59: 61 | HEO59: 61 | HES59: 61 | HEW59: 61 | HFA59: 61 | HFE59: 61 | HFI59: 61 | HFM59: 61 | HFQ59: 61 | HFU59: 61 | HFY59: 61 | HGC59: 61 | HGG59: 61 | HGK59: 61 | HGO59: 61 | HGS59: 61 | HGW59: 61 | HHA59: 61 | HHE59: 61 | HHI59: 61 | HHM59: 61 | HHQ59: 61 | HHU59: 61 | HHY59: 61 | HIC59: 61 | HIG59: 61 | HIK59: 61 | HIO59: 61 | HIS59: 61 | HIW59: 61 | HJA59: 61 | HJE59: 61 | HJI59: 61 | HJM59: 61 | HJQ59: 61 | HJU59: 61 | HJY59: 61 | HKC59: 61 | HKG59: 61 | HKK59: 61 | HKO59: 61 | HKS59: 61 | HKW59: 61 | HLA59: 61 | HLE59: 61 | HLI59: 61 | HLM59: 61 | HLQ59: 61 | HLU59: 61 | HLY59: 61 | HMC59: 61 | HMG59: 61 | HMK59: 61 | HMO59: 61 | HMS59: 61 | HMW59: 61 | HNA59: 61 | HNE59: 61 | HNI59: 61 | HNM59: 61 | HNQ59: 61 | HNU59: 61 | HNY59: 61 | HOC59: 61 | HOG59: 61 | HOK59: 61 | HOO59: 61 | HOS59: 61 | HOW59: 61 | HPA59: 61 | HPE59: 61 | HPI59: 61 | HPM59: 61 | HPQ59: 61 | HPU59: 61 | HPY59: 61 | HQC59: 61 | HQG59: 61 | HQK59: 61 | HQO59: 61 | HQS59: 61 | HQW59: 61 | HRA59: 61 | HRE59: 61 | HRI59: 61 | HRM59: 61 | HRQ59: 61 | HRU59: 61 | HRY59: 61 | HSC59: 61 | HSG59: 61 | HSK59: 61 | HSO59: 61 | HSS59: 61 | HSW59: 61 | HTA59: 61 | HTE59: 61 | HTI59: 61 | HTM59: 61 | HTQ59: 61 | HTU59: 61 | HTY59: 61 | HUC59: 61 | HUG59: 61 | HUK59: 61 | HUO59: 61 | HUS59: 61 | HUW59: 61 | HVA59: 61 | HVE59: 61 | HVI59: 61 | HVM59: 61 | HVQ59: 61 | HVU59: 61 | HVY59: 61 | HWC59: 61 | HWG59: 61 | HWK59: 61 | HWO59: 61 | HWS59: 61 | HWW59: 61 | HXA59: 61 | HXE59: 61 | HXI59: 61 | HXM59: 61 | HXQ59: 61 | HXU59: 61 | HXY59: 61 | HYC59: 61 | HYG59: 61 | HYK59: 61 | HYO59: 61 | HYS59: 61 | HYW59: 61 | HZA59: 61 | HZE59: 61 | HZI59: 61 | HZM59: 61 | HZQ59: 61 | HZU59: 61 | HZY59: 61 | IAC59: 61 | IAG59: 61 | IAK59: 61 | IAO59: 61 | IAS59: 61 | IAW59: 61 | IBA59: 61 | IBE59: 61 | IBI59: 61 | IBM59: 61 | IBQ59: 61 | IBU59: 61 | IBY59: 61 | ICC59: 61 | ICG59: 61 | ICK59: 61 | ICO59: 61 | ICS59: 61 | ICW59: 61 | IDA59: 61 | IDE59: 61 | IDI59: 61 | IDM59: 61 | IDQ59: 61 | IDU59: 61 | IDY59: 61 | IEC59: 61 | IEG59: 61 | IEK59: 61 | IEO59: 61 | IES59: 61 | IEW59: 61 | IFA59: 61 | IFE59: 61 | IFI59: 61 | IFM59: 61 | IFQ59: 61 | IFU59: 61 | IFY59: 61 | IGC59: 61 | IGG59: 61 | IGK59: 61 | IGO59: 61 | IGS59: 61 | IGW59: 61 | IHA59: 61 | IHE59: 61 | IHI59: 61 | IHM59: 61 | IHQ59: 61 | IHU59: 61 | IHY59: 61 | IIC59: 61 | IIG59: 61 | IIK59: 61 | IIO59: 61 | IIS59: 61 | IIW59: 61 | IJA59: 61 | IJE59: 61 | IJI59: 61 | IJM59: 61 | IJQ59: 61 | IJU59: 61 | IJY59: 61 | IKC59: 61 | IKG59: 61 | IKK59: 61 | IKO59: 61 | IKS59: 61 | IKW59: 61 | ILA59: 61 | ILE59: 61 | ILI59: 61 | ILM59: 61 | ILQ59: 61 | ILU59: 61 | ILY59: 61 | IMC59: 61 | IMG59: 61 | IMK59: 61 | IMO59: 61 | IMS59: 61 | IMW59: 61 | INA59: 61 | INE59: 61 | INI59: 61 | INM59: 61 | INQ59: 61 | INU59: 61 | INY59: 61 | IOC59: 61 | IOG59: 61 | IOK59: 61 | IOO59: 61 | IOS59: 61 | IOW59: 61 | IPA59: 61 | IPE59: 61 | IPI59: 61 | IPM59: 61 | IPQ59: 61 | IPU59: 61 | IPY59: 61 | IQC59: 61 | IQG59: 61 | IQK59: 61 | IQO59: 61 | IQS59: 61 | IQW59: 61 | IRA59: 61 | IRE59: 61 | IRI59: 61 | IRM59: 61 | IRQ59: 61 | IRU59: 61 | IRY59: 61 | ISC59: 61 | ISG59: 61 | ISK59: 61 | ISO59: 61 | ISS59: 61 | ISW59: 61 | ITA59: 61 | ITE59: 61 | ITI59: 61 | ITM59: 61 | ITQ59: 61 | ITU59: 61 | ITY59: 61 | IUC59: 61 | IUG59: 61 | IUK59: 61 | IUO59: 61 | IUS59: 61 | IUW59: 61 | IVA59: 61 | IVE59: 61 | IVI59: 61 | IVM59: 61 | IVQ59: 61 | IVU59: 61 | IVY59: 61 | IWC59: 61 | IWG59: 61 | IWK59: 61 | IWO59: 61 | IWS59: 61 | IWW59: 61 | IXA59: 61 | IXE59: 61 | IXI59: 61 | IXM59: 61 | IXQ59: 61 | IXU59: 61 | IXY59: 61 | IYC59: 61 | IYG59: 61 | IYK59: 61 | IYO59: 61 | IYS59: 61 | IYW59: 61 | IZA59: 61 | IZE59: 61 | IZI59: 61 | IZM59: 61 | IZQ59: 61 | IZU59: 61 | IZY59: 61 | JAC59: 61 | JAG59: 61 | JAK59: 61 | JAO59: 61 | JAS59: 61 | JAW59: 61 | JBA59: 61 | JBE59: 61 | JBI59: 61 | JBM59: 61 | JBQ59: 61 | JBU59: 61 | JBY59: 61 | JCC59: 61 | JCG59: 61 | JCK59: 61 | JCO59: 61 | JCS59: 61 | JCW59: 61 | JDA59: 61 | JDE59: 61 | JDI59: 61 | JDM59: 61 | JDQ59: 61 | JDU59: 61 | JDY59: 61 | JEC59: 61 | JEG59: 61 | JEK59: 61 | JEO59: 61 | JES59: 61 | JEW59: 61 | JFA59: 61 | JFE59: 61 | JFI59: 61 | JFM59: 61 | JFQ59: 61 | JFU59: 61 | JFY59: 61 | JGC59: 61 | JGG59: 61 | JGK59: 61 | JGO59: 61 | JGS59: 61 | JGW59: 61 | JHA59: 61 | JHE59: 61 | JHI59: 61 | JHM59: 61 | JHQ59: 61 | JHU59: 61 | JHY59: 61 | JIC59: 61 | JIG59: 61 | JIK59: 61 | JIO59: 61 | JIS59: 61 | JIW59: 61 | JJA59: 61 | JJE59: 61 | JJI59: 61 | JJM59: 61 | JJQ59: 61 | JJU59: 61 | JJY59: 61 | JKC59: 61 | JKG59: 61 | JKK59: 61 | JKO59: 61 | JKS59: 61 | JKW59: 61 | JLA59: 61 | JLE59: 61 | JLI59: 61 | JLM59: 61 | JLQ59: 61 | JLU59: 61 | JLY59: 61 | JMC59: 61 | JMG59: 61 | JMK59: 61 | JMO59: 61 | JMS59: 61 | JMW59: 61 | JNA59: 61 | JNE59: 61 | JNI59: 61 | JNM59: 61 | JNQ59: 61 | JNU59: 61 | JNY59: 61 | JOC59: 61 | JOG59: 61 | JOK59: 61 | JOO59: 61 | JOS59: 61 | JOW59: 61 | JPA59: 61 | JPE59: 61 | JPI59: 61 | JPM59: 61 | JPQ59: 61 | JPU59: 61 | JPY59: 61 | JQC59: 61 | JQG59: 61 | JQK59: 61 | JQO59: 61 | JQS59: 61 | JQW59: 61 | JRA59: 61 | JRE59: 61 | JRI59: 61 | JRM59: 61 | JRQ59: 61 | JRU59: 61 | JRY59: 61 | JSC59: 61 | JSG59: 61 | JSK59: 61 | JSO59: 61 | JSS59: 61 | JSW59: 61 | JTA59: 61 | JTE59: 61 | JTI59: 61 | JTM59: 61 | JTQ59: 61 | JTU59: 61 | JTY59: 61 | JUC59: 61 | JUG59: 61 | JUK59: 61 | JUO59: 61 | JUS59: 61 | JUW59: 61 | JVA59: 61 | JVE59: 61 | JVI59: 61 | JVM59: 61 | JVQ59: 61 | JVU59: 61 | JVY59: 61 | JWC59: 61 | JWG59: 61 | JWK59: 61 | JWO59: 61 | JWS59: 61 | JWW59: 61 | JXA59: 61 | JXE59: 61 | JXI59: 61 | JXM59: 61 | JXQ59: 61 | JXU59: 61 | JXY59: 61 | JYC59: 61 | JYG59: 61 | JYK59: 61 | JYO59: 61 | JYS59: 61 | JYW59: 61 | JZA59: 61 | JZE59: 61 | JZI59: 61 | JZM59: 61 | JZQ59: 61 | JZU59: 61 | JZY59: 61 | KAC59: 61 | KAG59: 61 | KAK59: 61 | KAO59: 61 | KAS59: 61 | KAW59: 61 | KBA59: 61 | KBE59: 61 | KBI59: 61 | KBM59: 61 | KBQ59: 61 | KBU59: 61 | KBY59: 61 | KCC59: 61 | KCG59: 61 | KCK59: 61 | KCO59: 61 | KCS59: 61 | KCW59: 61 | KDA59: 61 | KDE59: 61 | KDI59: 61 | KDM59: 61 | KDQ59: 61 | KDU59: 61 | KDY59: 61 | KEC59: 61 | KEG59: 61 | KEK59: 61 | KEO59: 61 | KES59: 61 | KEW59: 61 | KFA59: 61 | KFE59: 61 | KFI59: 61 | KFM59: 61 | KFQ59: 61 | KFU59: 61 | KFY59: 61 | KGC59: 61 | KGG59: 61 | KGK59: 61 | KGO59: 61 | KGS59: 61 | KGW59: 61 | KHA59: 61 | KHE59: 61 | KHI59: 61 | KHM59: 61 | KHQ59: 61 | KHU59: 61 | KHY59: 61 | KIC59: 61 | KIG59: 61 | KIK59: 61 | KIO59: 61 | KIS59: 61 | KIW59: 61 | KJA59: 61 | KJE59: 61 | KJI59: 61 | KJM59: 61 | KJQ59: 61 | KJU59: 61 | KJY59: 61 | KKC59: 61 | KKG59: 61 | KKK59: 61 | KKO59: 61 | KKS59: 61 | KKW59: 61 | KLA59: 61 | KLE59: 61 | KLI59: 61 | KLM59: 61 | KLQ59: 61 | KLU59: 61 | KLY59: 61 | KMC59: 61 | KMG59: 61 | KMK59: 61 | KMO59: 61 | KMS59: 61 | KMW59: 61 | KNA59: 61 | KNE59: 61 | KNI59: 61 | KNM59: 61 | KNQ59: 61 | KNU59: 61 | KNY59: 61 | KOC59: 61 | KOG59: 61 | KOK59: 61 | KOO59: 61 | KOS59: 61 | KOW59: 61 | KPA59: 61 | KPE59: 61 | KPI59: 61 | KPM59: 61 | KPQ59: 61 | KPU59: 61 | KPY59: 61 | KQC59: 61 | KQG59: 61 | KQK59: 61 | KQO59: 61 | KQS59: 61 | KQW59: 61 | KRA59: 61 | KRE59: 61 | KRI59: 61 | KRM59: 61 | KRQ59: 61 | KRU59: 61 | KRY59: 61 | KSC59: 61 | KSG59: 61 | KSK59: 61 | KSO59: 61 | KSS59: 61 | KSW59: 61 | KTA59: 61 | KTE59: 61 | KTI59: 61 | KTM59: 61 | KTQ59: 61 | KTU59: 61 | KTY59: 61 | KUC59: 61 | KUG59: 61 | KUK59: 61 | KUO59: 61 | KUS59: 61 | KUW59: 61 | KVA59: 61 | KVE59: 61 | KVI59: 61 | KVM59: 61 | KVQ59: 61 | KVU59: 61 | KVY59: 61 | KWC59: 61 | KWG59: 61 | KWK59: 61 | KWO59: 61 | KWS59: 61 | KWW59: 61 | KXA59: 61 | KXE59: 61 | KXI59: 61 | KXM59: 61 | KXQ59: 61 | KXU59: 61 | KXY59: 61 | KYC59: 61 | KYG59: 61 | KYK59: 61 | KYO59: 61 | KYS59: 61 | KYW59: 61 | KZA59: 61 | KZE59: 61 | KZI59: 61 | KZM59: 61 | KZQ59: 61 | KZU59: 61 | KZY59: 61 | LAC59: 61 | LAG59: 61 | LAK59: 61 | LAO59: 61 | LAS59: 61 | LAW59: 61 | LBA59: 61 | LBE59: 61 | LBI59: 61 | LBM59: 61 | LBQ59: 61 | LBU59: 61 | LBY59: 61 | LCC59: 61 | LCG59: 61 | LCK59: 61 | LCO59: 61 | LCS59: 61 | LCW59: 61 | LDA59: 61 | LDE59: 61 | LDI59: 61 | LDM59: 61 | LDQ59: 61 | LDU59: 61 | LDY59: 61 | LEC59: 61 | LEG59: 61 | LEK59: 61 | LEO59: 61 | LES59: 61 | LEW59: 61 | LFA59: 61 | LFE59: 61 | LFI59: 61 | LFM59: 61 | LFQ59: 61 | LFU59: 61 | LFY59: 61 | LGC59: 61 | LGG59: 61 | LGK59: 61 | LGO59: 61 | LGS59: 61 | LGW59: 61 | LHA59: 61 | LHE59: 61 | LHI59: 61 | LHM59: 61 | LHQ59: 61 | LHU59: 61 | LHY59: 61 | LIC59: 61 | LIG59: 61 | LIK59: 61 | LIO59: 61 | LIS59: 61 | LIW59: 61 | LJA59: 61 | LJE59: 61 | LJI59: 61 | LJM59: 61 | LJQ59: 61 | LJU59: 61 | LJY59: 61 | LKC59: 61 | LKG59: 61 | LKK59: 61 | LKO59: 61 | LKS59: 61 | LKW59: 61 | LLA59: 61 | LLE59: 61 | LLI59: 61 | LLM59: 61 | LLQ59: 61 | LLU59: 61 | LLY59: 61 | LMC59: 61 | LMG59: 61 | LMK59: 61 | LMO59: 61 | LMS59: 61 | LMW59: 61 | LNA59: 61 | LNE59: 61 | LNI59: 61 | LNM59: 61 | LNQ59: 61 | LNU59: 61 | LNY59: 61 | LOC59: 61 | LOG59: 61 | LOK59: 61 | LOO59: 61 | LOS59: 61 | LOW59: 61 | LPA59: 61 | LPE59: 61 | LPI59: 61 | LPM59: 61 | LPQ59: 61 | LPU59: 61 | LPY59: 61 | LQC59: 61 | LQG59: 61 | LQK59: 61 | LQO59: 61 | LQS59: 61 | LQW59: 61 | LRA59: 61 | LRE59: 61 | LRI59: 61 | LRM59: 61 | LRQ59: 61 | LRU59: 61 | LRY59: 61 | LSC59: 61 | LSG59: 61 | LSK59: 61 | LSO59: 61 | LSS59: 61 | LSW59: 61 | LTA59: 61 | LTE59: 61 | LTI59: 61 | LTM59: 61 | LTQ59: 61 | LTU59: 61 | LTY59: 61 | LUC59: 61 | LUG59: 61 | LUK59: 61 | LUO59: 61 | LUS59: 61 | LUW59: 61 | LVA59: 61 | LVE59: 61 | LVI59: 61 | LVM59: 61 | LVQ59: 61 | LVU59: 61 | LVY59: 61 | LWC59: 61 | LWG59: 61 | LWK59: 61 | LWO59: 61 | LWS59: 61 | LWW59: 61 | LXA59: 61 | LXE59: 61 | LXI59: 61 | LXM59: 61 | LXQ59: 61 | LXU59: 61 | LXY59: 61 | LYC59: 61 | LYG59: 61 | LYK59: 61 | LYO59: 61 | LYS59: 61 | LYW59: 61 | LZA59: 61 | LZE59: 61 | LZI59: 61 | LZM59: 61 | LZQ59: 61 | LZU59: 61 | LZY59: 61 | MAC59: 61 | MAG59: 61 | MAK59: 61 | MAO59: 61 | MAS59: 61 | MAW59: 61 | MBA59: 61 | MBE59: 61 | MBI59: 61 | MBM59: 61 | MBQ59: 61 | MBU59: 61 | MBY59: 61 | MCC59: 61 | MCG59: 61 | MCK59: 61 | MCO59: 61 | MCS59: 61 | MCW59: 61 | MDA59: 61 | MDE59: 61 | MDI59: 61 | MDM59: 61 | MDQ59: 61 | MDU59: 61 | MDY59: 61 | MEC59: 61 | MEG59: 61 | MEK59: 61 | MEO59: 61 | MES59: 61 | MEW59: 61 | MFA59: 61 | MFE59: 61 | MFI59: 61 | MFM59: 61 | MFQ59: 61 | MFU59: 61 | MFY59: 61 | MGC59: 61 | MGG59: 61 | MGK59: 61 | MGO59: 61 | MGS59: 61 | MGW59: 61 | MHA59: 61 | MHE59: 61 | MHI59: 61 | MHM59: 61 | MHQ59: 61 | MHU59: 61 | MHY59: 61 | MIC59: 61 | MIG59: 61 | MIK59: 61 | MIO59: 61 | MIS59: 61 | MIW59: 61 | MJA59: 61 | MJE59: 61 | MJI59: 61 | MJM59: 61 | MJQ59: 61 | MJU59: 61 | MJY59: 61 | MKC59: 61 | MKG59: 61 | MKK59: 61 | MKO59: 61 | MKS59: 61 | MKW59: 61 | MLA59: 61 | MLE59: 61 | MLI59: 61 | MLM59: 61 | MLQ59: 61 | MLU59: 61 | MLY59: 61 | MMC59: 61 | MMG59: 61 | MMK59: 61 | MMO59: 61 | MMS59: 61 | MMW59: 61 | MNA59: 61 | MNE59: 61 | MNI59: 61 | MNM59: 61 | MNQ59: 61 | MNU59: 61 | MNY59: 61 | MOC59: 61 | MOG59: 61 | MOK59: 61 | MOO59: 61 | MOS59: 61 | MOW59: 61 | MPA59: 61 | MPE59: 61 | MPI59: 61 | MPM59: 61 | MPQ59: 61 | MPU59: 61 | MPY59: 61 | MQC59: 61 | MQG59: 61 | MQK59: 61 | MQO59: 61 | MQS59: 61 | MQW59: 61 | MRA59: 61 | MRE59: 61 | MRI59: 61 | MRM59: 61 | MRQ59: 61 | MRU59: 61 | MRY59: 61 | MSC59: 61 | MSG59: 61 | MSK59: 61 | MSO59: 61 | MSS59: 61 | MSW59: 61 | MTA59: 61 | MTE59: 61 | MTI59: 61 | MTM59: 61 | MTQ59: 61 | MTU59: 61 | MTY59: 61 | MUC59: 61 | MUG59: 61 | MUK59: 61 | MUO59: 61 | MUS59: 61 | MUW59: 61 | MVA59: 61 | MVE59: 61 | MVI59: 61 | MVM59: 61 | MVQ59: 61 | MVU59: 61 | MVY59: 61 | MWC59: 61 | MWG59: 61 | MWK59: 61 | MWO59: 61 | MWS59: 61 | MWW59: 61 | MXA59: 61 | MXE59: 61 | MXI59: 61 | MXM59: 61 | MXQ59: 61 | MXU59: 61 | MXY59: 61 | MYC59: 61 | MYG59: 61 | MYK59: 61 | MYO59: 61 | MYS59: 61 | MYW59: 61 | MZA59: 61 | MZE59: 61 | MZI59: 61 | MZM59: 61 | MZQ59: 61 | MZU59: 61 | MZY59: 61 | NAC59: 61 | NAG59: 61 | NAK59: 61 | NAO59: 61 | NAS59: 61 | NAW59: 61 | NBA59: 61 | NBE59: 61 | NBI59: 61 | NBM59: 61 | NBQ59: 61 | NBU59: 61 | NBY59: 61 | NCC59: 61 | NCG59: 61 | NCK59: 61 | NCO59: 61 | NCS59: 61 | NCW59: 61 | NDA59: 61 | NDE59: 61 | NDI59: 61 | NDM59: 61 | NDQ59: 61 | NDU59: 61 | NDY59: 61 | NEC59: 61 | NEG59: 61 | NEK59: 61 | NEO59: 61 | NES59: 61 | NEW59: 61 | NFA59: 61 | NFE59: 61 | NFI59: 61 | NFM59: 61 | NFQ59: 61 | NFU59: 61 | NFY59: 61 | NGC59: 61 | NGG59: 61 | NGK59: 61 | NGO59: 61 | NGS59: 61 | NGW59: 61 | NHA59: 61 | NHE59: 61 | NHI59: 61 | NHM59: 61 | NHQ59: 61 | NHU59: 61 | NHY59: 61 | NIC59: 61 | NIG59: 61 | NIK59: 61 | NIO59: 61 | NIS59: 61 | NIW59: 61 | NJA59: 61 | NJE59: 61 | NJI59: 61 | NJM59: 61 | NJQ59: 61 | NJU59: 61 | NJY59: 61 | NKC59: 61 | NKG59: 61 | NKK59: 61 | NKO59: 61 | NKS59: 61 | NKW59: 61 | NLA59: 61 | NLE59: 61 | NLI59: 61 | NLM59: 61 | NLQ59: 61 | NLU59: 61 | NLY59: 61 | NMC59: 61 | NMG59: 61 | NMK59: 61 | NMO59: 61 | NMS59: 61 | NMW59: 61 | NNA59: 61 | NNE59: 61 | NNI59: 61 | NNM59: 61 | NNQ59: 61 | NNU59: 61 | NNY59: 61 | NOC59: 61 | NOG59: 61 | NOK59: 61 | NOO59: 61 | NOS59: 61 | NOW59: 61 | NPA59: 61 | NPE59: 61 | NPI59: 61 | NPM59: 61 | NPQ59: 61 | NPU59: 61 | NPY59: 61 | NQC59: 61 | NQG59: 61 | NQK59: 61 | NQO59: 61 | NQS59: 61 | NQW59: 61 | NRA59: 61 | NRE59: 61 | NRI59: 61 | NRM59: 61 | NRQ59: 61 | NRU59: 61 | NRY59: 61 | NSC59: 61 | NSG59: 61 | NSK59: 61 | NSO59: 61 | NSS59: 61 | NSW59: 61 | NTA59: 61 | NTE59: 61 | NTI59: 61 | NTM59: 61 | NTQ59: 61 | NTU59: 61 | NTY59: 61 | NUC59: 61 | NUG59: 61 | NUK59: 61 | NUO59: 61 | NUS59: 61 | NUW59: 61 | NVA59: 61 | NVE59: 61 | NVI59: 61 | NVM59: 61 | NVQ59: 61 | NVU59: 61 | NVY59: 61 | NWC59: 61 | NWG59: 61 | NWK59: 61 | NWO59: 61 | NWS59: 61 | NWW59: 61 | NXA59: 61 | NXE59: 61 | NXI59: 61 | NXM59: 61 | NXQ59: 61 | NXU59: 61 | NXY59: 61 | NYC59: 61 | NYG59: 61 | NYK59: 61 | NYO59: 61 | NYS59: 61 | NYW59: 61 | NZA59: 61 | NZE59: 61 | NZI59: 61 | NZM59: 61 | NZQ59: 61 | NZU59: 61 | NZY59: 61 | OAC59: 61 | OAG59: 61 | OAK59: 61 | OAO59: 61 | OAS59: 61 | OAW59: 61 | OBA59: 61 | OBE59: 61 | OBI59: 61 | OBM59: 61 | OBQ59: 61 | OBU59: 61 | OBY59: 61 | OCC59: 61 | OCG59: 61 | OCK59: 61 | OCO59: 61 | OCS59: 61 | OCW59: 61 | ODA59: 61 | ODE59: 61 | ODI59: 61 | ODM59: 61 | ODQ59: 61 | ODU59: 61 | ODY59: 61 | OEC59: 61 | OEG59: 61 | OEK59: 61 | OEO59: 61 | OES59: 61 | OEW59: 61 | OFA59: 61 | OFE59: 61 | OFI59: 61 | OFM59: 61 | OFQ59: 61 | OFU59: 61 | OFY59: 61 | OGC59: 61 | OGG59: 61 | OGK59: 61 | OGO59: 61 | OGS59: 61 | OGW59: 61 | OHA59: 61 | OHE59: 61 | OHI59: 61 | OHM59: 61 | OHQ59: 61 | OHU59: 61 | OHY59: 61 | OIC59: 61 | OIG59: 61 | OIK59: 61 | OIO59: 61 | OIS59: 61 | OIW59: 61 | OJA59: 61 | OJE59: 61 | OJI59: 61 | OJM59: 61 | OJQ59: 61 | OJU59: 61 | OJY59: 61 | OKC59: 61 | OKG59: 61 | OKK59: 61 | OKO59: 61 | OKS59: 61 | OKW59: 61 | OLA59: 61 | OLE59: 61 | OLI59: 61 | OLM59: 61 | OLQ59: 61 | OLU59: 61 | OLY59: 61 | OMC59: 61 | OMG59: 61 | OMK59: 61 | OMO59: 61 | OMS59: 61 | OMW59: 61 | ONA59: 61 | ONE59: 61 | ONI59: 61 | ONM59: 61 | ONQ59: 61 | ONU59: 61 | ONY59: 61 | OOC59: 61 | OOG59: 61 | OOK59: 61 | OOO59: 61 | OOS59: 61 | OOW59: 61 | OPA59: 61 | OPE59: 61 | OPI59: 61 | OPM59: 61 | OPQ59: 61 | OPU59: 61 | OPY59: 61 | OQC59: 61 | OQG59: 61 | OQK59: 61 | OQO59: 61 | OQS59: 61 | OQW59: 61 | ORA59: 61 | ORE59: 61 | ORI59: 61 | ORM59: 61 | ORQ59: 61 | ORU59: 61 | ORY59: 61 | OSC59: 61 | OSG59: 61 | OSK59: 61 | OSO59: 61 | OSS59: 61 | OSW59: 61 | OTA59: 61 | OTE59: 61 | OTI59: 61 | OTM59: 61 | OTQ59: 61 | OTU59: 61 | OTY59: 61 | OUC59: 61 | OUG59: 61 | OUK59: 61 | OUO59: 61 | OUS59: 61 | OUW59: 61 | OVA59: 61 | OVE59: 61 | OVI59: 61 | OVM59: 61 | OVQ59: 61 | OVU59: 61 | OVY59: 61 | OWC59: 61 | OWG59: 61 | OWK59: 61 | OWO59: 61 | OWS59: 61 | OWW59: 61 | OXA59: 61 | OXE59: 61 | OXI59: 61 | OXM59: 61 | OXQ59: 61 | OXU59: 61 | OXY59: 61 | OYC59: 61 | OYG59: 61 | OYK59: 61 | OYO59: 61 | OYS59: 61 | OYW59: 61 | OZA59: 61 | OZE59: 61 | OZI59: 61 | OZM59: 61 | OZQ59: 61 | OZU59: 61 | OZY59: 61 | PAC59: 61 | PAG59: 61 | PAK59: 61 | PAO59: 61 | PAS59: 61 | PAW59: 61 | PBA59: 61 | PBE59: 61 | PBI59: 61 | PBM59: 61 | PBQ59: 61 | PBU59: 61 | PBY59: 61 | PCC59: 61 | PCG59: 61 | PCK59: 61 | PCO59: 61 | PCS59: 61 | PCW59: 61 | PDA59: 61 | PDE59: 61 | PDI59: 61 | PDM59: 61 | PDQ59: 61 | PDU59: 61 | PDY59: 61 | PEC59: 61 | PEG59: 61 | PEK59: 61 | PEO59: 61 | PES59: 61 | PEW59: 61 | PFA59: 61 | PFE59: 61 | PFI59: 61 | PFM59: 61 | PFQ59: 61 | PFU59: 61 | PFY59: 61 | PGC59: 61 | PGG59: 61 | PGK59: 61 | PGO59: 61 | PGS59: 61 | PGW59: 61 | PHA59: 61 | PHE59: 61 | PHI59: 61 | PHM59: 61 | PHQ59: 61 | PHU59: 61 | PHY59: 61 | PIC59: 61 | PIG59: 61 | PIK59: 61 | PIO59: 61 | PIS59: 61 | PIW59: 61 | PJA59: 61 | PJE59: 61 | PJI59: 61 | PJM59: 61 | PJQ59: 61 | PJU59: 61 | PJY59: 61 | PKC59: 61 | PKG59: 61 | PKK59: 61 | PKO59: 61 | PKS59: 61 | PKW59: 61 | PLA59: 61 | PLE59: 61 | PLI59: 61 | PLM59: 61 | PLQ59: 61 | PLU59: 61 | PLY59: 61 | PMC59: 61 | PMG59: 61 | PMK59: 61 | PMO59: 61 | PMS59: 61 | PMW59: 61 | PNA59: 61 | PNE59: 61 | PNI59: 61 | PNM59: 61 | PNQ59: 61 | PNU59: 61 | PNY59: 61 | POC59: 61 | POG59: 61 | POK59: 61 | POO59: 61 | POS59: 61 | POW59: 61 | PPA59: 61 | PPE59: 61 | PPI59: 61 | PPM59: 61 | PPQ59: 61 | PPU59: 61 | PPY59: 61 | PQC59: 61 | PQG59: 61 | PQK59: 61 | PQO59: 61 | PQS59: 61 | PQW59: 61 | PRA59: 61 | PRE59: 61 | PRI59: 61 | PRM59: 61 | PRQ59: 61 | PRU59: 61 | PRY59: 61 | PSC59: 61 | PSG59: 61 | PSK59: 61 | PSO59: 61 | PSS59: 61 | PSW59: 61 | PTA59: 61 | PTE59: 61 | PTI59: 61 | PTM59: 61 | PTQ59: 61 | PTU59: 61 | PTY59: 61 | PUC59: 61 | PUG59: 61 | PUK59: 61 | PUO59: 61 | PUS59: 61 | PUW59: 61 | PVA59: 61 | PVE59: 61 | PVI59: 61 | PVM59: 61 | PVQ59: 61 | PVU59: 61 | PVY59: 61 | PWC59: 61 | PWG59: 61 | PWK59: 61 | PWO59: 61 | PWS59: 61 | PWW59: 61 | PXA59: 61 | PXE59: 61 | PXI59: 61 | PXM59: 61 | PXQ59: 61 | PXU59: 61 | PXY59: 61 | PYC59: 61 | PYG59: 61 | PYK59: 61 | PYO59: 61 | PYS59: 61 | PYW59: 61 | PZA59: 61 | PZE59: 61 | PZI59: 61 | PZM59: 61 | PZQ59: 61 | PZU59: 61 | PZY59: 61 | QAC59: 61 | QAG59: 61 | QAK59: 61 | QAO59: 61 | QAS59: 61 | QAW59: 61 | QBA59: 61 | QBE59: 61 | QBI59: 61 | QBM59: 61 | QBQ59: 61 | QBU59: 61 | QBY59: 61 | QCC59: 61 | QCG59: 61 | QCK59: 61 | QCO59: 61 | QCS59: 61 | QCW59: 61 | QDA59: 61 | QDE59: 61 | QDI59: 61 | QDM59: 61 | QDQ59: 61 | QDU59: 61 | QDY59: 61 | QEC59: 61 | QEG59: 61 | QEK59: 61 | QEO59: 61 | QES59: 61 | QEW59: 61 | QFA59: 61 | QFE59: 61 | QFI59: 61 | QFM59: 61 | QFQ59: 61 | QFU59: 61 | QFY59: 61 | QGC59: 61 | QGG59: 61 | QGK59: 61 | QGO59: 61 | QGS59: 61 | QGW59: 61 | QHA59: 61 | QHE59: 61 | QHI59: 61 | QHM59: 61 | QHQ59: 61 | QHU59: 61 | QHY59: 61 | QIC59: 61 | QIG59: 61 | QIK59: 61 | QIO59: 61 | QIS59: 61 | QIW59: 61 | QJA59: 61 | QJE59: 61 | QJI59: 61 | QJM59: 61 | QJQ59: 61 | QJU59: 61 | QJY59: 61 | QKC59: 61 | QKG59: 61 | QKK59: 61 | QKO59: 61 | QKS59: 61 | QKW59: 61 | QLA59: 61 | QLE59: 61 | QLI59: 61 | QLM59: 61 | QLQ59: 61 | QLU59: 61 | QLY59: 61 | QMC59: 61 | QMG59: 61 | QMK59: 61 | QMO59: 61 | QMS59: 61 | QMW59: 61 | QNA59: 61 | QNE59: 61 | QNI59: 61 | QNM59: 61 | QNQ59: 61 | QNU59: 61 | QNY59: 61 | QOC59: 61 | QOG59: 61 | QOK59: 61 | QOO59: 61 | QOS59: 61 | QOW59: 61 | QPA59: 61 | QPE59: 61 | QPI59: 61 | QPM59: 61 | QPQ59: 61 | QPU59: 61 | QPY59: 61 | QQC59: 61 | QQG59: 61 | QQK59: 61 | QQO59: 61 | QQS59: 61 | QQW59: 61 | QRA59: 61 | QRE59: 61 | QRI59: 61 | QRM59: 61 | QRQ59: 61 | QRU59: 61 | QRY59: 61 | QSC59: 61 | QSG59: 61 | QSK59: 61 | QSO59: 61 | QSS59: 61 | QSW59: 61 | QTA59: 61 | QTE59: 61 | QTI59: 61 | QTM59: 61 | QTQ59: 61 | QTU59: 61 | QTY59: 61 | QUC59: 61 | QUG59: 61 | QUK59: 61 | QUO59: 61 | QUS59: 61 | QUW59: 61 | QVA59: 61 | QVE59: 61 | QVI59: 61 | QVM59: 61 | QVQ59: 61 | QVU59: 61 | QVY59: 61 | QWC59: 61 | QWG59: 61 | QWK59: 61 | QWO59: 61 | QWS59: 61 | QWW59: 61 | QXA59: 61 | QXE59: 61 | QXI59: 61 | QXM59: 61 | QXQ59: 61 | QXU59: 61 | QXY59: 61 | QYC59: 61 | QYG59: 61 | QYK59: 61 | QYO59: 61 | QYS59: 61 | QYW59: 61 | QZA59: 61 | QZE59: 61 | QZI59: 61 | QZM59: 61 | QZQ59: 61 | QZU59: 61 | QZY59: 61 | RAC59: 61 | RAG59: 61 | RAK59: 61 | RAO59: 61 | RAS59: 61 | RAW59: 61 | RBA59: 61 | RBE59: 61 | RBI59: 61 | RBM59: 61 | RBQ59: 61 | RBU59: 61 | RBY59: 61 | RCC59: 61 | RCG59: 61 | RCK59: 61 | RCO59: 61 | RCS59: 61 | RCW59: 61 | RDA59: 61 | RDE59: 61 | RDI59: 61 | RDM59: 61 | RDQ59: 61 | RDU59: 61 | RDY59: 61 | REC59: 61 | REG59: 61 | REK59: 61 | REO59: 61 | RES59: 61 | REW59: 61 | RFA59: 61 | RFE59: 61 | RFI59: 61 | RFM59: 61 | RFQ59: 61 | RFU59: 61 | RFY59: 61 | RGC59: 61 | RGG59: 61 | RGK59: 61 | RGO59: 61 | RGS59: 61 | RGW59: 61 | RHA59: 61 | RHE59: 61 | RHI59: 61 | RHM59: 61 | RHQ59: 61 | RHU59: 61 | RHY59: 61 | RIC59: 61 | RIG59: 61 | RIK59: 61 | RIO59: 61 | RIS59: 61 | RIW59: 61 | RJA59: 61 | RJE59: 61 | RJI59: 61 | RJM59: 61 | RJQ59: 61 | RJU59: 61 | RJY59: 61 | RKC59: 61 | RKG59: 61 | RKK59: 61 | RKO59: 61 | RKS59: 61 | RKW59: 61 | RLA59: 61 | RLE59: 61 | RLI59: 61 | RLM59: 61 | RLQ59: 61 | RLU59: 61 | RLY59: 61 | RMC59: 61 | RMG59: 61 | RMK59: 61 | RMO59: 61 | RMS59: 61 | RMW59: 61 | RNA59: 61 | RNE59: 61 | RNI59: 61 | RNM59: 61 | RNQ59: 61 | RNU59: 61 | RNY59: 61 | ROC59: 61 | ROG59: 61 | ROK59: 61 | ROO59: 61 | ROS59: 61 | ROW59: 61 | RPA59: 61 | RPE59: 61 | RPI59: 61 | RPM59: 61 | RPQ59: 61 | RPU59: 61 | RPY59: 61 | RQC59: 61 | RQG59: 61 | RQK59: 61 | RQO59: 61 | RQS59: 61 | RQW59: 61 | RRA59: 61 | RRE59: 61 | RRI59: 61 | RRM59: 61 | RRQ59: 61 | RRU59: 61 | RRY59: 61 | RSC59: 61 | RSG59: 61 | RSK59: 61 | RSO59: 61 | RSS59: 61 | RSW59: 61 | RTA59: 61 | RTE59: 61 | RTI59: 61 | RTM59: 61 | RTQ59: 61 | RTU59: 61 | RTY59: 61 | RUC59: 61 | RUG59: 61 | RUK59: 61 | RUO59: 61 | RUS59: 61 | RUW59: 61 | RVA59: 61 | RVE59: 61 | RVI59: 61 | RVM59: 61 | RVQ59: 61 | RVU59: 61 | RVY59: 61 | RWC59: 61 | RWG59: 61 | RWK59: 61 | RWO59: 61 | RWS59: 61 | RWW59: 61 | RXA59: 61 | RXE59: 61 | RXI59: 61 | RXM59: 61 | RXQ59: 61 | RXU59: 61 | RXY59: 61 | RYC59: 61 | RYG59: 61 | RYK59: 61 | RYO59: 61 | RYS59: 61 | RYW59: 61 | RZA59: 61 | RZE59: 61 | RZI59: 61 | RZM59: 61 | RZQ59: 61 | RZU59: 61 | RZY59: 61 | SAC59: 61 | SAG59: 61 | SAK59: 61 | SAO59: 61 | SAS59: 61 | SAW59: 61 | SBA59: 61 | SBE59: 61 | SBI59: 61 | SBM59: 61 | SBQ59: 61 | SBU59: 61 | SBY59: 61 | SCC59: 61 | SCG59: 61 | SCK59: 61 | SCO59: 61 | SCS59: 61 | SCW59: 61 | SDA59: 61 | SDE59: 61 | SDI59: 61 | SDM59: 61 | SDQ59: 61 | SDU59: 61 | SDY59: 61 | SEC59: 61 | SEG59: 61 | SEK59: 61 | SEO59: 61 | SES59: 61 | SEW59: 61 | SFA59: 61 | SFE59: 61 | SFI59: 61 | SFM59: 61 | SFQ59: 61 | SFU59: 61 | SFY59: 61 | SGC59: 61 | SGG59: 61 | SGK59: 61 | SGO59: 61 | SGS59: 61 | SGW59: 61 | SHA59: 61 | SHE59: 61 | SHI59: 61 | SHM59: 61 | SHQ59: 61 | SHU59: 61 | SHY59: 61 | SIC59: 61 | SIG59: 61 | SIK59: 61 | SIO59: 61 | SIS59: 61 | SIW59: 61 | SJA59: 61 | SJE59: 61 | SJI59: 61 | SJM59: 61 | SJQ59: 61 | SJU59: 61 | SJY59: 61 | SKC59: 61 | SKG59: 61 | SKK59: 61 | SKO59: 61 | SKS59: 61 | SKW59: 61 | SLA59: 61 | SLE59: 61 | SLI59: 61 | SLM59: 61 | SLQ59: 61 | SLU59: 61 | SLY59: 61 | SMC59: 61 | SMG59: 61 | SMK59: 61 | SMO59: 61 | SMS59: 61 | SMW59: 61 | SNA59: 61 | SNE59: 61 | SNI59: 61 | SNM59: 61 | SNQ59: 61 | SNU59: 61 | SNY59: 61 | SOC59: 61 | SOG59: 61 | SOK59: 61 | SOO59: 61 | SOS59: 61 | SOW59: 61 | SPA59: 61 | SPE59: 61 | SPI59: 61 | SPM59: 61 | SPQ59: 61 | SPU59: 61 | SPY59: 61 | SQC59: 61 | SQG59: 61 | SQK59: 61 | SQO59: 61 | SQS59: 61 | SQW59: 61 | SRA59: 61 | SRE59: 61 | SRI59: 61 | SRM59: 61 | SRQ59: 61 | SRU59: 61 | SRY59: 61 | SSC59: 61 | SSG59: 61 | SSK59: 61 | SSO59: 61 | SSS59: 61 | SSW59: 61 | STA59: 61 | STE59: 61 | STI59: 61 | STM59: 61 | STQ59: 61 | STU59: 61 | STY59: 61 | SUC59: 61 | SUG59: 61 | SUK59: 61 | SUO59: 61 | SUS59: 61 | SUW59: 61 | SVA59: 61 | SVE59: 61 | SVI59: 61 | SVM59: 61 | SVQ59: 61 | SVU59: 61 | SVY59: 61 | SWC59: 61 | SWG59: 61 | SWK59: 61 | SWO59: 61 | SWS59: 61 | SWW59: 61 | SXA59: 61 | SXE59: 61 | SXI59: 61 | SXM59: 61 | SXQ59: 61 | SXU59: 61 | SXY59: 61 | SYC59: 61 | SYG59: 61 | SYK59: 61 | SYO59: 61 | SYS59: 61 | SYW59: 61 | SZA59: 61 | SZE59: 61 | SZI59: 61 | SZM59: 61 | SZQ59: 61 | SZU59: 61 | SZY59: 61 | TAC59: 61 | TAG59: 61 | TAK59: 61 | TAO59: 61 | TAS59: 61 | TAW59: 61 | TBA59: 61 | TBE59: 61 | TBI59: 61 | TBM59: 61 | TBQ59: 61 | TBU59: 61 | TBY59: 61 | TCC59: 61 | TCG59: 61 | TCK59: 61 | TCO59: 61 | TCS59: 61 | TCW59: 61 | TDA59: 61 | TDE59: 61 | TDI59: 61 | TDM59: 61 | TDQ59: 61 | TDU59: 61 | TDY59: 61 | TEC59: 61 | TEG59: 61 | TEK59: 61 | TEO59: 61 | TES59: 61 | TEW59: 61 | TFA59: 61 | TFE59: 61 | TFI59: 61 | TFM59: 61 | TFQ59: 61 | TFU59: 61 | TFY59: 61 | TGC59: 61 | TGG59: 61 | TGK59: 61 | TGO59: 61 | TGS59: 61 | TGW59: 61 | THA59: 61 | THE59: 61 | THI59: 61 | THM59: 61 | THQ59: 61 | THU59: 61 | THY59: 61 | TIC59: 61 | TIG59: 61 | TIK59: 61 | TIO59: 61 | TIS59: 61 | TIW59: 61 | TJA59: 61 | TJE59: 61 | TJI59: 61 | TJM59: 61 | TJQ59: 61 | TJU59: 61 | TJY59: 61 | TKC59: 61 | TKG59: 61 | TKK59: 61 | TKO59: 61 | TKS59: 61 | TKW59: 61 | TLA59: 61 | TLE59: 61 | TLI59: 61 | TLM59: 61 | TLQ59: 61 | TLU59: 61 | TLY59: 61 | TMC59: 61 | TMG59: 61 | TMK59: 61 | TMO59: 61 | TMS59: 61 | TMW59: 61 | TNA59: 61 | TNE59: 61 | TNI59: 61 | TNM59: 61 | TNQ59: 61 | TNU59: 61 | TNY59: 61 | TOC59: 61 | TOG59: 61 | TOK59: 61 | TOO59: 61 | TOS59: 61 | TOW59: 61 | TPA59: 61 | TPE59: 61 | TPI59: 61 | TPM59: 61 | TPQ59: 61 | TPU59: 61 | TPY59: 61 | TQC59: 61 | TQG59: 61 | TQK59: 61 | TQO59: 61 | TQS59: 61 | TQW59: 61 | TRA59: 61 | TRE59: 61 | TRI59: 61 | TRM59: 61 | TRQ59: 61 | TRU59: 61 | TRY59: 61 | TSC59: 61 | TSG59: 61 | TSK59: 61 | TSO59: 61 | TSS59: 61 | TSW59: 61 | TTA59: 61 | TTE59: 61 | TTI59: 61 | TTM59: 61 | TTQ59: 61 | TTU59: 61 | TTY59: 61 | TUC59: 61 | TUG59: 61 | TUK59: 61 | TUO59: 61 | TUS59: 61 | TUW59: 61 | TVA59: 61 | TVE59: 61 | TVI59: 61 | TVM59: 61 | TVQ59: 61 | TVU59: 61 | TVY59: 61 | TWC59: 61 | TWG59: 61 | TWK59: 61 | TWO59: 61 | TWS59: 61 | TWW59: 61 | TXA59: 61 | TXE59: 61 | TXI59: 61 | TXM59: 61 | TXQ59: 61 | TXU59: 61 | TXY59: 61 | TYC59: 61 | TYG59: 61 | TYK59: 61 | TYO59: 61 | TYS59: 61 | TYW59: 61 | TZA59: 61 | TZE59: 61 | TZI59: 61 | TZM59: 61 | TZQ59: 61 | TZU59: 61 | TZY59: 61 | UAC59: 61 | UAG59: 61 | UAK59: 61 | UAO59: 61 | UAS59: 61 | UAW59: 61 | UBA59: 61 | UBE59: 61 | UBI59: 61 | UBM59: 61 | UBQ59: 61 | UBU59: 61 | UBY59: 61 | UCC59: 61 | UCG59: 61 | UCK59: 61 | UCO59: 61 | UCS59: 61 | UCW59: 61 | UDA59: 61 | UDE59: 61 | UDI59: 61 | UDM59: 61 | UDQ59: 61 | UDU59: 61 | UDY59: 61 | UEC59: 61 | UEG59: 61 | UEK59: 61 | UEO59: 61 | UES59: 61 | UEW59: 61 | UFA59: 61 | UFE59: 61 | UFI59: 61 | UFM59: 61 | UFQ59: 61 | UFU59: 61 | UFY59: 61 | UGC59: 61 | UGG59: 61 | UGK59: 61 | UGO59: 61 | UGS59: 61 | UGW59: 61 | UHA59: 61 | UHE59: 61 | UHI59: 61 | UHM59: 61 | UHQ59: 61 | UHU59: 61 | UHY59: 61 | UIC59: 61 | UIG59: 61 | UIK59: 61 | UIO59: 61 | UIS59: 61 | UIW59: 61 | UJA59: 61 | UJE59: 61 | UJI59: 61 | UJM59: 61 | UJQ59: 61 | UJU59: 61 | UJY59: 61 | UKC59: 61 | UKG59: 61 | UKK59: 61 | UKO59: 61 | UKS59: 61 | UKW59: 61 | ULA59: 61 | ULE59: 61 | ULI59: 61 | ULM59: 61 | ULQ59: 61 | ULU59: 61 | ULY59: 61 | UMC59: 61 | UMG59: 61 | UMK59: 61 | UMO59: 61 | UMS59: 61 | UMW59: 61 | UNA59: 61 | UNE59: 61 | UNI59: 61 | UNM59: 61 | UNQ59: 61 | UNU59: 61 | UNY59: 61 | UOC59: 61 | UOG59: 61 | UOK59: 61 | UOO59: 61 | UOS59: 61 | UOW59: 61 | UPA59: 61 | UPE59: 61 | UPI59: 61 | UPM59: 61 | UPQ59: 61 | UPU59: 61 | UPY59: 61 | UQC59: 61 | UQG59: 61 | UQK59: 61 | UQO59: 61 | UQS59: 61 | UQW59: 61 | URA59: 61 | URE59: 61 | URI59: 61 | URM59: 61 | URQ59: 61 | URU59: 61 | URY59: 61 | USC59: 61 | USG59: 61 | USK59: 61 | USO59: 61 | USS59: 61 | USW59: 61 | UTA59: 61 | UTE59: 61 | UTI59: 61 | UTM59: 61 | UTQ59: 61 | UTU59: 61 | UTY59: 61 | UUC59: 61 | UUG59: 61 | UUK59: 61 | UUO59: 61 | UUS59: 61 | UUW59: 61 | UVA59: 61 | UVE59: 61 | UVI59: 61 | UVM59: 61 | UVQ59: 61 | UVU59: 61 | UVY59: 61 | UWC59: 61 | UWG59: 61 | UWK59: 61 | UWO59: 61 | UWS59: 61 | UWW59: 61 | UXA59: 61 | UXE59: 61 | UXI59: 61 | UXM59: 61 | UXQ59: 61 | UXU59: 61 | UXY59: 61 | UYC59: 61 | UYG59: 61 | UYK59: 61 | UYO59: 61 | UYS59: 61 | UYW59: 61 | UZA59: 61 | UZE59: 61 | UZI59: 61 | UZM59: 61 | UZQ59: 61 | UZU59: 61 | UZY59: 61 | VAC59: 61 | VAG59: 61 | VAK59: 61 | VAO59: 61 | VAS59: 61 | VAW59: 61 | VBA59: 61 | VBE59: 61 | VBI59: 61 | VBM59: 61 | VBQ59: 61 | VBU59: 61 | VBY59: 61 | VCC59: 61 | VCG59: 61 | VCK59: 61 | VCO59: 61 | VCS59: 61 | VCW59: 61 | VDA59: 61 | VDE59: 61 | VDI59: 61 | VDM59: 61 | VDQ59: 61 | VDU59: 61 | VDY59: 61 | VEC59: 61 | VEG59: 61 | VEK59: 61 | VEO59: 61 | VES59: 61 | VEW59: 61 | VFA59: 61 | VFE59: 61 | VFI59: 61 | VFM59: 61 | VFQ59: 61 | VFU59: 61 | VFY59: 61 | VGC59: 61 | VGG59: 61 | VGK59: 61 | VGO59: 61 | VGS59: 61 | VGW59: 61 | VHA59: 61 | VHE59: 61 | VHI59: 61 | VHM59: 61 | VHQ59: 61 | VHU59: 61 | VHY59: 61 | VIC59: 61 | VIG59: 61 | VIK59: 61 | VIO59: 61 | VIS59: 61 | VIW59: 61 | VJA59: 61 | VJE59: 61 | VJI59: 61 | VJM59: 61 | VJQ59: 61 | VJU59: 61 | VJY59: 61 | VKC59: 61 | VKG59: 61 | VKK59: 61 | VKO59: 61 | VKS59: 61 | VKW59: 61 | VLA59: 61 | VLE59: 61 | VLI59: 61 | VLM59: 61 | VLQ59: 61 | VLU59: 61 | VLY59: 61 | VMC59: 61 | VMG59: 61 | VMK59: 61 | VMO59: 61 | VMS59: 61 | VMW59: 61 | VNA59: 61 | VNE59: 61 | VNI59: 61 | VNM59: 61 | VNQ59: 61 | VNU59: 61 | VNY59: 61 | VOC59: 61 | VOG59: 61 | VOK59: 61 | VOO59: 61 | VOS59: 61 | VOW59: 61 | VPA59: 61 | VPE59: 61 | VPI59: 61 | VPM59: 61 | VPQ59: 61 | VPU59: 61 | VPY59: 61 | VQC59: 61 | VQG59: 61 | VQK59: 61 | VQO59: 61 | VQS59: 61 | VQW59: 61 | VRA59: 61 | VRE59: 61 | VRI59: 61 | VRM59: 61 | VRQ59: 61 | VRU59: 61 | VRY59: 61 | VSC59: 61 | VSG59: 61 | VSK59: 61 | VSO59: 61 | VSS59: 61 | VSW59: 61 | VTA59: 61 | VTE59: 61 | VTI59: 61 | VTM59: 61 | VTQ59: 61 | VTU59: 61 | VTY59: 61 | VUC59: 61 | VUG59: 61 | VUK59: 61 | VUO59: 61 | VUS59: 61 | VUW59: 61 | VVA59: 61 | VVE59: 61 | VVI59: 61 | VVM59: 61 | VVQ59: 61 | VVU59: 61 | VVY59: 61 | VWC59: 61 | VWG59: 61 | VWK59: 61 | VWO59: 61 | VWS59: 61 | VWW59: 61 | VXA59: 61 | VXE59: 61 | VXI59: 61 | VXM59: 61 | VXQ59: 61 | VXU59: 61 | VXY59: 61 | VYC59: 61 | VYG59: 61 | VYK59: 61 | VYO59: 61 | VYS59: 61 | VYW59: 61 | VZA59: 61 | VZE59: 61 | VZI59: 61 | VZM59: 61 | VZQ59: 61 | VZU59: 61 | VZY59: 61 | WAC59: 61 | WAG59: 61 | WAK59: 61 | WAO59: 61 | WAS59: 61 | WAW59: 61 | WBA59: 61 | WBE59: 61 | WBI59: 61 | WBM59: 61 | WBQ59: 61 | WBU59: 61 | WBY59: 61 | WCC59: 61 | WCG59: 61 | WCK59: 61 | WCO59: 61 | WCS59: 61 | WCW59: 61 | WDA59: 61 | WDE59: 61 | WDI59: 61 | WDM59: 61 | WDQ59: 61 | WDU59: 61 | WDY59: 61 | WEC59: 61 | WEG59: 61 | WEK59: 61 | WEO59: 61 | WES59: 61 | WEW59: 61 | WFA59: 61 | WFE59: 61 | WFI59: 61 | WFM59: 61 | WFQ59: 61 | WFU59: 61 | WFY59: 61 | WGC59: 61 | WGG59: 61 | WGK59: 61 | WGO59: 61 | WGS59: 61 | WGW59: 61 | WHA59: 61 | WHE59: 61 | WHI59: 61 | WHM59: 61 | WHQ59: 61 | WHU59: 61 | WHY59: 61 | WIC59: 61 | WIG59: 61 | WIK59: 61 | WIO59: 61 | WIS59: 61 | WIW59: 61 | WJA59: 61 | WJE59: 61 | WJI59: 61 | WJM59: 61 | WJQ59: 61 | WJU59: 61 | WJY59: 61 | WKC59: 61 | WKG59: 61 | WKK59: 61 | WKO59: 61 | WKS59: 61 | WKW59: 61 | WLA59: 61 | WLE59: 61 | WLI59: 61 | WLM59: 61 | WLQ59: 61 | WLU59: 61 | WLY59: 61 | WMC59: 61 | WMG59: 61 | WMK59: 61 | WMO59: 61 | WMS59: 61 | WMW59: 61 | WNA59: 61 | WNE59: 61 | WNI59: 61 | WNM59: 61 | WNQ59: 61 | WNU59: 61 | WNY59: 61 | WOC59: 61 | WOG59: 61 | WOK59: 61 | WOO59: 61 | WOS59: 61 | WOW59: 61 | WPA59: 61 | WPE59: 61 | WPI59: 61 | WPM59: 61 | WPQ59: 61 | WPU59: 61 | WPY59: 61 | WQC59: 61 | WQG59: 61 | WQK59: 61 | WQO59: 61 | WQS59: 61 | WQW59: 61 | WRA59: 61 | WRE59: 61 | WRI59: 61 | WRM59: 61 | WRQ59: 61 | WRU59: 61 | WRY59: 61 | WSC59: 61 | WSG59: 61 | WSK59: 61 | WSO59: 61 | WSS59: 61 | WSW59: 61 | WTA59: 61 | WTE59: 61 | WTI59: 61 | WTM59: 61 | WTQ59: 61 | WTU59: 61 | WTY59: 61 | WUC59: 61 | WUG59: 61 | WUK59: 61 | WUO59: 61 | WUS59: 61 | WUW59: 61 | WVA59: 61 | WVE59: 61 | WVI59: 61 | WVM59: 61 | WVQ59: 61 | WVU59: 61 | WVY59: 61 | WWC59: 61 | WWG59: 61 | WWK59: 61 | WWO59: 61 | WWS59: 61 | WWW59: 61 | WXA59: 61 | WXE59: 61 | WXI59: 61 | WXM59: 61 | WXQ59: 61 | WXU59: 61 | WXY59: 61 | WYC59: 61 | WYG59: 61 | WYK59: 61 | WYO59: 61 | WYS59: 61 | WYW59: 61 | WZA59: 61 | WZE59: 61 | WZI59: 61 | WZM59: 61 | WZQ59: 61 | WZU59: 61 | WZY59: 61 | XAC59: 61 | XAG59: 61 | XAK59: 61 | XAO59: 61 | XAS59: 61 | XAW59: 61 | XBA59: 61 | XBE59: 61 | XBI59: 61 | XBM59: 61 | XBQ59: 61 | XBU59: 61 | XBY59: 61 | XCC59: 61 | XCG59: 61 | XCK59: 61 | XCO59: 61 | XCS59: 61 | XCW59: 61 | XDA59: 61 | XDE59: 61 | XDI59: 61 | XDM59: 61 | XDQ59: 61 | XDU59: 61 | XDY59: 61 | XEC59: 61 | XEG59: 61 | XEK59: 61 | XEO59: 61 | XES59: 61 | XEW59: 61 | XFA59: 61
A60: 7200 | B60: Acciones y Participaciones de Capital | E60: 0 | F60: ='PRESUP. EGRESOS BASE MENSUAL'!$C$336 -> 0
A61: 7300 | B61: Compra de Títulos y Valores | E61: 0 | F61: ='PRESUP. EGRESOS BASE MENSUAL'!$C$346 -> 0
A62: 7400 | B62: Conseción de Préstamos | E62: 0 | F62: ='PRESUP. EGRESOS BASE MENSUAL'!$C$353 -> 0 | I62: 62 | M62: 62 | Q62: 62 | U62: 62 | Y62: 62 | AC62: 62 | AG62: 62 | AK62: 62 | AO62: 62 | AS62: 62 | AW62: 62 | BA62: 62 | BE62: 62 | BI62: 62 | BM62: 62 | BQ62: 62 | BU62: 62 | BY62: 62 | CC62: 62 | CG62: 62 | CK62: 62 | CO62: 62 | CS62: 62 | CW62: 62 | DA62: 62 | DE62: 62 | DI62: 62 | DM62: 62 | DQ62: 62 | DU62: 62 | DY62: 62 | EC62: 62 | EG62: 62 | EK62: 62 | EO62: 62 | ES62: 62 | EW62: 62 | FA62: 62 | FE62: 62 | FI62: 62 | FM62: 62 | FQ62: 62 | FU62: 62 | FY62: 62 | GC62: 62 | GG62: 62 | GK62: 62 | GO62: 62 | GS62: 62 | GW62: 62 | HA62: 62 | HE62: 62 | HI62: 62 | HM62: 62 | HQ62: 62 | HU62: 62 | HY62: 62 | IC62: 62 | IG62: 62 | IK62: 62 | IO62: 62 | IS62: 62 | IW62: 62 | JA62: 62 | JE62: 62 | JI62: 62 | JM62: 62 | JQ62: 62 | JU62: 62 | JY62: 62 | KC62: 62 | KG62: 62 | KK62: 62 | KO62: 62 | KS62: 62 | KW62: 62 | LA62: 62 | LE62: 62 | LI62: 62 | LM62: 62 | LQ62: 62 | LU62: 62 | LY62: 62 | MC62: 62 | MG62: 62 | MK62: 62 | MO62: 62 | MS62: 62 | MW62: 62 | NA62: 62 | NE62: 62 | NI62: 62 | NM62: 62 | NQ62: 62 | NU62: 62 | NY62: 62 | OC62: 62 | OG62: 62 | OK62: 62 | OO62: 62 | OS62: 62 | OW62: 62 | PA62: 62 | PE62: 62 | PI62: 62 | PM62: 62 | PQ62: 62 | PU62: 62 | PY62: 62 | QC62: 62 | QG62: 62 | QK62: 62 | QO62: 62 | QS62: 62 | QW62: 62 | RA62: 62 | RE62: 62 | RI62: 62 | RM62: 62 | RQ62: 62 | RU62: 62 | RY62: 62 | SC62: 62 | SG62: 62 | SK62: 62 | SO62: 62 | SS62: 62 | SW62: 62 | TA62: 62 | TE62: 62 | TI62: 62 | TM62: 62 | TQ62: 62 | TU62: 62 | TY62: 62 | UC62: 62 | UG62: 62 | UK62: 62 | UO62: 62 | US62: 62 | UW62: 62 | VA62: 62 | VE62: 62 | VI62: 62 | VM62: 62 | VQ62: 62 | VU62: 62 | VY62: 62 | WC62: 62 | WG62: 62 | WK62: 62 | WO62: 62 | WS62: 62 | WW62: 62 | XA62: 62 | XE62: 62 | XI62: 62 | XM62: 62 | XQ62: 62 | XU62: 62 | XY62: 62 | YC62: 62 | YG62: 62 | YK62: 62 | YO62: 62 | YS62: 62 | YW62: 62 | ZA62: 62 | ZE62: 62 | ZI62: 62 | ZM62: 62 | ZQ62: 62 | ZU62: 62 | ZY62: 62 | AAC62: 62 | AAG62: 62 | AAK62: 62 | AAO62: 62 | AAS62: 62 | AAW62: 62 | ABA62: 62 | ABE62: 62 | ABI62: 62 | ABM62: 62 | ABQ62: 62 | ABU62: 62 | ABY62: 62 | ACC62: 62 | ACG62: 62 | ACK62: 62 | ACO62: 62 | ACS62: 62 | ACW62: 62 | ADA62: 62 | ADE62: 62 | ADI62: 62 | ADM62: 62 | ADQ62: 62 | ADU62: 62 | ADY62: 62 | AEC62: 62 | AEG62: 62 | AEK62: 62 | AEO62: 62 | AES62: 62 | AEW62: 62 | AFA62: 62 | AFE62: 62 | AFI62: 62 | AFM62: 62 | AFQ62: 62 | AFU62: 62 | AFY62: 62 | AGC62: 62 | AGG62: 62 | AGK62: 62 | AGO62: 62 | AGS62: 62 | AGW62: 62 | AHA62: 62 | AHE62: 62 | AHI62: 62 | AHM62: 62 | AHQ62: 62 | AHU62: 62 | AHY62: 62 | AIC62: 62 | AIG62: 62 | AIK62: 62 | AIO62: 62 | AIS62: 62 | AIW62: 62 | AJA62: 62 | AJE62: 62 | AJI62: 62 | AJM62: 62 | AJQ62: 62 | AJU62: 62 | AJY62: 62 | AKC62: 62 | AKG62: 62 | AKK62: 62 | AKO62: 62 | AKS62: 62 | AKW62: 62 | ALA62: 62 | ALE62: 62 | ALI62: 62 | ALM62: 62 | ALQ62: 62 | ALU62: 62 | ALY62: 62 | AMC62: 62 | AMG62: 62 | AMK62: 62 | AMO62: 62 | AMS62: 62 | AMW62: 62 | ANA62: 62 | ANE62: 62 | ANI62: 62 | ANM62: 62 | ANQ62: 62 | ANU62: 62 | ANY62: 62 | AOC62: 62 | AOG62: 62 | AOK62: 62 | AOO62: 62 | AOS62: 62 | AOW62: 62 | APA62: 62 | APE62: 62 | API62: 62 | APM62: 62 | APQ62: 62 | APU62: 62 | APY62: 62 | AQC62: 62 | AQG62: 62 | AQK62: 62 | AQO62: 62 | AQS62: 62 | AQW62: 62 | ARA62: 62 | ARE62: 62 | ARI62: 62 | ARM62: 62 | ARQ62: 62 | ARU62: 62 | ARY62: 62 | ASC62: 62 | ASG62: 62 | ASK62: 62 | ASO62: 62 | ASS62: 62 | ASW62: 62 | ATA62: 62 | ATE62: 62 | ATI62: 62 | ATM62: 62 | ATQ62: 62 | ATU62: 62 | ATY62: 62 | AUC62: 62 | AUG62: 62 | AUK62: 62 | AUO62: 62 | AUS62: 62 | AUW62: 62 | AVA62: 62 | AVE62: 62 | AVI62: 62 | AVM62: 62 | AVQ62: 62 | AVU62: 62 | AVY62: 62 | AWC62: 62 | AWG62: 62 | AWK62: 62 | AWO62: 62 | AWS62: 62 | AWW62: 62 | AXA62: 62 | AXE62: 62 | AXI62: 62 | AXM62: 62 | AXQ62: 62 | AXU62: 62 | AXY62: 62 | AYC62: 62 | AYG62: 62 | AYK62: 62 | AYO62: 62 | AYS62: 62 | AYW62: 62 | AZA62: 62 | AZE62: 62 | AZI62: 62 | AZM62: 62 | AZQ62: 62 | AZU62: 62 | AZY62: 62 | BAC62: 62 | BAG62: 62 | BAK62: 62 | BAO62: 62 | BAS62: 62 | BAW62: 62 | BBA62: 62 | BBE62: 62 | BBI62: 62 | BBM62: 62 | BBQ62: 62 | BBU62: 62 | BBY62: 62 | BCC62: 62 | BCG62: 62 | BCK62: 62 | BCO62: 62 | BCS62: 62 | BCW62: 62 | BDA62: 62 | BDE62: 62 | BDI62: 62 | BDM62: 62 | BDQ62: 62 | BDU62: 62 | BDY62: 62 | BEC62: 62 | BEG62: 62 | BEK62: 62 | BEO62: 62 | BES62: 62 | BEW62: 62 | BFA62: 62 | BFE62: 62 | BFI62: 62 | BFM62: 62 | BFQ62: 62 | BFU62: 62 | BFY62: 62 | BGC62: 62 | BGG62: 62 | BGK62: 62 | BGO62: 62 | BGS62: 62 | BGW62: 62 | BHA62: 62 | BHE62: 62 | BHI62: 62 | BHM62: 62 | BHQ62: 62 | BHU62: 62 | BHY62: 62 | BIC62: 62 | BIG62: 62 | BIK62: 62 | BIO62: 62 | BIS62: 62 | BIW62: 62 | BJA62: 62 | BJE62: 62 | BJI62: 62 | BJM62: 62 | BJQ62: 62 | BJU62: 62 | BJY62: 62 | BKC62: 62 | BKG62: 62 | BKK62: 62 | BKO62: 62 | BKS62: 62 | BKW62: 62 | BLA62: 62 | BLE62: 62 | BLI62: 62 | BLM62: 62 | BLQ62: 62 | BLU62: 62 | BLY62: 62 | BMC62: 62 | BMG62: 62 | BMK62: 62 | BMO62: 62 | BMS62: 62 | BMW62: 62 | BNA62: 62 | BNE62: 62 | BNI62: 62 | BNM62: 62 | BNQ62: 62 | BNU62: 62 | BNY62: 62 | BOC62: 62 | BOG62: 62 | BOK62: 62 | BOO62: 62 | BOS62: 62 | BOW62: 62 | BPA62: 62 | BPE62: 62 | BPI62: 62 | BPM62: 62 | BPQ62: 62 | BPU62: 62 | BPY62: 62 | BQC62: 62 | BQG62: 62 | BQK62: 62 | BQO62: 62 | BQS62: 62 | BQW62: 62 | BRA62: 62 | BRE62: 62 | BRI62: 62 | BRM62: 62 | BRQ62: 62 | BRU62: 62 | BRY62: 62 | BSC62: 62 | BSG62: 62 | BSK62: 62 | BSO62: 62 | BSS62: 62 | BSW62: 62 | BTA62: 62 | BTE62: 62 | BTI62: 62 | BTM62: 62 | BTQ62: 62 | BTU62: 62 | BTY62: 62 | BUC62: 62 | BUG62: 62 | BUK62: 62 | BUO62: 62 | BUS62: 62 | BUW62: 62 | BVA62: 62 | BVE62: 62 | BVI62: 62 | BVM62: 62 | BVQ62: 62 | BVU62: 62 | BVY62: 62 | BWC62: 62 | BWG62: 62 | BWK62: 62 | BWO62: 62 | BWS62: 62 | BWW62: 62 | BXA62: 62 | BXE62: 62 | BXI62: 62 | BXM62: 62 | BXQ62: 62 | BXU62: 62 | BXY62: 62 | BYC62: 62 | BYG62: 62 | BYK62: 62 | BYO62: 62 | BYS62: 62 | BYW62: 62 | BZA62: 62 | BZE62: 62 | BZI62: 62 | BZM62: 62 | BZQ62: 62 | BZU62: 62 | BZY62: 62 | CAC62: 62 | CAG62: 62 | CAK62: 62 | CAO62: 62 | CAS62: 62 | CAW62: 62 | CBA62: 62 | CBE62: 62 | CBI62: 62 | CBM62: 62 | CBQ62: 62 | CBU62: 62 | CBY62: 62 | CCC62: 62 | CCG62: 62 | CCK62: 62 | CCO62: 62 | CCS62: 62 | CCW62: 62 | CDA62: 62 | CDE62: 62 | CDI62: 62 | CDM62: 62 | CDQ62: 62 | CDU62: 62 | CDY62: 62 | CEC62: 62 | CEG62: 62 | CEK62: 62 | CEO62: 62 | CES62: 62 | CEW62: 62 | CFA62: 62 | CFE62: 62 | CFI62: 62 | CFM62: 62 | CFQ62: 62 | CFU62: 62 | CFY62: 62 | CGC62: 62 | CGG62: 62 | CGK62: 62 | CGO62: 62 | CGS62: 62 | CGW62: 62 | CHA62: 62 | CHE62: 62 | CHI62: 62 | CHM62: 62 | CHQ62: 62 | CHU62: 62 | CHY62: 62 | CIC62: 62 | CIG62: 62 | CIK62: 62 | CIO62: 62 | CIS62: 62 | CIW62: 62 | CJA62: 62 | CJE62: 62 | CJI62: 62 | CJM62: 62 | CJQ62: 62 | CJU62: 62 | CJY62: 62 | CKC62: 62 | CKG62: 62 | CKK62: 62 | CKO62: 62 | CKS62: 62 | CKW62: 62 | CLA62: 62 | CLE62: 62 | CLI62: 62 | CLM62: 62 | CLQ62: 62 | CLU62: 62 | CLY62: 62 | CMC62: 62 | CMG62: 62 | CMK62: 62 | CMO62: 62 | CMS62: 62 | CMW62: 62 | CNA62: 62 | CNE62: 62 | CNI62: 62 | CNM62: 62 | CNQ62: 62 | CNU62: 62 | CNY62: 62 | COC62: 62 | COG62: 62 | COK62: 62 | COO62: 62 | COS62: 62 | COW62: 62 | CPA62: 62 | CPE62: 62 | CPI62: 62 | CPM62: 62 | CPQ62: 62 | CPU62: 62 | CPY62: 62 | CQC62: 62 | CQG62: 62 | CQK62: 62 | CQO62: 62 | CQS62: 62 | CQW62: 62 | CRA62: 62 | CRE62: 62 | CRI62: 62 | CRM62: 62 | CRQ62: 62 | CRU62: 62 | CRY62: 62 | CSC62: 62 | CSG62: 62 | CSK62: 62 | CSO62: 62 | CSS62: 62 | CSW62: 62 | CTA62: 62 | CTE62: 62 | CTI62: 62 | CTM62: 62 | CTQ62: 62 | CTU62: 62 | CTY62: 62 | CUC62: 62 | CUG62: 62 | CUK62: 62 | CUO62: 62 | CUS62: 62 | CUW62: 62 | CVA62: 62 | CVE62: 62 | CVI62: 62 | CVM62: 62 | CVQ62: 62 | CVU62: 62 | CVY62: 62 | CWC62: 62 | CWG62: 62 | CWK62: 62 | CWO62: 62 | CWS62: 62 | CWW62: 62 | CXA62: 62 | CXE62: 62 | CXI62: 62 | CXM62: 62 | CXQ62: 62 | CXU62: 62 | CXY62: 62 | CYC62: 62 | CYG62: 62 | CYK62: 62 | CYO62: 62 | CYS62: 62 | CYW62: 62 | CZA62: 62 | CZE62: 62 | CZI62: 62 | CZM62: 62 | CZQ62: 62 | CZU62: 62 | CZY62: 62 | DAC62: 62 | DAG62: 62 | DAK62: 62 | DAO62: 62 | DAS62: 62 | DAW62: 62 | DBA62: 62 | DBE62: 62 | DBI62: 62 | DBM62: 62 | DBQ62: 62 | DBU62: 62 | DBY62: 62 | DCC62: 62 | DCG62: 62 | DCK62: 62 | DCO62: 62 | DCS62: 62 | DCW62: 62 | DDA62: 62 | DDE62: 62 | DDI62: 62 | DDM62: 62 | DDQ62: 62 | DDU62: 62 | DDY62: 62 | DEC62: 62 | DEG62: 62 | DEK62: 62 | DEO62: 62 | DES62: 62 | DEW62: 62 | DFA62: 62 | DFE62: 62 | DFI62: 62 | DFM62: 62 | DFQ62: 62 | DFU62: 62 | DFY62: 62 | DGC62: 62 | DGG62: 62 | DGK62: 62 | DGO62: 62 | DGS62: 62 | DGW62: 62 | DHA62: 62 | DHE62: 62 | DHI62: 62 | DHM62: 62 | DHQ62: 62 | DHU62: 62 | DHY62: 62 | DIC62: 62 | DIG62: 62 | DIK62: 62 | DIO62: 62 | DIS62: 62 | DIW62: 62 | DJA62: 62 | DJE62: 62 | DJI62: 62 | DJM62: 62 | DJQ62: 62 | DJU62: 62 | DJY62: 62 | DKC62: 62 | DKG62: 62 | DKK62: 62 | DKO62: 62 | DKS62: 62 | DKW62: 62 | DLA62: 62 | DLE62: 62 | DLI62: 62 | DLM62: 62 | DLQ62: 62 | DLU62: 62 | DLY62: 62 | DMC62: 62 | DMG62: 62 | DMK62: 62 | DMO62: 62 | DMS62: 62 | DMW62: 62 | DNA62: 62 | DNE62: 62 | DNI62: 62 | DNM62: 62 | DNQ62: 62 | DNU62: 62 | DNY62: 62 | DOC62: 62 | DOG62: 62 | DOK62: 62 | DOO62: 62 | DOS62: 62 | DOW62: 62 | DPA62: 62 | DPE62: 62 | DPI62: 62 | DPM62: 62 | DPQ62: 62 | DPU62: 62 | DPY62: 62 | DQC62: 62 | DQG62: 62 | DQK62: 62 | DQO62: 62 | DQS62: 62 | DQW62: 62 | DRA62: 62 | DRE62: 62 | DRI62: 62 | DRM62: 62 | DRQ62: 62 | DRU62: 62 | DRY62: 62 | DSC62: 62 | DSG62: 62 | DSK62: 62 | DSO62: 62 | DSS62: 62 | DSW62: 62 | DTA62: 62 | DTE62: 62 | DTI62: 62 | DTM62: 62 | DTQ62: 62 | DTU62: 62 | DTY62: 62 | DUC62: 62 | DUG62: 62 | DUK62: 62 | DUO62: 62 | DUS62: 62 | DUW62: 62 | DVA62: 62 | DVE62: 62 | DVI62: 62 | DVM62: 62 | DVQ62: 62 | DVU62: 62 | DVY62: 62 | DWC62: 62 | DWG62: 62 | DWK62: 62 | DWO62: 62 | DWS62: 62 | DWW62: 62 | DXA62: 62 | DXE62: 62 | DXI62: 62 | DXM62: 62 | DXQ62: 62 | DXU62: 62 | DXY62: 62 | DYC62: 62 | DYG62: 62 | DYK62: 62 | DYO62: 62 | DYS62: 62 | DYW62: 62 | DZA62: 62 | DZE62: 62 | DZI62: 62 | DZM62: 62 | DZQ62: 62 | DZU62: 62 | DZY62: 62 | EAC62: 62 | EAG62: 62 | EAK62: 62 | EAO62: 62 | EAS62: 62 | EAW62: 62 | EBA62: 62 | EBE62: 62 | EBI62: 62 | EBM62: 62 | EBQ62: 62 | EBU62: 62 | EBY62: 62 | ECC62: 62 | ECG62: 62 | ECK62: 62 | ECO62: 62 | ECS62: 62 | ECW62: 62 | EDA62: 62 | EDE62: 62 | EDI62: 62 | EDM62: 62 | EDQ62: 62 | EDU62: 62 | EDY62: 62 | EEC62: 62 | EEG62: 62 | EEK62: 62 | EEO62: 62 | EES62: 62 | EEW62: 62 | EFA62: 62 | EFE62: 62 | EFI62: 62 | EFM62: 62 | EFQ62: 62 | EFU62: 62 | EFY62: 62 | EGC62: 62 | EGG62: 62 | EGK62: 62 | EGO62: 62 | EGS62: 62 | EGW62: 62 | EHA62: 62 | EHE62: 62 | EHI62: 62 | EHM62: 62 | EHQ62: 62 | EHU62: 62 | EHY62: 62 | EIC62: 62 | EIG62: 62 | EIK62: 62 | EIO62: 62 | EIS62: 62 | EIW62: 62 | EJA62: 62 | EJE62: 62 | EJI62: 62 | EJM62: 62 | EJQ62: 62 | EJU62: 62 | EJY62: 62 | EKC62: 62 | EKG62: 62 | EKK62: 62 | EKO62: 62 | EKS62: 62 | EKW62: 62 | ELA62: 62 | ELE62: 62 | ELI62: 62 | ELM62: 62 | ELQ62: 62 | ELU62: 62 | ELY62: 62 | EMC62: 62 | EMG62: 62 | EMK62: 62 | EMO62: 62 | EMS62: 62 | EMW62: 62 | ENA62: 62 | ENE62: 62 | ENI62: 62 | ENM62: 62 | ENQ62: 62 | ENU62: 62 | ENY62: 62 | EOC62: 62 | EOG62: 62 | EOK62: 62 | EOO62: 62 | EOS62: 62 | EOW62: 62 | EPA62: 62 | EPE62: 62 | EPI62: 62 | EPM62: 62 | EPQ62: 62 | EPU62: 62 | EPY62: 62 | EQC62: 62 | EQG62: 62 | EQK62: 62 | EQO62: 62 | EQS62: 62 | EQW62: 62 | ERA62: 62 | ERE62: 62 | ERI62: 62 | ERM62: 62 | ERQ62: 62 | ERU62: 62 | ERY62: 62 | ESC62: 62 | ESG62: 62 | ESK62: 62 | ESO62: 62 | ESS62: 62 | ESW62: 62 | ETA62: 62 | ETE62: 62 | ETI62: 62 | ETM62: 62 | ETQ62: 62 | ETU62: 62 | ETY62: 62 | EUC62: 62 | EUG62: 62 | EUK62: 62 | EUO62: 62 | EUS62: 62 | EUW62: 62 | EVA62: 62 | EVE62: 62 | EVI62: 62 | EVM62: 62 | EVQ62: 62 | EVU62: 62 | EVY62: 62 | EWC62: 62 | EWG62: 62 | EWK62: 62 | EWO62: 62 | EWS62: 62 | EWW62: 62 | EXA62: 62 | EXE62: 62 | EXI62: 62 | EXM62: 62 | EXQ62: 62 | EXU62: 62 | EXY62: 62 | EYC62: 62 | EYG62: 62 | EYK62: 62 | EYO62: 62 | EYS62: 62 | EYW62: 62 | EZA62: 62 | EZE62: 62 | EZI62: 62 | EZM62: 62 | EZQ62: 62 | EZU62: 62 | EZY62: 62 | FAC62: 62 | FAG62: 62 | FAK62: 62 | FAO62: 62 | FAS62: 62 | FAW62: 62 | FBA62: 62 | FBE62: 62 | FBI62: 62 | FBM62: 62 | FBQ62: 62 | FBU62: 62 | FBY62: 62 | FCC62: 62 | FCG62: 62 | FCK62: 62 | FCO62: 62 | FCS62: 62 | FCW62: 62 | FDA62: 62 | FDE62: 62 | FDI62: 62 | FDM62: 62 | FDQ62: 62 | FDU62: 62 | FDY62: 62 | FEC62: 62 | FEG62: 62 | FEK62: 62 | FEO62: 62 | FES62: 62 | FEW62: 62 | FFA62: 62 | FFE62: 62 | FFI62: 62 | FFM62: 62 | FFQ62: 62 | FFU62: 62 | FFY62: 62 | FGC62: 62 | FGG62: 62 | FGK62: 62 | FGO62: 62 | FGS62: 62 | FGW62: 62 | FHA62: 62 | FHE62: 62 | FHI62: 62 | FHM62: 62 | FHQ62: 62 | FHU62: 62 | FHY62: 62 | FIC62: 62 | FIG62: 62 | FIK62: 62 | FIO62: 62 | FIS62: 62 | FIW62: 62 | FJA62: 62 | FJE62: 62 | FJI62: 62 | FJM62: 62 | FJQ62: 62 | FJU62: 62 | FJY62: 62 | FKC62: 62 | FKG62: 62 | FKK62: 62 | FKO62: 62 | FKS62: 62 | FKW62: 62 | FLA62: 62 | FLE62: 62 | FLI62: 62 | FLM62: 62 | FLQ62: 62 | FLU62: 62 | FLY62: 62 | FMC62: 62 | FMG62: 62 | FMK62: 62 | FMO62: 62 | FMS62: 62 | FMW62: 62 | FNA62: 62 | FNE62: 62 | FNI62: 62 | FNM62: 62 | FNQ62: 62 | FNU62: 62 | FNY62: 62 | FOC62: 62 | FOG62: 62 | FOK62: 62 | FOO62: 62 | FOS62: 62 | FOW62: 62 | FPA62: 62 | FPE62: 62 | FPI62: 62 | FPM62: 62 | FPQ62: 62 | FPU62: 62 | FPY62: 62 | FQC62: 62 | FQG62: 62 | FQK62: 62 | FQO62: 62 | FQS62: 62 | FQW62: 62 | FRA62: 62 | FRE62: 62 | FRI62: 62 | FRM62: 62 | FRQ62: 62 | FRU62: 62 | FRY62: 62 | FSC62: 62 | FSG62: 62 | FSK62: 62 | FSO62: 62 | FSS62: 62 | FSW62: 62 | FTA62: 62 | FTE62: 62 | FTI62: 62 | FTM62: 62 | FTQ62: 62 | FTU62: 62 | FTY62: 62 | FUC62: 62 | FUG62: 62 | FUK62: 62 | FUO62: 62 | FUS62: 62 | FUW62: 62 | FVA62: 62 | FVE62: 62 | FVI62: 62 | FVM62: 62 | FVQ62: 62 | FVU62: 62 | FVY62: 62 | FWC62: 62 | FWG62: 62 | FWK62: 62 | FWO62: 62 | FWS62: 62 | FWW62: 62 | FXA62: 62 | FXE62: 62 | FXI62: 62 | FXM62: 62 | FXQ62: 62 | FXU62: 62 | FXY62: 62 | FYC62: 62 | FYG62: 62 | FYK62: 62 | FYO62: 62 | FYS62: 62 | FYW62: 62 | FZA62: 62 | FZE62: 62 | FZI62: 62 | FZM62: 62 | FZQ62: 62 | FZU62: 62 | FZY62: 62 | GAC62: 62 | GAG62: 62 | GAK62: 62 | GAO62: 62 | GAS62: 62 | GAW62: 62 | GBA62: 62 | GBE62: 62 | GBI62: 62 | GBM62: 62 | GBQ62: 62 | GBU62: 62 | GBY62: 62 | GCC62: 62 | GCG62: 62 | GCK62: 62 | GCO62: 62 | GCS62: 62 | GCW62: 62 | GDA62: 62 | GDE62: 62 | GDI62: 62 | GDM62: 62 | GDQ62: 62 | GDU62: 62 | GDY62: 62 | GEC62: 62 | GEG62: 62 | GEK62: 62 | GEO62: 62 | GES62: 62 | GEW62: 62 | GFA62: 62 | GFE62: 62 | GFI62: 62 | GFM62: 62 | GFQ62: 62 | GFU62: 62 | GFY62: 62 | GGC62: 62 | GGG62: 62 | GGK62: 62 | GGO62: 62 | GGS62: 62 | GGW62: 62 | GHA62: 62 | GHE62: 62 | GHI62: 62 | GHM62: 62 | GHQ62: 62 | GHU62: 62 | GHY62: 62 | GIC62: 62 | GIG62: 62 | GIK62: 62 | GIO62: 62 | GIS62: 62 | GIW62: 62 | GJA62: 62 | GJE62: 62 | GJI62: 62 | GJM62: 62 | GJQ62: 62 | GJU62: 62 | GJY62: 62 | GKC62: 62 | GKG62: 62 | GKK62: 62 | GKO62: 62 | GKS62: 62 | GKW62: 62 | GLA62: 62 | GLE62: 62 | GLI62: 62 | GLM62: 62 | GLQ62: 62 | GLU62: 62 | GLY62: 62 | GMC62: 62 | GMG62: 62 | GMK62: 62 | GMO62: 62 | GMS62: 62 | GMW62: 62 | GNA62: 62 | GNE62: 62 | GNI62: 62 | GNM62: 62 | GNQ62: 62 | GNU62: 62 | GNY62: 62 | GOC62: 62 | GOG62: 62 | GOK62: 62 | GOO62: 62 | GOS62: 62 | GOW62: 62 | GPA62: 62 | GPE62: 62 | GPI62: 62 | GPM62: 62 | GPQ62: 62 | GPU62: 62 | GPY62: 62 | GQC62: 62 | GQG62: 62 | GQK62: 62 | GQO62: 62 | GQS62: 62 | GQW62: 62 | GRA62: 62 | GRE62: 62 | GRI62: 62 | GRM62: 62 | GRQ62: 62 | GRU62: 62 | GRY62: 62 | GSC62: 62 | GSG62: 62 | GSK62: 62 | GSO62: 62 | GSS62: 62 | GSW62: 62 | GTA62: 62 | GTE62: 62 | GTI62: 62 | GTM62: 62 | GTQ62: 62 | GTU62: 62 | GTY62: 62 | GUC62: 62 | GUG62: 62 | GUK62: 62 | GUO62: 62 | GUS62: 62 | GUW62: 62 | GVA62: 62 | GVE62: 62 | GVI62: 62 | GVM62: 62 | GVQ62: 62 | GVU62: 62 | GVY62: 62 | GWC62: 62 | GWG62: 62 | GWK62: 62 | GWO62: 62 | GWS62: 62 | GWW62: 62 | GXA62: 62 | GXE62: 62 | GXI62: 62 | GXM62: 62 | GXQ62: 62 | GXU62: 62 | GXY62: 62 | GYC62: 62 | GYG62: 62 | GYK62: 62 | GYO62: 62 | GYS62: 62 | GYW62: 62 | GZA62: 62 | GZE62: 62 | GZI62: 62 | GZM62: 62 | GZQ62: 62 | GZU62: 62 | GZY62: 62 | HAC62: 62 | HAG62: 62 | HAK62: 62 | HAO62: 62 | HAS62: 62 | HAW62: 62 | HBA62: 62 | HBE62: 62 | HBI62: 62 | HBM62: 62 | HBQ62: 62 | HBU62: 62 | HBY62: 62 | HCC62: 62 | HCG62: 62 | HCK62: 62 | HCO62: 62 | HCS62: 62 | HCW62: 62 | HDA62: 62 | HDE62: 62 | HDI62: 62 | HDM62: 62 | HDQ62: 62 | HDU62: 62 | HDY62: 62 | HEC62: 62 | HEG62: 62 | HEK62: 62 | HEO62: 62 | HES62: 62 | HEW62: 62 | HFA62: 62 | HFE62: 62 | HFI62: 62 | HFM62: 62 | HFQ62: 62 | HFU62: 62 | HFY62: 62 | HGC62: 62 | HGG62: 62 | HGK62: 62 | HGO62: 62 | HGS62: 62 | HGW62: 62 | HHA62: 62 | HHE62: 62 | HHI62: 62 | HHM62: 62 | HHQ62: 62 | HHU62: 62 | HHY62: 62 | HIC62: 62 | HIG62: 62 | HIK62: 62 | HIO62: 62 | HIS62: 62 | HIW62: 62 | HJA62: 62 | HJE62: 62 | HJI62: 62 | HJM62: 62 | HJQ62: 62 | HJU62: 62 | HJY62: 62 | HKC62: 62 | HKG62: 62 | HKK62: 62 | HKO62: 62 | HKS62: 62 | HKW62: 62 | HLA62: 62 | HLE62: 62 | HLI62: 62 | HLM62: 62 | HLQ62: 62 | HLU62: 62 | HLY62: 62 | HMC62: 62 | HMG62: 62 | HMK62: 62 | HMO62: 62 | HMS62: 62 | HMW62: 62 | HNA62: 62 | HNE62: 62 | HNI62: 62 | HNM62: 62 | HNQ62: 62 | HNU62: 62 | HNY62: 62 | HOC62: 62 | HOG62: 62 | HOK62: 62 | HOO62: 62 | HOS62: 62 | HOW62: 62 | HPA62: 62 | HPE62: 62 | HPI62: 62 | HPM62: 62 | HPQ62: 62 | HPU62: 62 | HPY62: 62 | HQC62: 62 | HQG62: 62 | HQK62: 62 | HQO62: 62 | HQS62: 62 | HQW62: 62 | HRA62: 62 | HRE62: 62 | HRI62: 62 | HRM62: 62 | HRQ62: 62 | HRU62: 62 | HRY62: 62 | HSC62: 62 | HSG62: 62 | HSK62: 62 | HSO62: 62 | HSS62: 62 | HSW62: 62 | HTA62: 62 | HTE62: 62 | HTI62: 62 | HTM62: 62 | HTQ62: 62 | HTU62: 62 | HTY62: 62 | HUC62: 62 | HUG62: 62 | HUK62: 62 | HUO62: 62 | HUS62: 62 | HUW62: 62 | HVA62: 62 | HVE62: 62 | HVI62: 62 | HVM62: 62 | HVQ62: 62 | HVU62: 62 | HVY62: 62 | HWC62: 62 | HWG62: 62 | HWK62: 62 | HWO62: 62 | HWS62: 62 | HWW62: 62 | HXA62: 62 | HXE62: 62 | HXI62: 62 | HXM62: 62 | HXQ62: 62 | HXU62: 62 | HXY62: 62 | HYC62: 62 | HYG62: 62 | HYK62: 62 | HYO62: 62 | HYS62: 62 | HYW62: 62 | HZA62: 62 | HZE62: 62 | HZI62: 62 | HZM62: 62 | HZQ62: 62 | HZU62: 62 | HZY62: 62 | IAC62: 62 | IAG62: 62 | IAK62: 62 | IAO62: 62 | IAS62: 62 | IAW62: 62 | IBA62: 62 | IBE62: 62 | IBI62: 62 | IBM62: 62 | IBQ62: 62 | IBU62: 62 | IBY62: 62 | ICC62: 62 | ICG62: 62 | ICK62: 62 | ICO62: 62 | ICS62: 62 | ICW62: 62 | IDA62: 62 | IDE62: 62 | IDI62: 62 | IDM62: 62 | IDQ62: 62 | IDU62: 62 | IDY62: 62 | IEC62: 62 | IEG62: 62 | IEK62: 62 | IEO62: 62 | IES62: 62 | IEW62: 62 | IFA62: 62 | IFE62: 62 | IFI62: 62 | IFM62: 62 | IFQ62: 62 | IFU62: 62 | IFY62: 62 | IGC62: 62 | IGG62: 62 | IGK62: 62 | IGO62: 62 | IGS62: 62 | IGW62: 62 | IHA62: 62 | IHE62: 62 | IHI62: 62 | IHM62: 62 | IHQ62: 62 | IHU62: 62 | IHY62: 62 | IIC62: 62 | IIG62: 62 | IIK62: 62 | IIO62: 62 | IIS62: 62 | IIW62: 62 | IJA62: 62 | IJE62: 62 | IJI62: 62 | IJM62: 62 | IJQ62: 62 | IJU62: 62 | IJY62: 62 | IKC62: 62 | IKG62: 62 | IKK62: 62 | IKO62: 62 | IKS62: 62 | IKW62: 62 | ILA62: 62 | ILE62: 62 | ILI62: 62 | ILM62: 62 | ILQ62: 62 | ILU62: 62 | ILY62: 62 | IMC62: 62 | IMG62: 62 | IMK62: 62 | IMO62: 62 | IMS62: 62 | IMW62: 62 | INA62: 62 | INE62: 62 | INI62: 62 | INM62: 62 | INQ62: 62 | INU62: 62 | INY62: 62 | IOC62: 62 | IOG62: 62 | IOK62: 62 | IOO62: 62 | IOS62: 62 | IOW62: 62 | IPA62: 62 | IPE62: 62 | IPI62: 62 | IPM62: 62 | IPQ62: 62 | IPU62: 62 | IPY62: 62 | IQC62: 62 | IQG62: 62 | IQK62: 62 | IQO62: 62 | IQS62: 62 | IQW62: 62 | IRA62: 62 | IRE62: 62 | IRI62: 62 | IRM62: 62 | IRQ62: 62 | IRU62: 62 | IRY62: 62 | ISC62: 62 | ISG62: 62 | ISK62: 62 | ISO62: 62 | ISS62: 62 | ISW62: 62 | ITA62: 62 | ITE62: 62 | ITI62: 62 | ITM62: 62 | ITQ62: 62 | ITU62: 62 | ITY62: 62 | IUC62: 62 | IUG62: 62 | IUK62: 62 | IUO62: 62 | IUS62: 62 | IUW62: 62 | IVA62: 62 | IVE62: 62 | IVI62: 62 | IVM62: 62 | IVQ62: 62 | IVU62: 62 | IVY62: 62 | IWC62: 62 | IWG62: 62 | IWK62: 62 | IWO62: 62 | IWS62: 62 | IWW62: 62 | IXA62: 62 | IXE62: 62 | IXI62: 62 | IXM62: 62 | IXQ62: 62 | IXU62: 62 | IXY62: 62 | IYC62: 62 | IYG62: 62 | IYK62: 62 | IYO62: 62 | IYS62: 62 | IYW62: 62 | IZA62: 62 | IZE62: 62 | IZI62: 62 | IZM62: 62 | IZQ62: 62 | IZU62: 62 | IZY62: 62 | JAC62: 62 | JAG62: 62 | JAK62: 62 | JAO62: 62 | JAS62: 62 | JAW62: 62 | JBA62: 62 | JBE62: 62 | JBI62: 62 | JBM62: 62 | JBQ62: 62 | JBU62: 62 | JBY62: 62 | JCC62: 62 | JCG62: 62 | JCK62: 62 | JCO62: 62 | JCS62: 62 | JCW62: 62 | JDA62: 62 | JDE62: 62 | JDI62: 62 | JDM62: 62 | JDQ62: 62 | JDU62: 62 | JDY62: 62 | JEC62: 62 | JEG62: 62 | JEK62: 62 | JEO62: 62 | JES62: 62 | JEW62: 62 | JFA62: 62 | JFE62: 62 | JFI62: 62 | JFM62: 62 | JFQ62: 62 | JFU62: 62 | JFY62: 62 | JGC62: 62 | JGG62: 62 | JGK62: 62 | JGO62: 62 | JGS62: 62 | JGW62: 62 | JHA62: 62 | JHE62: 62 | JHI62: 62 | JHM62: 62 | JHQ62: 62 | JHU62: 62 | JHY62: 62 | JIC62: 62 | JIG62: 62 | JIK62: 62 | JIO62: 62 | JIS62: 62 | JIW62: 62 | JJA62: 62 | JJE62: 62 | JJI62: 62 | JJM62: 62 | JJQ62: 62 | JJU62: 62 | JJY62: 62 | JKC62: 62 | JKG62: 62 | JKK62: 62 | JKO62: 62 | JKS62: 62 | JKW62: 62 | JLA62: 62 | JLE62: 62 | JLI62: 62 | JLM62: 62 | JLQ62: 62 | JLU62: 62 | JLY62: 62 | JMC62: 62 | JMG62: 62 | JMK62: 62 | JMO62: 62 | JMS62: 62 | JMW62: 62 | JNA62: 62 | JNE62: 62 | JNI62: 62 | JNM62: 62 | JNQ62: 62 | JNU62: 62 | JNY62: 62 | JOC62: 62 | JOG62: 62 | JOK62: 62 | JOO62: 62 | JOS62: 62 | JOW62: 62 | JPA62: 62 | JPE62: 62 | JPI62: 62 | JPM62: 62 | JPQ62: 62 | JPU62: 62 | JPY62: 62 | JQC62: 62 | JQG62: 62 | JQK62: 62 | JQO62: 62 | JQS62: 62 | JQW62: 62 | JRA62: 62 | JRE62: 62 | JRI62: 62 | JRM62: 62 | JRQ62: 62 | JRU62: 62 | JRY62: 62 | JSC62: 62 | JSG62: 62 | JSK62: 62 | JSO62: 62 | JSS62: 62 | JSW62: 62 | JTA62: 62 | JTE62: 62 | JTI62: 62 | JTM62: 62 | JTQ62: 62 | JTU62: 62 | JTY62: 62 | JUC62: 62 | JUG62: 62 | JUK62: 62 | JUO62: 62 | JUS62: 62 | JUW62: 62 | JVA62: 62 | JVE62: 62 | JVI62: 62 | JVM62: 62 | JVQ62: 62 | JVU62: 62 | JVY62: 62 | JWC62: 62 | JWG62: 62 | JWK62: 62 | JWO62: 62 | JWS62: 62 | JWW62: 62 | JXA62: 62 | JXE62: 62 | JXI62: 62 | JXM62: 62 | JXQ62: 62 | JXU62: 62 | JXY62: 62 | JYC62: 62 | JYG62: 62 | JYK62: 62 | JYO62: 62 | JYS62: 62 | JYW62: 62 | JZA62: 62 | JZE62: 62 | JZI62: 62 | JZM62: 62 | JZQ62: 62 | JZU62: 62 | JZY62: 62 | KAC62: 62 | KAG62: 62 | KAK62: 62 | KAO62: 62 | KAS62: 62 | KAW62: 62 | KBA62: 62 | KBE62: 62 | KBI62: 62 | KBM62: 62 | KBQ62: 62 | KBU62: 62 | KBY62: 62 | KCC62: 62 | KCG62: 62 | KCK62: 62 | KCO62: 62 | KCS62: 62 | KCW62: 62 | KDA62: 62 | KDE62: 62 | KDI62: 62 | KDM62: 62 | KDQ62: 62 | KDU62: 62 | KDY62: 62 | KEC62: 62 | KEG62: 62 | KEK62: 62 | KEO62: 62 | KES62: 62 | KEW62: 62 | KFA62: 62 | KFE62: 62 | KFI62: 62 | KFM62: 62 | KFQ62: 62 | KFU62: 62 | KFY62: 62 | KGC62: 62 | KGG62: 62 | KGK62: 62 | KGO62: 62 | KGS62: 62 | KGW62: 62 | KHA62: 62 | KHE62: 62 | KHI62: 62 | KHM62: 62 | KHQ62: 62 | KHU62: 62 | KHY62: 62 | KIC62: 62 | KIG62: 62 | KIK62: 62 | KIO62: 62 | KIS62: 62 | KIW62: 62 | KJA62: 62 | KJE62: 62 | KJI62: 62 | KJM62: 62 | KJQ62: 62 | KJU62: 62 | KJY62: 62 | KKC62: 62 | KKG62: 62 | KKK62: 62 | KKO62: 62 | KKS62: 62 | KKW62: 62 | KLA62: 62 | KLE62: 62 | KLI62: 62 | KLM62: 62 | KLQ62: 62 | KLU62: 62 | KLY62: 62 | KMC62: 62 | KMG62: 62 | KMK62: 62 | KMO62: 62 | KMS62: 62 | KMW62: 62 | KNA62: 62 | KNE62: 62 | KNI62: 62 | KNM62: 62 | KNQ62: 62 | KNU62: 62 | KNY62: 62 | KOC62: 62 | KOG62: 62 | KOK62: 62 | KOO62: 62 | KOS62: 62 | KOW62: 62 | KPA62: 62 | KPE62: 62 | KPI62: 62 | KPM62: 62 | KPQ62: 62 | KPU62: 62 | KPY62: 62 | KQC62: 62 | KQG62: 62 | KQK62: 62 | KQO62: 62 | KQS62: 62 | KQW62: 62 | KRA62: 62 | KRE62: 62 | KRI62: 62 | KRM62: 62 | KRQ62: 62 | KRU62: 62 | KRY62: 62 | KSC62: 62 | KSG62: 62 | KSK62: 62 | KSO62: 62 | KSS62: 62 | KSW62: 62 | KTA62: 62 | KTE62: 62 | KTI62: 62 | KTM62: 62 | KTQ62: 62 | KTU62: 62 | KTY62: 62 | KUC62: 62 | KUG62: 62 | KUK62: 62 | KUO62: 62 | KUS62: 62 | KUW62: 62 | KVA62: 62 | KVE62: 62 | KVI62: 62 | KVM62: 62 | KVQ62: 62 | KVU62: 62 | KVY62: 62 | KWC62: 62 | KWG62: 62 | KWK62: 62 | KWO62: 62 | KWS62: 62 | KWW62: 62 | KXA62: 62 | KXE62: 62 | KXI62: 62 | KXM62: 62 | KXQ62: 62 | KXU62: 62 | KXY62: 62 | KYC62: 62 | KYG62: 62 | KYK62: 62 | KYO62: 62 | KYS62: 62 | KYW62: 62 | KZA62: 62 | KZE62: 62 | KZI62: 62 | KZM62: 62 | KZQ62: 62 | KZU62: 62 | KZY62: 62 | LAC62: 62 | LAG62: 62 | LAK62: 62 | LAO62: 62 | LAS62: 62 | LAW62: 62 | LBA62: 62 | LBE62: 62 | LBI62: 62 | LBM62: 62 | LBQ62: 62 | LBU62: 62 | LBY62: 62 | LCC62: 62 | LCG62: 62 | LCK62: 62 | LCO62: 62 | LCS62: 62 | LCW62: 62 | LDA62: 62 | LDE62: 62 | LDI62: 62 | LDM62: 62 | LDQ62: 62 | LDU62: 62 | LDY62: 62 | LEC62: 62 | LEG62: 62 | LEK62: 62 | LEO62: 62 | LES62: 62 | LEW62: 62 | LFA62: 62 | LFE62: 62 | LFI62: 62 | LFM62: 62 | LFQ62: 62 | LFU62: 62 | LFY62: 62 | LGC62: 62 | LGG62: 62 | LGK62: 62 | LGO62: 62 | LGS62: 62 | LGW62: 62 | LHA62: 62 | LHE62: 62 | LHI62: 62 | LHM62: 62 | LHQ62: 62 | LHU62: 62 | LHY62: 62 | LIC62: 62 | LIG62: 62 | LIK62: 62 | LIO62: 62 | LIS62: 62 | LIW62: 62 | LJA62: 62 | LJE62: 62 | LJI62: 62 | LJM62: 62 | LJQ62: 62 | LJU62: 62 | LJY62: 62 | LKC62: 62 | LKG62: 62 | LKK62: 62 | LKO62: 62 | LKS62: 62 | LKW62: 62 | LLA62: 62 | LLE62: 62 | LLI62: 62 | LLM62: 62 | LLQ62: 62 | LLU62: 62 | LLY62: 62 | LMC62: 62 | LMG62: 62 | LMK62: 62 | LMO62: 62 | LMS62: 62 | LMW62: 62 | LNA62: 62 | LNE62: 62 | LNI62: 62 | LNM62: 62 | LNQ62: 62 | LNU62: 62 | LNY62: 62 | LOC62: 62 | LOG62: 62 | LOK62: 62 | LOO62: 62 | LOS62: 62 | LOW62: 62 | LPA62: 62 | LPE62: 62 | LPI62: 62 | LPM62: 62 | LPQ62: 62 | LPU62: 62 | LPY62: 62 | LQC62: 62 | LQG62: 62 | LQK62: 62 | LQO62: 62 | LQS62: 62 | LQW62: 62 | LRA62: 62 | LRE62: 62 | LRI62: 62 | LRM62: 62 | LRQ62: 62 | LRU62: 62 | LRY62: 62 | LSC62: 62 | LSG62: 62 | LSK62: 62 | LSO62: 62 | LSS62: 62 | LSW62: 62 | LTA62: 62 | LTE62: 62 | LTI62: 62 | LTM62: 62 | LTQ62: 62 | LTU62: 62 | LTY62: 62 | LUC62: 62 | LUG62: 62 | LUK62: 62 | LUO62: 62 | LUS62: 62 | LUW62: 62 | LVA62: 62 | LVE62: 62 | LVI62: 62 | LVM62: 62 | LVQ62: 62 | LVU62: 62 | LVY62: 62 | LWC62: 62 | LWG62: 62 | LWK62: 62 | LWO62: 62 | LWS62: 62 | LWW62: 62 | LXA62: 62 | LXE62: 62 | LXI62: 62 | LXM62: 62 | LXQ62: 62 | LXU62: 62 | LXY62: 62 | LYC62: 62 | LYG62: 62 | LYK62: 62 | LYO62: 62 | LYS62: 62 | LYW62: 62 | LZA62: 62 | LZE62: 62 | LZI62: 62 | LZM62: 62 | LZQ62: 62 | LZU62: 62 | LZY62: 62 | MAC62: 62 | MAG62: 62 | MAK62: 62 | MAO62: 62 | MAS62: 62 | MAW62: 62 | MBA62: 62 | MBE62: 62 | MBI62: 62 | MBM62: 62 | MBQ62: 62 | MBU62: 62 | MBY62: 62 | MCC62: 62 | MCG62: 62 | MCK62: 62 | MCO62: 62 | MCS62: 62 | MCW62: 62 | MDA62: 62 | MDE62: 62 | MDI62: 62 | MDM62: 62 | MDQ62: 62 | MDU62: 62 | MDY62: 62 | MEC62: 62 | MEG62: 62 | MEK62: 62 | MEO62: 62 | MES62: 62 | MEW62: 62 | MFA62: 62 | MFE62: 62 | MFI62: 62 | MFM62: 62 | MFQ62: 62 | MFU62: 62 | MFY62: 62 | MGC62: 62 | MGG62: 62 | MGK62: 62 | MGO62: 62 | MGS62: 62 | MGW62: 62 | MHA62: 62 | MHE62: 62 | MHI62: 62 | MHM62: 62 | MHQ62: 62 | MHU62: 62 | MHY62: 62 | MIC62: 62 | MIG62: 62 | MIK62: 62 | MIO62: 62 | MIS62: 62 | MIW62: 62 | MJA62: 62 | MJE62: 62 | MJI62: 62 | MJM62: 62 | MJQ62: 62 | MJU62: 62 | MJY62: 62 | MKC62: 62 | MKG62: 62 | MKK62: 62 | MKO62: 62 | MKS62: 62 | MKW62: 62 | MLA62: 62 | MLE62: 62 | MLI62: 62 | MLM62: 62 | MLQ62: 62 | MLU62: 62 | MLY62: 62 | MMC62: 62 | MMG62: 62 | MMK62: 62 | MMO62: 62 | MMS62: 62 | MMW62: 62 | MNA62: 62 | MNE62: 62 | MNI62: 62 | MNM62: 62 | MNQ62: 62 | MNU62: 62 | MNY62: 62 | MOC62: 62 | MOG62: 62 | MOK62: 62 | MOO62: 62 | MOS62: 62 | MOW62: 62 | MPA62: 62 | MPE62: 62 | MPI62: 62 | MPM62: 62 | MPQ62: 62 | MPU62: 62 | MPY62: 62 | MQC62: 62 | MQG62: 62 | MQK62: 62 | MQO62: 62 | MQS62: 62 | MQW62: 62 | MRA62: 62 | MRE62: 62 | MRI62: 62 | MRM62: 62 | MRQ62: 62 | MRU62: 62 | MRY62: 62 | MSC62: 62 | MSG62: 62 | MSK62: 62 | MSO62: 62 | MSS62: 62 | MSW62: 62 | MTA62: 62 | MTE62: 62 | MTI62: 62 | MTM62: 62 | MTQ62: 62 | MTU62: 62 | MTY62: 62 | MUC62: 62 | MUG62: 62 | MUK62: 62 | MUO62: 62 | MUS62: 62 | MUW62: 62 | MVA62: 62 | MVE62: 62 | MVI62: 62 | MVM62: 62 | MVQ62: 62 | MVU62: 62 | MVY62: 62 | MWC62: 62 | MWG62: 62 | MWK62: 62 | MWO62: 62 | MWS62: 62 | MWW62: 62 | MXA62: 62 | MXE62: 62 | MXI62: 62 | MXM62: 62 | MXQ62: 62 | MXU62: 62 | MXY62: 62 | MYC62: 62 | MYG62: 62 | MYK62: 62 | MYO62: 62 | MYS62: 62 | MYW62: 62 | MZA62: 62 | MZE62: 62 | MZI62: 62 | MZM62: 62 | MZQ62: 62 | MZU62: 62 | MZY62: 62 | NAC62: 62 | NAG62: 62 | NAK62: 62 | NAO62: 62 | NAS62: 62 | NAW62: 62 | NBA62: 62 | NBE62: 62 | NBI62: 62 | NBM62: 62 | NBQ62: 62 | NBU62: 62 | NBY62: 62 | NCC62: 62 | NCG62: 62 | NCK62: 62 | NCO62: 62 | NCS62: 62 | NCW62: 62 | NDA62: 62 | NDE62: 62 | NDI62: 62 | NDM62: 62 | NDQ62: 62 | NDU62: 62 | NDY62: 62 | NEC62: 62 | NEG62: 62 | NEK62: 62 | NEO62: 62 | NES62: 62 | NEW62: 62 | NFA62: 62 | NFE62: 62 | NFI62: 62 | NFM62: 62 | NFQ62: 62 | NFU62: 62 | NFY62: 62 | NGC62: 62 | NGG62: 62 | NGK62: 62 | NGO62: 62 | NGS62: 62 | NGW62: 62 | NHA62: 62 | NHE62: 62 | NHI62: 62 | NHM62: 62 | NHQ62: 62 | NHU62: 62 | NHY62: 62 | NIC62: 62 | NIG62: 62 | NIK62: 62 | NIO62: 62 | NIS62: 62 | NIW62: 62 | NJA62: 62 | NJE62: 62 | NJI62: 62 | NJM62: 62 | NJQ62: 62 | NJU62: 62 | NJY62: 62 | NKC62: 62 | NKG62: 62 | NKK62: 62 | NKO62: 62 | NKS62: 62 | NKW62: 62 | NLA62: 62 | NLE62: 62 | NLI62: 62 | NLM62: 62 | NLQ62: 62 | NLU62: 62 | NLY62: 62 | NMC62: 62 | NMG62: 62 | NMK62: 62 | NMO62: 62 | NMS62: 62 | NMW62: 62 | NNA62: 62 | NNE62: 62 | NNI62: 62 | NNM62: 62 | NNQ62: 62 | NNU62: 62 | NNY62: 62 | NOC62: 62 | NOG62: 62 | NOK62: 62 | NOO62: 62 | NOS62: 62 | NOW62: 62 | NPA62: 62 | NPE62: 62 | NPI62: 62 | NPM62: 62 | NPQ62: 62 | NPU62: 62 | NPY62: 62 | NQC62: 62 | NQG62: 62 | NQK62: 62 | NQO62: 62 | NQS62: 62 | NQW62: 62 | NRA62: 62 | NRE62: 62 | NRI62: 62 | NRM62: 62 | NRQ62: 62 | NRU62: 62 | NRY62: 62 | NSC62: 62 | NSG62: 62 | NSK62: 62 | NSO62: 62 | NSS62: 62 | NSW62: 62 | NTA62: 62 | NTE62: 62 | NTI62: 62 | NTM62: 62 | NTQ62: 62 | NTU62: 62 | NTY62: 62 | NUC62: 62 | NUG62: 62 | NUK62: 62 | NUO62: 62 | NUS62: 62 | NUW62: 62 | NVA62: 62 | NVE62: 62 | NVI62: 62 | NVM62: 62 | NVQ62: 62 | NVU62: 62 | NVY62: 62 | NWC62: 62 | NWG62: 62 | NWK62: 62 | NWO62: 62 | NWS62: 62 | NWW62: 62 | NXA62: 62 | NXE62: 62 | NXI62: 62 | NXM62: 62 | NXQ62: 62 | NXU62: 62 | NXY62: 62 | NYC62: 62 | NYG62: 62 | NYK62: 62 | NYO62: 62 | NYS62: 62 | NYW62: 62 | NZA62: 62 | NZE62: 62 | NZI62: 62 | NZM62: 62 | NZQ62: 62 | NZU62: 62 | NZY62: 62 | OAC62: 62 | OAG62: 62 | OAK62: 62 | OAO62: 62 | OAS62: 62 | OAW62: 62 | OBA62: 62 | OBE62: 62 | OBI62: 62 | OBM62: 62 | OBQ62: 62 | OBU62: 62 | OBY62: 62 | OCC62: 62 | OCG62: 62 | OCK62: 62 | OCO62: 62 | OCS62: 62 | OCW62: 62 | ODA62: 62 | ODE62: 62 | ODI62: 62 | ODM62: 62 | ODQ62: 62 | ODU62: 62 | ODY62: 62 | OEC62: 62 | OEG62: 62 | OEK62: 62 | OEO62: 62 | OES62: 62 | OEW62: 62 | OFA62: 62 | OFE62: 62 | OFI62: 62 | OFM62: 62 | OFQ62: 62 | OFU62: 62 | OFY62: 62 | OGC62: 62 | OGG62: 62 | OGK62: 62 | OGO62: 62 | OGS62: 62 | OGW62: 62 | OHA62: 62 | OHE62: 62 | OHI62: 62 | OHM62: 62 | OHQ62: 62 | OHU62: 62 | OHY62: 62 | OIC62: 62 | OIG62: 62 | OIK62: 62 | OIO62: 62 | OIS62: 62 | OIW62: 62 | OJA62: 62 | OJE62: 62 | OJI62: 62 | OJM62: 62 | OJQ62: 62 | OJU62: 62 | OJY62: 62 | OKC62: 62 | OKG62: 62 | OKK62: 62 | OKO62: 62 | OKS62: 62 | OKW62: 62 | OLA62: 62 | OLE62: 62 | OLI62: 62 | OLM62: 62 | OLQ62: 62 | OLU62: 62 | OLY62: 62 | OMC62: 62 | OMG62: 62 | OMK62: 62 | OMO62: 62 | OMS62: 62 | OMW62: 62 | ONA62: 62 | ONE62: 62 | ONI62: 62 | ONM62: 62 | ONQ62: 62 | ONU62: 62 | ONY62: 62 | OOC62: 62 | OOG62: 62 | OOK62: 62 | OOO62: 62 | OOS62: 62 | OOW62: 62 | OPA62: 62 | OPE62: 62 | OPI62: 62 | OPM62: 62 | OPQ62: 62 | OPU62: 62 | OPY62: 62 | OQC62: 62 | OQG62: 62 | OQK62: 62 | OQO62: 62 | OQS62: 62 | OQW62: 62 | ORA62: 62 | ORE62: 62 | ORI62: 62 | ORM62: 62 | ORQ62: 62 | ORU62: 62 | ORY62: 62 | OSC62: 62 | OSG62: 62 | OSK62: 62 | OSO62: 62 | OSS62: 62 | OSW62: 62 | OTA62: 62 | OTE62: 62 | OTI62: 62 | OTM62: 62 | OTQ62: 62 | OTU62: 62 | OTY62: 62 | OUC62: 62 | OUG62: 62 | OUK62: 62 | OUO62: 62 | OUS62: 62 | OUW62: 62 | OVA62: 62 | OVE62: 62 | OVI62: 62 | OVM62: 62 | OVQ62: 62 | OVU62: 62 | OVY62: 62 | OWC62: 62 | OWG62: 62 | OWK62: 62 | OWO62: 62 | OWS62: 62 | OWW62: 62 | OXA62: 62 | OXE62: 62 | OXI62: 62 | OXM62: 62 | OXQ62: 62 | OXU62: 62 | OXY62: 62 | OYC62: 62 | OYG62: 62 | OYK62: 62 | OYO62: 62 | OYS62: 62 | OYW62: 62 | OZA62: 62 | OZE62: 62 | OZI62: 62 | OZM62: 62 | OZQ62: 62 | OZU62: 62 | OZY62: 62 | PAC62: 62 | PAG62: 62 | PAK62: 62 | PAO62: 62 | PAS62: 62 | PAW62: 62 | PBA62: 62 | PBE62: 62 | PBI62: 62 | PBM62: 62 | PBQ62: 62 | PBU62: 62 | PBY62: 62 | PCC62: 62 | PCG62: 62 | PCK62: 62 | PCO62: 62 | PCS62: 62 | PCW62: 62 | PDA62: 62 | PDE62: 62 | PDI62: 62 | PDM62: 62 | PDQ62: 62 | PDU62: 62 | PDY62: 62 | PEC62: 62 | PEG62: 62 | PEK62: 62 | PEO62: 62 | PES62: 62 | PEW62: 62 | PFA62: 62 | PFE62: 62 | PFI62: 62 | PFM62: 62 | PFQ62: 62 | PFU62: 62 | PFY62: 62 | PGC62: 62 | PGG62: 62 | PGK62: 62 | PGO62: 62 | PGS62: 62 | PGW62: 62 | PHA62: 62 | PHE62: 62 | PHI62: 62 | PHM62: 62 | PHQ62: 62 | PHU62: 62 | PHY62: 62 | PIC62: 62 | PIG62: 62 | PIK62: 62 | PIO62: 62 | PIS62: 62 | PIW62: 62 | PJA62: 62 | PJE62: 62 | PJI62: 62 | PJM62: 62 | PJQ62: 62 | PJU62: 62 | PJY62: 62 | PKC62: 62 | PKG62: 62 | PKK62: 62 | PKO62: 62 | PKS62: 62 | PKW62: 62 | PLA62: 62 | PLE62: 62 | PLI62: 62 | PLM62: 62 | PLQ62: 62 | PLU62: 62 | PLY62: 62 | PMC62: 62 | PMG62: 62 | PMK62: 62 | PMO62: 62 | PMS62: 62 | PMW62: 62 | PNA62: 62 | PNE62: 62 | PNI62: 62 | PNM62: 62 | PNQ62: 62 | PNU62: 62 | PNY62: 62 | POC62: 62 | POG62: 62 | POK62: 62 | POO62: 62 | POS62: 62 | POW62: 62 | PPA62: 62 | PPE62: 62 | PPI62: 62 | PPM62: 62 | PPQ62: 62 | PPU62: 62 | PPY62: 62 | PQC62: 62 | PQG62: 62 | PQK62: 62 | PQO62: 62 | PQS62: 62 | PQW62: 62 | PRA62: 62 | PRE62: 62 | PRI62: 62 | PRM62: 62 | PRQ62: 62 | PRU62: 62 | PRY62: 62 | PSC62: 62 | PSG62: 62 | PSK62: 62 | PSO62: 62 | PSS62: 62 | PSW62: 62 | PTA62: 62 | PTE62: 62 | PTI62: 62 | PTM62: 62 | PTQ62: 62 | PTU62: 62 | PTY62: 62 | PUC62: 62 | PUG62: 62 | PUK62: 62 | PUO62: 62 | PUS62: 62 | PUW62: 62 | PVA62: 62 | PVE62: 62 | PVI62: 62 | PVM62: 62 | PVQ62: 62 | PVU62: 62 | PVY62: 62 | PWC62: 62 | PWG62: 62 | PWK62: 62 | PWO62: 62 | PWS62: 62 | PWW62: 62 | PXA62: 62 | PXE62: 62 | PXI62: 62 | PXM62: 62 | PXQ62: 62 | PXU62: 62 | PXY62: 62 | PYC62: 62 | PYG62: 62 | PYK62: 62 | PYO62: 62 | PYS62: 62 | PYW62: 62 | PZA62: 62 | PZE62: 62 | PZI62: 62 | PZM62: 62 | PZQ62: 62 | PZU62: 62 | PZY62: 62 | QAC62: 62 | QAG62: 62 | QAK62: 62 | QAO62: 62 | QAS62: 62 | QAW62: 62 | QBA62: 62 | QBE62: 62 | QBI62: 62 | QBM62: 62 | QBQ62: 62 | QBU62: 62 | QBY62: 62 | QCC62: 62 | QCG62: 62 | QCK62: 62 | QCO62: 62 | QCS62: 62 | QCW62: 62 | QDA62: 62 | QDE62: 62 | QDI62: 62 | QDM62: 62 | QDQ62: 62 | QDU62: 62 | QDY62: 62 | QEC62: 62 | QEG62: 62 | QEK62: 62 | QEO62: 62 | QES62: 62 | QEW62: 62 | QFA62: 62 | QFE62: 62 | QFI62: 62 | QFM62: 62 | QFQ62: 62 | QFU62: 62 | QFY62: 62 | QGC62: 62 | QGG62: 62 | QGK62: 62 | QGO62: 62 | QGS62: 62 | QGW62: 62 | QHA62: 62 | QHE62: 62 | QHI62: 62 | QHM62: 62 | QHQ62: 62 | QHU62: 62 | QHY62: 62 | QIC62: 62 | QIG62: 62 | QIK62: 62 | QIO62: 62 | QIS62: 62 | QIW62: 62 | QJA62: 62 | QJE62: 62 | QJI62: 62 | QJM62: 62 | QJQ62: 62 | QJU62: 62 | QJY62: 62 | QKC62: 62 | QKG62: 62 | QKK62: 62 | QKO62: 62 | QKS62: 62 | QKW62: 62 | QLA62: 62 | QLE62: 62 | QLI62: 62 | QLM62: 62 | QLQ62: 62 | QLU62: 62 | QLY62: 62 | QMC62: 62 | QMG62: 62 | QMK62: 62 | QMO62: 62 | QMS62: 62 | QMW62: 62 | QNA62: 62 | QNE62: 62 | QNI62: 62 | QNM62: 62 | QNQ62: 62 | QNU62: 62 | QNY62: 62 | QOC62: 62 | QOG62: 62 | QOK62: 62 | QOO62: 62 | QOS62: 62 | QOW62: 62 | QPA62: 62 | QPE62: 62 | QPI62: 62 | QPM62: 62 | QPQ62: 62 | QPU62: 62 | QPY62: 62 | QQC62: 62 | QQG62: 62 | QQK62: 62 | QQO62: 62 | QQS62: 62 | QQW62: 62 | QRA62: 62 | QRE62: 62 | QRI62: 62 | QRM62: 62 | QRQ62: 62 | QRU62: 62 | QRY62: 62 | QSC62: 62 | QSG62: 62 | QSK62: 62 | QSO62: 62 | QSS62: 62 | QSW62: 62 | QTA62: 62 | QTE62: 62 | QTI62: 62 | QTM62: 62 | QTQ62: 62 | QTU62: 62 | QTY62: 62 | QUC62: 62 | QUG62: 62 | QUK62: 62 | QUO62: 62 | QUS62: 62 | QUW62: 62 | QVA62: 62 | QVE62: 62 | QVI62: 62 | QVM62: 62 | QVQ62: 62 | QVU62: 62 | QVY62: 62 | QWC62: 62 | QWG62: 62 | QWK62: 62 | QWO62: 62 | QWS62: 62 | QWW62: 62 | QXA62: 62 | QXE62: 62 | QXI62: 62 | QXM62: 62 | QXQ62: 62 | QXU62: 62 | QXY62: 62 | QYC62: 62 | QYG62: 62 | QYK62: 62 | QYO62: 62 | QYS62: 62 | QYW62: 62 | QZA62: 62 | QZE62: 62 | QZI62: 62 | QZM62: 62 | QZQ62: 62 | QZU62: 62 | QZY62: 62 | RAC62: 62 | RAG62: 62 | RAK62: 62 | RAO62: 62 | RAS62: 62 | RAW62: 62 | RBA62: 62 | RBE62: 62 | RBI62: 62 | RBM62: 62 | RBQ62: 62 | RBU62: 62 | RBY62: 62 | RCC62: 62 | RCG62: 62 | RCK62: 62 | RCO62: 62 | RCS62: 62 | RCW62: 62 | RDA62: 62 | RDE62: 62 | RDI62: 62 | RDM62: 62 | RDQ62: 62 | RDU62: 62 | RDY62: 62 | REC62: 62 | REG62: 62 | REK62: 62 | REO62: 62 | RES62: 62 | REW62: 62 | RFA62: 62 | RFE62: 62 | RFI62: 62 | RFM62: 62 | RFQ62: 62 | RFU62: 62 | RFY62: 62 | RGC62: 62 | RGG62: 62 | RGK62: 62 | RGO62: 62 | RGS62: 62 | RGW62: 62 | RHA62: 62 | RHE62: 62 | RHI62: 62 | RHM62: 62 | RHQ62: 62 | RHU62: 62 | RHY62: 62 | RIC62: 62 | RIG62: 62 | RIK62: 62 | RIO62: 62 | RIS62: 62 | RIW62: 62 | RJA62: 62 | RJE62: 62 | RJI62: 62 | RJM62: 62 | RJQ62: 62 | RJU62: 62 | RJY62: 62 | RKC62: 62 | RKG62: 62 | RKK62: 62 | RKO62: 62 | RKS62: 62 | RKW62: 62 | RLA62: 62 | RLE62: 62 | RLI62: 62 | RLM62: 62 | RLQ62: 62 | RLU62: 62 | RLY62: 62 | RMC62: 62 | RMG62: 62 | RMK62: 62 | RMO62: 62 | RMS62: 62 | RMW62: 62 | RNA62: 62 | RNE62: 62 | RNI62: 62 | RNM62: 62 | RNQ62: 62 | RNU62: 62 | RNY62: 62 | ROC62: 62 | ROG62: 62 | ROK62: 62 | ROO62: 62 | ROS62: 62 | ROW62: 62 | RPA62: 62 | RPE62: 62 | RPI62: 62 | RPM62: 62 | RPQ62: 62 | RPU62: 62 | RPY62: 62 | RQC62: 62 | RQG62: 62 | RQK62: 62 | RQO62: 62 | RQS62: 62 | RQW62: 62 | RRA62: 62 | RRE62: 62 | RRI62: 62 | RRM62: 62 | RRQ62: 62 | RRU62: 62 | RRY62: 62 | RSC62: 62 | RSG62: 62 | RSK62: 62 | RSO62: 62 | RSS62: 62 | RSW62: 62 | RTA62: 62 | RTE62: 62 | RTI62: 62 | RTM62: 62 | RTQ62: 62 | RTU62: 62 | RTY62: 62 | RUC62: 62 | RUG62: 62 | RUK62: 62 | RUO62: 62 | RUS62: 62 | RUW62: 62 | RVA62: 62 | RVE62: 62 | RVI62: 62 | RVM62: 62 | RVQ62: 62 | RVU62: 62 | RVY62: 62 | RWC62: 62 | RWG62: 62 | RWK62: 62 | RWO62: 62 | RWS62: 62 | RWW62: 62 | RXA62: 62 | RXE62: 62 | RXI62: 62 | RXM62: 62 | RXQ62: 62 | RXU62: 62 | RXY62: 62 | RYC62: 62 | RYG62: 62 | RYK62: 62 | RYO62: 62 | RYS62: 62 | RYW62: 62 | RZA62: 62 | RZE62: 62 | RZI62: 62 | RZM62: 62 | RZQ62: 62 | RZU62: 62 | RZY62: 62 | SAC62: 62 | SAG62: 62 | SAK62: 62 | SAO62: 62 | SAS62: 62 | SAW62: 62 | SBA62: 62 | SBE62: 62 | SBI62: 62 | SBM62: 62 | SBQ62: 62 | SBU62: 62 | SBY62: 62 | SCC62: 62 | SCG62: 62 | SCK62: 62 | SCO62: 62 | SCS62: 62 | SCW62: 62 | SDA62: 62 | SDE62: 62 | SDI62: 62 | SDM62: 62 | SDQ62: 62 | SDU62: 62 | SDY62: 62 | SEC62: 62 | SEG62: 62 | SEK62: 62 | SEO62: 62 | SES62: 62 | SEW62: 62 | SFA62: 62 | SFE62: 62 | SFI62: 62 | SFM62: 62 | SFQ62: 62 | SFU62: 62 | SFY62: 62 | SGC62: 62 | SGG62: 62 | SGK62: 62 | SGO62: 62 | SGS62: 62 | SGW62: 62 | SHA62: 62 | SHE62: 62 | SHI62: 62 | SHM62: 62 | SHQ62: 62 | SHU62: 62 | SHY62: 62 | SIC62: 62 | SIG62: 62 | SIK62: 62 | SIO62: 62 | SIS62: 62 | SIW62: 62 | SJA62: 62 | SJE62: 62 | SJI62: 62 | SJM62: 62 | SJQ62: 62 | SJU62: 62 | SJY62: 62 | SKC62: 62 | SKG62: 62 | SKK62: 62 | SKO62: 62 | SKS62: 62 | SKW62: 62 | SLA62: 62 | SLE62: 62 | SLI62: 62 | SLM62: 62 | SLQ62: 62 | SLU62: 62 | SLY62: 62 | SMC62: 62 | SMG62: 62 | SMK62: 62 | SMO62: 62 | SMS62: 62 | SMW62: 62 | SNA62: 62 | SNE62: 62 | SNI62: 62 | SNM62: 62 | SNQ62: 62 | SNU62: 62 | SNY62: 62 | SOC62: 62 | SOG62: 62 | SOK62: 62 | SOO62: 62 | SOS62: 62 | SOW62: 62 | SPA62: 62 | SPE62: 62 | SPI62: 62 | SPM62: 62 | SPQ62: 62 | SPU62: 62 | SPY62: 62 | SQC62: 62 | SQG62: 62 | SQK62: 62 | SQO62: 62 | SQS62: 62 | SQW62: 62 | SRA62: 62 | SRE62: 62 | SRI62: 62 | SRM62: 62 | SRQ62: 62 | SRU62: 62 | SRY62: 62 | SSC62: 62 | SSG62: 62 | SSK62: 62 | SSO62: 62 | SSS62: 62 | SSW62: 62 | STA62: 62 | STE62: 62 | STI62: 62 | STM62: 62 | STQ62: 62 | STU62: 62 | STY62: 62 | SUC62: 62 | SUG62: 62 | SUK62: 62 | SUO62: 62 | SUS62: 62 | SUW62: 62 | SVA62: 62 | SVE62: 62 | SVI62: 62 | SVM62: 62 | SVQ62: 62 | SVU62: 62 | SVY62: 62 | SWC62: 62 | SWG62: 62 | SWK62: 62 | SWO62: 62 | SWS62: 62 | SWW62: 62 | SXA62: 62 | SXE62: 62 | SXI62: 62 | SXM62: 62 | SXQ62: 62 | SXU62: 62 | SXY62: 62 | SYC62: 62 | SYG62: 62 | SYK62: 62 | SYO62: 62 | SYS62: 62 | SYW62: 62 | SZA62: 62 | SZE62: 62 | SZI62: 62 | SZM62: 62 | SZQ62: 62 | SZU62: 62 | SZY62: 62 | TAC62: 62 | TAG62: 62 | TAK62: 62 | TAO62: 62 | TAS62: 62 | TAW62: 62 | TBA62: 62 | TBE62: 62 | TBI62: 62 | TBM62: 62 | TBQ62: 62 | TBU62: 62 | TBY62: 62 | TCC62: 62 | TCG62: 62 | TCK62: 62 | TCO62: 62 | TCS62: 62 | TCW62: 62 | TDA62: 62 | TDE62: 62 | TDI62: 62 | TDM62: 62 | TDQ62: 62 | TDU62: 62 | TDY62: 62 | TEC62: 62 | TEG62: 62 | TEK62: 62 | TEO62: 62 | TES62: 62 | TEW62: 62 | TFA62: 62 | TFE62: 62 | TFI62: 62 | TFM62: 62 | TFQ62: 62 | TFU62: 62 | TFY62: 62 | TGC62: 62 | TGG62: 62 | TGK62: 62 | TGO62: 62 | TGS62: 62 | TGW62: 62 | THA62: 62 | THE62: 62 | THI62: 62 | THM62: 62 | THQ62: 62 | THU62: 62 | THY62: 62 | TIC62: 62 | TIG62: 62 | TIK62: 62 | TIO62: 62 | TIS62: 62 | TIW62: 62 | TJA62: 62 | TJE62: 62 | TJI62: 62 | TJM62: 62 | TJQ62: 62 | TJU62: 62 | TJY62: 62 | TKC62: 62 | TKG62: 62 | TKK62: 62 | TKO62: 62 | TKS62: 62 | TKW62: 62 | TLA62: 62 | TLE62: 62 | TLI62: 62 | TLM62: 62 | TLQ62: 62 | TLU62: 62 | TLY62: 62 | TMC62: 62 | TMG62: 62 | TMK62: 62 | TMO62: 62 | TMS62: 62 | TMW62: 62 | TNA62: 62 | TNE62: 62 | TNI62: 62 | TNM62: 62 | TNQ62: 62 | TNU62: 62 | TNY62: 62 | TOC62: 62 | TOG62: 62 | TOK62: 62 | TOO62: 62 | TOS62: 62 | TOW62: 62 | TPA62: 62 | TPE62: 62 | TPI62: 62 | TPM62: 62 | TPQ62: 62 | TPU62: 62 | TPY62: 62 | TQC62: 62 | TQG62: 62 | TQK62: 62 | TQO62: 62 | TQS62: 62 | TQW62: 62 | TRA62: 62 | TRE62: 62 | TRI62: 62 | TRM62: 62 | TRQ62: 62 | TRU62: 62 | TRY62: 62 | TSC62: 62 | TSG62: 62 | TSK62: 62 | TSO62: 62 | TSS62: 62 | TSW62: 62 | TTA62: 62 | TTE62: 62 | TTI62: 62 | TTM62: 62 | TTQ62: 62 | TTU62: 62 | TTY62: 62 | TUC62: 62 | TUG62: 62 | TUK62: 62 | TUO62: 62 | TUS62: 62 | TUW62: 62 | TVA62: 62 | TVE62: 62 | TVI62: 62 | TVM62: 62 | TVQ62: 62 | TVU62: 62 | TVY62: 62 | TWC62: 62 | TWG62: 62 | TWK62: 62 | TWO62: 62 | TWS62: 62 | TWW62: 62 | TXA62: 62 | TXE62: 62 | TXI62: 62 | TXM62: 62 | TXQ62: 62 | TXU62: 62 | TXY62: 62 | TYC62: 62 | TYG62: 62 | TYK62: 62 | TYO62: 62 | TYS62: 62 | TYW62: 62 | TZA62: 62 | TZE62: 62 | TZI62: 62 | TZM62: 62 | TZQ62: 62 | TZU62: 62 | TZY62: 62 | UAC62: 62 | UAG62: 62 | UAK62: 62 | UAO62: 62 | UAS62: 62 | UAW62: 62 | UBA62: 62 | UBE62: 62 | UBI62: 62 | UBM62: 62 | UBQ62: 62 | UBU62: 62 | UBY62: 62 | UCC62: 62 | UCG62: 62 | UCK62: 62 | UCO62: 62 | UCS62: 62 | UCW62: 62 | UDA62: 62 | UDE62: 62 | UDI62: 62 | UDM62: 62 | UDQ62: 62 | UDU62: 62 | UDY62: 62 | UEC62: 62 | UEG62: 62 | UEK62: 62 | UEO62: 62 | UES62: 62 | UEW62: 62 | UFA62: 62 | UFE62: 62 | UFI62: 62 | UFM62: 62 | UFQ62: 62 | UFU62: 62 | UFY62: 62 | UGC62: 62 | UGG62: 62 | UGK62: 62 | UGO62: 62 | UGS62: 62 | UGW62: 62 | UHA62: 62 | UHE62: 62 | UHI62: 62 | UHM62: 62 | UHQ62: 62 | UHU62: 62 | UHY62: 62 | UIC62: 62 | UIG62: 62 | UIK62: 62 | UIO62: 62 | UIS62: 62 | UIW62: 62 | UJA62: 62 | UJE62: 62 | UJI62: 62 | UJM62: 62 | UJQ62: 62 | UJU62: 62 | UJY62: 62 | UKC62: 62 | UKG62: 62 | UKK62: 62 | UKO62: 62 | UKS62: 62 | UKW62: 62 | ULA62: 62 | ULE62: 62 | ULI62: 62 | ULM62: 62 | ULQ62: 62 | ULU62: 62 | ULY62: 62 | UMC62: 62 | UMG62: 62 | UMK62: 62 | UMO62: 62 | UMS62: 62 | UMW62: 62 | UNA62: 62 | UNE62: 62 | UNI62: 62 | UNM62: 62 | UNQ62: 62 | UNU62: 62 | UNY62: 62 | UOC62: 62 | UOG62: 62 | UOK62: 62 | UOO62: 62 | UOS62: 62 | UOW62: 62 | UPA62: 62 | UPE62: 62 | UPI62: 62 | UPM62: 62 | UPQ62: 62 | UPU62: 62 | UPY62: 62 | UQC62: 62 | UQG62: 62 | UQK62: 62 | UQO62: 62 | UQS62: 62 | UQW62: 62 | URA62: 62 | URE62: 62 | URI62: 62 | URM62: 62 | URQ62: 62 | URU62: 62 | URY62: 62 | USC62: 62 | USG62: 62 | USK62: 62 | USO62: 62 | USS62: 62 | USW62: 62 | UTA62: 62 | UTE62: 62 | UTI62: 62 | UTM62: 62 | UTQ62: 62 | UTU62: 62 | UTY62: 62 | UUC62: 62 | UUG62: 62 | UUK62: 62 | UUO62: 62 | UUS62: 62 | UUW62: 62 | UVA62: 62 | UVE62: 62 | UVI62: 62 | UVM62: 62 | UVQ62: 62 | UVU62: 62 | UVY62: 62 | UWC62: 62 | UWG62: 62 | UWK62: 62 | UWO62: 62 | UWS62: 62 | UWW62: 62 | UXA62: 62 | UXE62: 62 | UXI62: 62 | UXM62: 62 | UXQ62: 62 | UXU62: 62 | UXY62: 62 | UYC62: 62 | UYG62: 62 | UYK62: 62 | UYO62: 62 | UYS62: 62 | UYW62: 62 | UZA62: 62 | UZE62: 62 | UZI62: 62 | UZM62: 62 | UZQ62: 62 | UZU62: 62 | UZY62: 62 | VAC62: 62 | VAG62: 62 | VAK62: 62 | VAO62: 62 | VAS62: 62 | VAW62: 62 | VBA62: 62 | VBE62: 62 | VBI62: 62 | VBM62: 62 | VBQ62: 62 | VBU62: 62 | VBY62: 62 | VCC62: 62 | VCG62: 62 | VCK62: 62 | VCO62: 62 | VCS62: 62 | VCW62: 62 | VDA62: 62 | VDE62: 62 | VDI62: 62 | VDM62: 62 | VDQ62: 62 | VDU62: 62 | VDY62: 62 | VEC62: 62 | VEG62: 62 | VEK62: 62 | VEO62: 62 | VES62: 62 | VEW62: 62 | VFA62: 62 | VFE62: 62 | VFI62: 62 | VFM62: 62 | VFQ62: 62 | VFU62: 62 | VFY62: 62 | VGC62: 62 | VGG62: 62 | VGK62: 62 | VGO62: 62 | VGS62: 62 | VGW62: 62 | VHA62: 62 | VHE62: 62 | VHI62: 62 | VHM62: 62 | VHQ62: 62 | VHU62: 62 | VHY62: 62 | VIC62: 62 | VIG62: 62 | VIK62: 62 | VIO62: 62 | VIS62: 62 | VIW62: 62 | VJA62: 62 | VJE62: 62 | VJI62: 62 | VJM62: 62 | VJQ62: 62 | VJU62: 62 | VJY62: 62 | VKC62: 62 | VKG62: 62 | VKK62: 62 | VKO62: 62 | VKS62: 62 | VKW62: 62 | VLA62: 62 | VLE62: 62 | VLI62: 62 | VLM62: 62 | VLQ62: 62 | VLU62: 62 | VLY62: 62 | VMC62: 62 | VMG62: 62 | VMK62: 62 | VMO62: 62 | VMS62: 62 | VMW62: 62 | VNA62: 62 | VNE62: 62 | VNI62: 62 | VNM62: 62 | VNQ62: 62 | VNU62: 62 | VNY62: 62 | VOC62: 62 | VOG62: 62 | VOK62: 62 | VOO62: 62 | VOS62: 62 | VOW62: 62 | VPA62: 62 | VPE62: 62 | VPI62: 62 | VPM62: 62 | VPQ62: 62 | VPU62: 62 | VPY62: 62 | VQC62: 62 | VQG62: 62 | VQK62: 62 | VQO62: 62 | VQS62: 62 | VQW62: 62 | VRA62: 62 | VRE62: 62 | VRI62: 62 | VRM62: 62 | VRQ62: 62 | VRU62: 62 | VRY62: 62 | VSC62: 62 | VSG62: 62 | VSK62: 62 | VSO62: 62 | VSS62: 62 | VSW62: 62 | VTA62: 62 | VTE62: 62 | VTI62: 62 | VTM62: 62 | VTQ62: 62 | VTU62: 62 | VTY62: 62 | VUC62: 62 | VUG62: 62 | VUK62: 62 | VUO62: 62 | VUS62: 62 | VUW62: 62 | VVA62: 62 | VVE62: 62 | VVI62: 62 | VVM62: 62 | VVQ62: 62 | VVU62: 62 | VVY62: 62 | VWC62: 62 | VWG62: 62 | VWK62: 62 | VWO62: 62 | VWS62: 62 | VWW62: 62 | VXA62: 62 | VXE62: 62 | VXI62: 62 | VXM62: 62 | VXQ62: 62 | VXU62: 62 | VXY62: 62 | VYC62: 62 | VYG62: 62 | VYK62: 62 | VYO62: 62 | VYS62: 62 | VYW62: 62 | VZA62: 62 | VZE62: 62 | VZI62: 62 | VZM62: 62 | VZQ62: 62 | VZU62: 62 | VZY62: 62 | WAC62: 62 | WAG62: 62 | WAK62: 62 | WAO62: 62 | WAS62: 62 | WAW62: 62 | WBA62: 62 | WBE62: 62 | WBI62: 62 | WBM62: 62 | WBQ62: 62 | WBU62: 62 | WBY62: 62 | WCC62: 62 | WCG62: 62 | WCK62: 62 | WCO62: 62 | WCS62: 62 | WCW62: 62 | WDA62: 62 | WDE62: 62 | WDI62: 62 | WDM62: 62 | WDQ62: 62 | WDU62: 62 | WDY62: 62 | WEC62: 62 | WEG62: 62 | WEK62: 62 | WEO62: 62 | WES62: 62 | WEW62: 62 | WFA62: 62 | WFE62: 62 | WFI62: 62 | WFM62: 62 | WFQ62: 62 | WFU62: 62 | WFY62: 62 | WGC62: 62 | WGG62: 62 | WGK62: 62 | WGO62: 62 | WGS62: 62 | WGW62: 62 | WHA62: 62 | WHE62: 62 | WHI62: 62 | WHM62: 62 | WHQ62: 62 | WHU62: 62 | WHY62: 62 | WIC62: 62 | WIG62: 62 | WIK62: 62 | WIO62: 62 | WIS62: 62 | WIW62: 62 | WJA62: 62 | WJE62: 62 | WJI62: 62 | WJM62: 62 | WJQ62: 62 | WJU62: 62 | WJY62: 62 | WKC62: 62 | WKG62: 62 | WKK62: 62 | WKO62: 62 | WKS62: 62 | WKW62: 62 | WLA62: 62 | WLE62: 62 | WLI62: 62 | WLM62: 62 | WLQ62: 62 | WLU62: 62 | WLY62: 62 | WMC62: 62 | WMG62: 62 | WMK62: 62 | WMO62: 62 | WMS62: 62 | WMW62: 62 | WNA62: 62 | WNE62: 62 | WNI62: 62 | WNM62: 62 | WNQ62: 62 | WNU62: 62 | WNY62: 62 | WOC62: 62 | WOG62: 62 | WOK62: 62 | WOO62: 62 | WOS62: 62 | WOW62: 62 | WPA62: 62 | WPE62: 62 | WPI62: 62 | WPM62: 62 | WPQ62: 62 | WPU62: 62 | WPY62: 62 | WQC62: 62 | WQG62: 62 | WQK62: 62 | WQO62: 62 | WQS62: 62 | WQW62: 62 | WRA62: 62 | WRE62: 62 | WRI62: 62 | WRM62: 62 | WRQ62: 62 | WRU62: 62 | WRY62: 62 | WSC62: 62 | WSG62: 62 | WSK62: 62 | WSO62: 62 | WSS62: 62 | WSW62: 62 | WTA62: 62 | WTE62: 62 | WTI62: 62 | WTM62: 62 | WTQ62: 62 | WTU62: 62 | WTY62: 62 | WUC62: 62 | WUG62: 62 | WUK62: 62 | WUO62: 62 | WUS62: 62 | WUW62: 62 | WVA62: 62 | WVE62: 62 | WVI62: 62 | WVM62: 62 | WVQ62: 62 | WVU62: 62 | WVY62: 62 | WWC62: 62 | WWG62: 62 | WWK62: 62 | WWO62: 62 | WWS62: 62 | WWW62: 62 | WXA62: 62 | WXE62: 62 | WXI62: 62 | WXM62: 62 | WXQ62: 62 | WXU62: 62 | WXY62: 62 | WYC62: 62 | WYG62: 62 | WYK62: 62 | WYO62: 62 | WYS62: 62 | WYW62: 62 | WZA62: 62 | WZE62: 62 | WZI62: 62 | WZM62: 62 | WZQ62: 62 | WZU62: 62 | WZY62: 62 | XAC62: 62 | XAG62: 62 | XAK62: 62 | XAO62: 62 | XAS62: 62 | XAW62: 62 | XBA62: 62 | XBE62: 62 | XBI62: 62 | XBM62: 62 | XBQ62: 62 | XBU62: 62 | XBY62: 62 | XCC62: 62 | XCG62: 62 | XCK62: 62 | XCO62: 62 | XCS62: 62 | XCW62: 62 | XDA62: 62 | XDE62: 62 | XDI62: 62 | XDM62: 62 | XDQ62: 62 | XDU62: 62 | XDY62: 62 | XEC62: 62 | XEG62: 62 | XEK62: 62 | XEO62: 62 | XES62: 62 | XEW62: 62 | XFA62: 62
A63: 7500 | B63: Inversiones en Fideicomisos, Mandatos y Otros Análogos | E63: 0 | F63: ='PRESUP. EGRESOS BASE MENSUAL'!$C$363 -> 0
A64: 7600 | B64: Otras Inversiones Financieras | E64: 0 | F64: ='PRESUP. EGRESOS BASE MENSUAL'!$C$373 -> 0
A65: 7900 | B65: Provisiones para Contingencias y Otras Erogaciones Especiales | E65: 0 | F65: ='PRESUP. EGRESOS BASE MENSUAL'!$C$376 -> 0
A66: 8000 | B66: PARTICIPACIONES Y APORTACIONES | E66: 0 | F66: 0
A67: 9000 | B67: DEUDA PÚBLICA | E67: =SUM(E68:E73) -> $3,371,315 | F67: =SUM(F68:F73) -> $1,632,816 | G67: -52%
A68: 9100 | B68: Amortización de la Deuda Pública | E68: $1,403,515 | F68: ='PRESUP. EGRESOS BASE MENSUAL'!$C$399 -> $204,000 | G68: -85%
A69: 9200 | B69: Intereses de la Deuda Pública | E69: $1,150,800 | F69: ='PRESUP. EGRESOS BASE MENSUAL'!$C$408 -> $1,275,816 | G69: 11%
A70: 9300 | B70: Comisiones de la Deuda Pública | E70: 0 | F70: ='PRESUP. EGRESOS BASE MENSUAL'!$C$417 -> 0
A71: 9400 | B71: Gastos de la Deuda Pública | E71: 0 | F71: ='PRESUP. EGRESOS BASE MENSUAL'!$C$420 -> $153,000
A72: 9500 | B72: Costo por Coberturas | E72: 0 | F72: ='PRESUP. EGRESOS BASE MENSUAL'!$C$423 -> 0
A73: 9900 | B73: Adeudos de Ejercicios Fiscales Anteriores (ADEFAS) | E73: $817,000 | F73: ='PRESUP. EGRESOS BASE MENSUAL'!$C$428 -> 0 | G73: -100%
A74: Total de Egresos | E74: =E6+E14+E24+E34+E44+E54+E58+E66+E67 -> $44,255,615 | F74: =F6+F14+F24+F34+F44+F54+F58+F66+F67 -> $45,897,256 | G74: =F74/E74-1 -> 3.71%
A75: Clasificación por tipo de gasto (CTG)
A77: TG | B77: Descripción | C77: Estimación | D77: %
A78: 1 | B78: GASTO CORRIENTE | C78: =F6+F14+F24+F34 -> 34,569,453 | D78: =C78/C81 -> 75.32%
A79: 2 | B79: GASTO DE CAPITAL | C79: =F44+F54+F58 -> 9,694,987 | D79: =C79/C81 -> 21.12%
A80: 3 | B80: AMORTIZACIÓN DE LA DEUDA Y DISMINUCIÓN DE PASIVOS | C80: =F67 -> 1,632,816 | D80: =C80/C81 -> 3.56%
B81: Suma | C81: =SUM(C78:C80) -> 45,897,256 | D81: =SUM(D78:D80) -> 100.00%
A82: Clasificación por Fuente de Financiamiento (CFF)
A84: FF | B84: Descripción | C84: Estimación | D84: %
A85: 200 | B85: FINANCIAMIENTOS INTERNOS | C85: ='PRESUP. EGRESOS F.F. '!$J$430 -> 0 | D85: =C85/C90 -> 0.00%
A86: 400 | B86: INGRESOS PROPIOS | C86: ='PRESUP. EGRESOS F.F. '!C430 -> 34,722,887 | D86: =C86/C90 -> 75.65%
A87: 500 | B87: RECURSOS FEDERALES | C87: ='PRESUP. EGRESOS F.F. '!D430+'PRESUP. EGRESOS F.F. '!E430+'PRESUP. EGRESOS F.F. '!F430+'PRESUP. EGRESOS F.F. '!G430 -> 11,174,369 | D87: =C87/C90 -> 24.35%
A88: 600 | B88: RECURSOS ESTATALES | C88: ='PRESUP. EGRESOS F.F. '!H430+'PRESUP. EGRESOS F.F. '!I430 -> 0 | D88: =C88/C90 -> 0.00%
A89: 700 | B89: OTROS RECURSOS | C89: ='PRESUP. EGRESOS F.F. '!K430 -> 0 | D89: =C89/C90 -> 0.00%
B90: Suma | C90: =SUM(C85:C89) -> 45,897,256 | D90: =SUM(D85:D89) -> 100.00%

Sheet ESTIM.INGRESOS BASE MENSUAL
A1: Estimación de Ingresos por Clasificación por Rubro de Ingresos y Ley de Ingresos Municipal - 2016
A2: ='Objetivos PMD'!$B$3 -> Entidad Pública: Municipio de Jilotlán de los Dolores, Jalisco
A3: CRI/LI | B3: DESCRIPCIÓN | C3: INGRESO ESTIMADO ANUAL | D3: ENERO | E3: FEBRERO | F3: MARZO | G3: ABRIL | H3: MAYO | I3: JUNIO | J3: JULIO | K3: AGOSTO | L3: SEPTIEMBRE | M3: OCTUBRE | N3: NOVIEMBRE | O3: DICIEMBRE
A5: 1 | B5: IMPUESTOS | C5: =SUM(D5:O5) -> 470,526 | D5: =D6+D15+D26+D27+D28+D29+D30+D43 -> 39,211 | E5: =E6+E15+E26+E27+E28+E29+E30+E43 -> 39,211 | F5: 39,211 | G5: 39,211 | H5: 39,211 | I5: 39,211 | J5: 39,211 | K5: 39,211 | L5: 39,211 | M5: 39,211 | N5: 39,211 | O5: 39,211
A6: 11 | B6: IMPUESTOS SOBRE LOS INGRESOS | C6: =SUM(D6:O6) -> 0 | D6: =D7 -> 0 | E6: 0 | F6: 0 | G6: 0 | H6: 0 | I6: 0 | J6: 0 | K6: 0 | L6: 0 | M6: 0 | N6: 0 | O6: 0
A7: 11100 | B7: Impuestos sobre espectáculos públicos | C7: 0 | D7: =SUM(D8:D14) -> 0 | E7: =SUM(E8:E14) -> 0 | F7: 0 | G7: 0 | H7: 0 | I7: 0 | J7: 0 | K7: 0 | L7: 0 | M7: 0 | N7: 0 | O7: 0
A8: 11110 | B8: Función de circo y espectáculos de carpa | C8: 0
A9: 11120 | B9: Conciertos, presentación de artistas, conciertos, audiciones musicales, funciones de box, lucha libre, futbol, básquetbol, beisbol y otros espectáculos deportivos. | C9: 0
A10: 11130 | B10: Peleas de gallos, palenques, carreras de caballos y similares | C10: 0
A11: 11140 | B11: Eventos y espectáculos deportivos | C11: 0
A12: 11150 | B12: Espectáculos culturales, teatrales, ballet, ópera y taurinos | C12: 0
A13: 11160 | B13: Espectáculos taurinos y ecuestres | C13: 0
A14: 11170 | B14: Otros espectáculos públicos | C14: 0
A15: 12 | B15: IMPUESTOS SOBRE EL PATRIMONIO | C15: 433,704 | D15: =D16+D19+D22 -> 36,142 | E15: =E16+E19+E22 -> 36,142 | F15: 36,142 | G15: 36,142 | H15: 36,142 | I15: 36,142 | J15: 36,142 | K15: 36,142 | L15: 36,142 | M15: 36,142 | N15: 36,142 | O15: 36,142
A16: 12100 | B16: Impuesto predial | C16: 308,754 | D16: =SUM(D17:D18) -> 25,730 | E16: =SUM(E17:E18) -> 25,730 | F16: 25,730 | G16: 25,730 | H16: 25,730 | I16: 25,730 | J16: 25,730 | K16: 25,730 | L16: 25,730 | M16: 25,730 | N16: 25,730 | O16: 25,730
A17: 12110 | B17: Predios rústicos | C17: 233,070 | D17: =$C17/12 -> 19,423 | E17: =$C17/12 -> 19,423 | F17: 19,423 | G17: 19,423 | H17: 19,423 | I17: 19,423 | J17: 19,423 | K17: 19,423 | L17: 19,423 | M17: 19,423 | N17: 19,423 | O17: 19,423
A18: 12120 | B18: Predios urbanos | C18: 75,684 | D18: =$C18/12 -> 6,307 | E18: 6,307 | F18: 6,307 | G18: 6,307 | H18: 6,307 | I18: 6,307 | J18: 6,307 | K18: 6,307 | L18: 6,307 | M18: 6,307 | N18: 6,307 | O18: 6,307
A19: 12200 | B19: Impuesto sobre transmisiones patrimoniales | C19: 124,950 | D19: =SUM(D20:D21) -> 10,413 | E19: =SUM(E20:E21) -> 10,413 | F19: 10,413 | G19: 10,413 | H19: 10,413 | I19: 10,413 | J19: 10,413 | K19: 10,413 | L19: 10,413 | M19: 10,413 | N19: 10,413 | O19: 10,413
A20: 12210 | B20: Adquisición de departamentos, viviendas y casas para habitación | C20: 13,770 | D20: =$C20/12 -> 1,148 | E20: 1,148 | F20: 1,148 | G20: 1,148 | H20: 1,148 | I20: 1,148 | J20: 1,148 | K20: 1,148 | L20: 1,148 | M20: 1,148 | N20: 1,148 | O20: 1,148
A21: 12220 | B21: Regularización de terrenos | C21: 111,180 | D21: =$C21/12 -> 9,265 | E21: 9,265 | F21: 9,265 | G21: 9,265 | H21: 9,265 | I21: 9,265 | J21: 9,265 | K21: 9,265 | L21: 9,265 | M21: 9,265 | N21: 9,265 | O21: 9,265
A22: 12300 | B22: Impuestos sobre negocios jurídicos | C22: 0 | D22: =SUM(D23:D25) -> 0 | E22: =SUM(E23:E25) -> 0 | F22: 0 | G22: 0 | H22: 0 | I22: 0 | J22: 0 | K22: 0 | L22: 0 | M22: 0 | N22: 0 | O22: 0
A23: 12310 | B23: Construcción de inmuebles | C23: 0
A24: 12320 | B24: Reconstrucción de inmuebles | C24: 0
A25: 12330 | B25: Ampliación de inmuebles | C25: 0
A26: 13 | B26: IMPUESTO SOBRE LA PRODUCCIÓN, EL CONSUMO Y LAS TRANSACCIONES | C26: 0 | D26: 0 | E26: 0 | F26: 0 | G26: 0 | H26: 0 | I26: 0 | J26: 0 | K26: 0 | L26: 0 | M26: 0 | N26: 0 | O26: 0
A27: 14 | B27: IMPUESTOS AL COMERCIO EXTERIOR | C27: 0 | D27: 0 | E27: 0 | F27: 0 | G27: 0 | H27: 0 | I27: 0 | J27: 0 | K27: 0 | L27: 0 | M27: 0 | N27: 0 | O27: 0
A28: 15 | B28: IMPUESTOS SOBRE NÓMINAS Y ASIMILABLES | C28: 0 | D28: 0 | E28: 0 | F28: 0 | G28: 0 | H28: 0 | I28: 0 | J28: 0 | K28: 0 | L28: 0 | M28: 0 | N28: 0 | O28: 0
A29: 16 | B29: IMPUESTOS ECOLÓGICOS | C29: 0 | D29: 0 | E29: 0 | F29: 0 | G29: 0 | H29: 0 | I29: 0 | J29: 0 | K29: 0 | L29: 0 | M29: 0 | N29: 0 | O29: 0
A30: 17 | B30: ACCESORIOS DE LOS IMPUESTOS | C30: 36,822 | D30: =D31+D33+D35+D37+D41 -> 3,069 | E30: =E31+E33+E35+E37+E41 -> 3,069 | F30: 3,069 | G30: 3,069 | H30: 3,069 | I30: 3,069 | J30: 3,069 | K30: 3,069 | L30: 3,069 | M30: 3,069 | N30: 3,069 | O30: 3,069
A31: 17100 | B31: Recargos | C31: 8,670 | D31: =SUM(D32) -> 723 | E31: 723 | F31: 723 | G31: 723 | H31: 723 | I31: 723 | J31: 723 | K31: 723 | L31: 723 | M31: 723 | N31: 723 | O31: 723
A32: 17110 | B32: Falta de pago | C32: 8,670 | D32: =$C32/12 -> 723 | E32: =$C32/12 -> 723 | F32: 723 | G32: 723 | H32: 723 | I32: 723 | J32: 723 | K32: 723 | L32: 723 | M32: 723 | N32: 723 | O32: 723
A33: 17200 | B33: Multas | C33: 5,712 | D33: =SUM(D34:D34) -> 476 | E33: 476 | F33: 476 | G33: 476 | H33: 476 | I33: 476 | J33: 476 | K33: 476 | L33: 476 | M33: 476 | N33: 476 | O33: 476
A34: 17210 | B34: Infracciones | C34: 5,712 | D34: =$C34/12 -> 476 | E34: =$C34/12 -> 476 | F34: 476 | G34: 476 | H34: 476 | I34: 476 | J34: 476 | K34: 476 | L34: 476 | M34: 476 | N34: 476 | O34: 476
A35: 17300 | B35: Intereses | C35: 0 | D35: =SUM(D36) -> 0 | E35: 0 | F35: 0 | G35: 0 | H35: 0 | I35: 0 | J35: 0 | K35: 0 | L35: 0 | M35: 0 | N35: 0 | O35: 0
A36: 17310 | B36: Plazo de créditos fiscales | C36: 0
A37: 17400 | B37: Gastos de ejecución y de embargo | C37: 22,440 | D37: =SUM(D38:D40) -> 1,870 | E37: =SUM(E38:E40) -> 1,870 | F37: 1,870 | G37: 1,870 | H37: 1,870 | I37: 1,870 | J37: 1,870 | K37: 1,870 | L37: 1,870 | M37: 1,870 | N37: 1,870 | O37: 1,870
A38: 17410 | B38: Gastos de notificación | C38: 22,440 | D38: =$C38/12 -> 1,870 | E38: =$C38/12 -> 1,870 | F38: 1,870 | G38: 1,870 | H38: 1,870 | I38: 1,870 | J38: 1,870 | K38: 1,870 | L38: 1,870 | M38: 1,870 | N38: 1,870 | O38: 1,870
A39: 17420 | B39: Gastos de embargo | C39: 0
A40: 17490 | B40: Otros gastos del procedimiento | C40: 0
A41: 17900 | B41: Otros no especificados | C41: 0 | D41: =SUM(D42) -> 0 | E41: 0 | F41: 0 | G41: 0 | H41: 0 | I41: 0 | J41: 0 | K41: 0 | L41: 0 | M41: 0 | N41: 0 | O41: 0
A42: 17990 | B42: Otros accesorios | C42: 0
A43: 18 | B43: OTROS IMPUESTOS | C43: 0 | D43: =D44 -> 0 | E43: 0 | F43: 0 | G43: 0 | H43: 0 | I43: 0 | J43: 0 | K43: 0 | L43: 0 | M43: 0 | N43: 0 | O43: 0
A44: 18100 | B44: Impuestos extraordinarios | C44: 0 | D44: =SUM(D45:D46) -> 0 | E44: =SUM(E45:E46) -> 0 | F44: 0 | G44: 0 | H44: 0 | I44: 0 | J44: 0 | K44: 0 | L44: 0 | M44: 0 | N44: 0 | O44: 0
A45: 18110 | B45: Impuestos extraordinarios | C45: 0
A46: 18120 | B46: Otros Impuestos | C46: 0
A47: 2 | B47: CUOTAS Y APORTACIONES DE SEGURIDAD SOCIAL | C47: 0 | D47: =D48+D49+D50+D51+D52 -> 0 | E47: =E48+E49+E50+E51+E52 -> 0 | F47: 0 | G47: 0 | H47: 0 | I47: 0 | J47: 0 | K47: 0 | L47: 0 | M47: 0 | N47: 0 | O47: 0
A48: 21 | B48: APORTACIONES PARA FONDOS DE VIVIENDA | C48: 0 | D48: 0 | E48: 0 | F48: 0 | G48: 0 | H48: 0 | I48: 0 | J48: 0 | K48: 0 | L48: 0 | M48: 0 | N48: 0 | O48: 0
A49: 22 | B49: CUOTAS PARA EL SEGURO SOCIAL | C49: 0 | D49: 0 | E49: 0 | F49: 0 | G49: 0 | H49: 0 | I49: 0 | J49: 0 | K49: 0 | L49: 0 | M49: 0 | N49: 0 | O49: 0
A50: 23 | B50: CUOTAS DE AHORRO PARA EL RETIRO | C50: 0 | D50: 0 | E50: 0 | F50: 0 | G50: 0 | H50: 0 | I50: 0 | J50: 0 | K50: 0 | L50: 0 | M50: 0 | N50: 0 | O50: 0
A51: 24 | B51: OTRAS CUOTAS Y APORTACIONES PARA LA SEGURIDAD SOCIAL | C51: 0 | D51: 0 | E51: 0 | F51: 0 | G51: 0 | H51: 0 | I51: 0 | J51: 0 | K51: 0 | L51: 0 | M51: 0 | N51: 0 | O51: 0
A52: 25 | B52: ACCESORIOS | C52: 0 | D52: 0 | E52: 0 | F52: 0 | G52: 0 | H52: 0 | I52: 0 | J52: 0 | K52: 0 | L52: 0 | M52: 0 | N52: 0 | O52: 0
A53: 3 | B53: CONTRIBUCIONES DE MEJORAS | C53: 0 | D53: =D54 -> 0 | E53: 0 | F53: 0 | G53: 0 | H53: 0 | I53: 0 | J53: 0 | K53: 0 | L53: 0 | M53: 0 | N53: 0 | O53: 0
A54: 31 | B54: CONTRIBUCIÓN DE MEJORAS POR OBRAS PÚBLICAS | C54: 0 | D54: 0 | E54: 0 | F54: 0 | G54: 0 | H54: 0 | I54: 0 | J54: 0 | K54: 0 | L54: 0 | M54: 0 | N54: 0 | O54: 0
A55: 31100 | B55: Contribuciones de mejoras | C55: 0 | D55: =SUM(D56) -> 0 | E55: 0 | F55: 0 | G55: 0 | H55: 0 | I55: 0 | J55: 0 | K55: 0 | L55: 0 | M55: 0 | N55: 0 | O55: 0
A56: 31110 | B56: Contribuciones de mejoras por obras públicas | C56: 0
A57: 4 | B57: DERECHOS | C57: 1,055,323 | D57: =D58+D78+D79+D155+D162 -> 87,944 | E57: =E58+E78+E79+E155+E162 -> 87,944 | F57: 87,944 | G57: 87,944 | H57: 87,944 | I57: 87,944 | J57: 87,944 | K57: 87,944 | L57: 87,944 | M57: 87,944 | N57: 87,944 | O57: 87,944
A58: 41 | B58: DERECHOS POR EL USO, GOCE, APROVECHAMIENTO O EXPLOTACIÓN DE BIENES DE DOMINIO PÚBLICO | C58: 9,690 | D58: =D59+D65+D67+D72 -> 808 | E58: =E59+E65+E67+E72 -> 808 | F58: 808 | G58: 808 | H58: 808 | I58: 808 | J58: 808 | K58: 808 | L58: 808 | M58: 808 | N58: 808 | O58: 808
A59: 41100 | B59: Uso del piso | C59: 9,690 | D59: =SUM(D60:D64) -> 808 | E59: =SUM(E60:E64) -> 808 | F59: 808 | G59: 808 | H59: 808 | I59: 808 | J59: 808 | K59: 808 | L59: 808 | M59: 808 | N59: 808 | O59: 808
A60: 41110 | B60: Estacionamientos exclusivos | C60: 0
A61: 41120 | B61: Puestos permanentes y eventuales | C61: 9,690 | D61: =$C61/12 -> 808 | E61: =$C61/12 -> 808 | F61: 808 | G61: 808 | H61: 808 | I61: 808 | J61: 808 | K61: 808 | L61: 808 | M61: 808 | N61: 808 | O61: 808
A62: 41130 | B62: Actividades comerciales e industriales | C62: 0
A63: 41140 | B63: Espectáculos y diversiones públicas | C63: 0
A64: 41190 | B64: Otros fines o actividades no previstas | C64: 0
A65: 41200 | B65: Estacionamientos | C65: 0 | D65: =SUM(D66) -> 0 | E65: 0 | F65: 0 | G65: 0 | H65: 0 | I65: 0 | J65: 0 | K65: 0 | L65: 0 | M65: 0 | N65: 0 | O65: 0
A66: 41210 | B66: Concesión de estacionamientos | C66: 0
A67: 41300 | B67: De los Cementerios de dominio público | C67: 0 | D67: =SUM(D68:D71) -> 0 | E67: =SUM(E68:E71) -> 0 | F67: 0 | G67: 0 | H67: 0 | I67: 0 | J67: 0 | K67: 0 | L67: 0 | M67: 0 | N67: 0 | O67: 0
A68: 41310 | B68: Lotes uso perpetuidad y temporal | C68: 0
A69: 41320 | B69: Mantenimiento | C69: 0
A70: 41330 | B70: Venta de gavetas a perpetuidad | C70: 0
A71: 41990 | B71: Otros | C71: =SUM(D71:O71) -> 0
A72: 41400 | B72: Uso, goce, aprovechamiento o explotación de otros bienes de dominio público | C72: 0 | D72: =SUM(D73:D77) -> 0 | E72: =SUM(E73:E77) -> 0 | F72: 0 | G72: 0 | H72: 0 | I72: 0 | J72: 0 | K72: 0 | L72: 0 | M72: 0 | N72: 0 | O72: 0
A73: 41410 | B73: Arrendamiento o concesión de locales en mercados | C73: 0
A74: 41420 | B74: Arrendamiento o concesión de kioscos en plazas y jardines | C74: 0
A75: 41430 | B75: Arrendamiento o concesión de escusados y baños | C75: 0
A76: 41440 | B76: Arrendamiento de inmuebles para anuncios | C76: 0
A77: 41490 | B77: Otros arrendamientos o concesiones de bienes | C77: 0
A78: 42 | B78: DERECHOS A LOS HIDROCARBUROS | C78: 0 | D78: 0 | E78: 0 | F78: 0 | G78: 0 | H78: 0 | I78: 0 | J78: 0 | K78: 0 | L78: 0 | M78: 0 | N78: 0 | O78: 0
A79: 43 | B79: DERECHOS POR PRESTACIÓN DE SERVICIOS | C79: 1,030,945 | D79: =D80+D85+D89+D97+D102+D106+D110+D115+D122+D131+D140+D144+D148 -> 85,912 | E79: =E80+E85+E89+E97+E102+E106+E110+E115+E122+E131+E140+E144+E148 -> 85,912 | F79: 85,912 | G79: 85,912 | H79: 85,912 | I79: 85,912 | J79: 85,912 | K79: 85,912 | L79: 85,912 | M79: 85,912 | N79: 85,912 | O79: 85,912
A80: 43001 | B80: Licencias y permisos de giros | C80: 46,206 | D80: =SUM(D81:D84) -> 3,851 | E80: =SUM(E81:E84) -> 3,851 | F80: 3,851 | G80: 3,851 | H80: 3,851 | I80: 3,851 | J80: 3,851 | K80: 3,851 | L80: 3,851 | M80: 3,851 | N80: 3,851 | O80: 3,851
A81: 43010 | B81: Licencias, permisos o autorización de giros con venta de bebidas alcohólicas | C81: 30,600 | D81: =$C81/12 -> 2,550 | E81: 2,550 | F81: 2,550 | G81: 2,550 | H81: 2,550 | I81: 2,550 | J81: 2,550 | K81: 2,550 | L81: 2,550 | M81: 2,550 | N81: 2,550 | O81: 2,550
A82: 43011 | B82: Licencias, permisos o autorización de giros con servicios de bebidas alcohólicas | C82: 8,874 | D82: 740 | E82: 740 | F82: 740 | G82: 740 | H82: 740 | I82: 740 | J82: 740 | K82: 740 | L82: 740 | M82: 740 | N82: 740 | O82: 740
A83: 43012 | B83: Licencias, permisos o autorización de otros conceptos distintos a los anteriores giros con bebidas alcohólicas | C83: 6,732 | D83: 561 | E83: 561 | F83: 561 | G83: 561 | H83: 561 | I83: 561 | J83: 561 | K83: 561 | L83: 561 | M83: 561 | N83: 561 | O83: 561
A84: 43013 | B84: Permiso para el funcionamiento de horario extraordinario | C84: 0
A85: 43002 | B85: Licencias y permisos para anuncios | C85: 0 | D85: =SUM(D86:D88) -> 0 | E85: =SUM(E86:E88) -> 0 | F85: 0 | G85: 0 | H85: 0 | I85: 0 | J85: 0 | K85: 0 | L85: 0 | M85: 0 | N85: 0 | O85: 0
A86: 43020 | B86: Licencias y permisos de anuncios permanentes | C86: 0
A87: 43021 | B87: Licencias y permisos de anuncios eventuales | C87: 0
A88: 43022 | B88: Licencias y permisos de anunció distintos a los anteriores | C88: 0
A89: 43003 | B89: Licencias de construcción, reconstrucción, reparación o demolición de obras | C89: 2,448 | D89: =SUM(D90:D96) -> 204 | E89: =SUM(E90:E96) -> 204 | F89: 204 | G89: 204 | H89: 204 | I89: 204 | J89: 204 | K89: 204 | L89: 204 | M89: 204 | N89: 204 | O89: 204
A90: 43030 | B90: Licencias de construcción | C90: 2,448 | D90: =$C90/12 -> 204 | E90: =$C90/12 -> 204 | F90: 204 | G90: 204 | H90: 204 | I90: 204 | J90: 204 | K90: 204 | L90: 204 | M90: 204 | N90: 204 | O90: 204
A91: 43031 | B91: Licencias para demolición | C91: 0
A92: 43032 | B92: Licencias para remodelación | C92: 0
A93: 43033 | B93: Licencias para reconstrucción, reestructuración o adaptación | C93: 0
A94: 43034 | B94: Licencias para ocupación provisional en la vía pública | C94: 0
A95: 4035 | B95: Licencias para movimientos de tierras | C95: 0
A96: 43039 | B96: Licencias similares no previstas en las anteriores | C96: 0
A97: 43004 | B97: Alineamiento, designación de número oficial e inspección | C97: 1,224 | D97: =SUM(D98:D101) -> 102 | E97: =SUM(E98:E101) -> 102 | F97: 102 | G97: 102 | H97: 102 | I97: 102 | J97: 102 | K97: 102 | L97: 102 | M97: 102 | N97: 102 | O97: 102
A98: 43040 | B98: Alineamiento | C98: 0
A99: 43041 | B99: Designación de número oficial | C99: 1,224 | D99: =$C99/12 -> 102 | E99: =$C99/12 -> 102 | F99: 102 | G99: 102 | H99: 102 | I99: 102 | J99: 102 | K99: 102 | L99: 102 | M99: 102 | N99: 102 | O99: 102
A100: 43042 | B100: Inspección de valor sobre inmuebles | C100: 0
A101: 43049 | B101: Otros servicios similares | C101: 0
A102: 43005 | B102: Licencias de cambio de régimen de propiedad y urbanización | C102: 0 | D102: =SUM(D103:D105) -> 0 | E102: =SUM(E103:E105) -> 0 | F102: 0 | G102: 0 | H102: 0 | I102: 0 | J102: 0 | K102: 0 | L102: 0 | M102: 0 | N102: 0 | O102: 0
A103: 43050 | B103: Licencia de cambio de régimen de propiedad | C103: 0
A104: 43051 | B104: Licencia de urbanización | C104: 0
A105: 43052 | B105: Peritaje, dictamen e inspección de carácter extraordinario | C105: 0
A106: 43006 | B106: Servicios por obras | C106: 1,224 | D106: =SUM(D107:D109) -> 102 | E106: =SUM(E107:E109) -> 102 | F106: 102 | G106: 102 | H106: 102 | I106: 102 | J106: 102 | K106: 102 | L106: 102 | M106: 102 | N106: 102 | O106: 102
A107: 43060 | B107: Medición de terrenos | C107: 1,224 | D107: =$C107/12 -> 102 | E107: =$C107/12 -> 102 | F107: 102 | G107: 102 | H107: 102 | I107: 102 | J107: 102 | K107: 102 | L107: 102 | M107: 102 | N107: 102 | O107: 102
A108: 43061 | B108: Autorización para romper pavimento, banquetas o machuelos | C108: 0
A109: 43062 | B109: Autorización para construcciones de infraestructura en la vía pública | C109: 0
A110: 43007 | B110: Servicios de sanidad | C110: 1,418 | D110: =SUM(D111:D114) -> 118 | E110: =SUM(E111:E114) -> 118 | F110: 118 | G110: 118 | H110: 118 | I110: 118 | J110: 118 | K110: 118 | L110: 118 | M110: 118 | N110: 118 | O110: 118
A111: 43070 | B111: Inhumaciones y reinhumaciones | C111: 1,418 | D111: =$C111/12 -> 118 | E111: =$C111/12 -> 118 | F111: 118 | G111: 118 | H111: 118 | I111: 118 | J111: 118 | K111: 118 | L111: 118 | M111: 118 | N111: 118 | O111: 118
A112: 43071 | B112: Exhumaciones | C112: 0
A113: 43072 | B113: Servicio de cremación | C113: 0
A114: 43073 | B114: Traslado de cadáveres fuera del municipio | C114: 0
A115: 43008 | B115: Servicio de limpieza, recolección, traslado, tratamiento y disposición final de residuos | C115: 0 | D115: =SUM(D116:D121) -> 0 | E115: =SUM(E116:E121) -> 0 | F115: 0 | G115: 0 | H115: 0 | I115: 0 | J115: 0 | K115: 0 | L115: 0 | M115: 0 | N115: 0 | O115: 0
A116: 43080 | B116: Recolección y traslado de basura, desechos o desperdicios no peligrosos | C116: 0
A117: 43081 | B117: Recolección y traslado de basura, desechos o desperdicios peligrosos | C117: 0
A118: 43082 | B118: Limpieza de lotes baldíos, jardines, prados, banquetas y similares | C118: 0
A119: 43083 | B119: Servicio exclusivo de camiones de aseo | C119: 0
A120: 43084 | B120: Por utilizar tiraderos y rellenos sanitarios del municipio | C120: 0
A121: 43089 | B121: Otros servicios similares | C121: 0
A122: 43009 | B122: Agua potable y alcantarillado | C122: 675,954 | D122: =SUM(D123:D130) -> 56,330 | E122: =SUM(E123:E130) -> 56,330 | F122: 56,330 | G122: 56,330 | H122: 56,330 | I122: 56,330 | J122: 56,330 | K122: 56,330 | L122: 56,330 | M122: 56,330 | N122: 56,330 | O122: 56,330
A123: 43090 | B123: Servicio doméstico | C123: 273,360 | D123: =$C123/12 -> 22,780 | E123: =$C123/12 -> 22,780 | F123: 22,780 | G123: 22,780 | H123: 22,780 | I123: 22,780 | J123: 22,780 | K123: 22,780 | L123: 22,780 | M123: 22,780 | N123: 22,780 | O123: 22,780
A124: 43091 | B124: Servicio no doméstico | C124: 0
A125: 43092 | B125: Predios baldíos | C125: 0
A126: 43093 | B126: Servicios en localidades | C126: 275,400 | D126: =$C126/12 -> 22,950 | E126: 22,950 | F126: 22,950 | G126: 22,950 | H126: 22,950 | I126: 22,950 | J126: 22,950 | K126: 22,950 | L126: 22,950 | M126: 22,950 | N126: 22,950 | O126: 22,950
A127: 43094 | B127: 20% para el saneamiento de las aguas residuales | C127: 107,508 | D127: 8,959 | E127: 8,959 | F127: 8,959 | G127: 8,959 | H127: 8,959 | I127: 8,959 | J127: 8,959 | K127: 8,959 | L127: 8,959 | M127: 8,959 | N127: 8,959 | O127: 8,959
A128: 43095 | B128: 2% o 3% para la infraestructura básica existente | C128: 16,830 | D128: 1,403 | E128: 1,403 | F128: 1,403 | G128: 1,403 | H128: 1,403 | I128: 1,403 | J128: 1,403 | K128: 1,403 | L128: 1,403 | M128: 1,403 | N128: 1,403 | O128: 1,403
A129: 43096 | B129: Aprovechamiento de la infraestructura básica existente | C129: 0
A130: 43097 | B130: Conexión o reconexión al servicio | C130: 2,856 | D130: =$C130/12 -> 238 | E130: =$C130/12 -> 238 | F130: 238 | G130: 238 | H130: 238 | I130: 238 | J130: 238 | K130: 238 | L130: 238 | M130: 238 | N130: 238 | O130: 238
A131: 43100 | B131: Rastro | C131: 8,303 | D131: =SUM(D132:D139) -> 692 | E131: =SUM(E132:E139) -> 692 | F131: 692 | G131: 692 | H131: 692 | I131: 692 | J131: 692 | K131: 692 | L131: 692 | M131: 692 | N131: 692 | O131: 692
A132: 43110 | B132: Autorización de matanza | C132: 8,303 | D132: =$C132/12 -> 692 | E132: =$C132/12 -> 692 | F132: 692 | G132: 692 | H132: 692 | I132: 692 | J132: 692 | K132: 692 | L132: 692 | M132: 692 | N132: 692 | O132: 692
A133: 43120 | B133: Autorización de salida de animales del rastro para envíos fuera del municipio | C133: 0
A134: 43121 | B134: Autorización de la introducción de ganado al rastro en horas extraordinarias | C134: 0
A135: 43122 | B135: Sello de inspección sanitaria | C135: =SUM(D135:O135) -> 0
A136: 43123 | B136: Acarreo de carnes en camiones del municipio | C136: 0
A137: 43124 | B137: Servicios de matanza en el rastro municipal | C137: 0
A138: 43125 | B138: Venta de productos obtenidos en el rastro | C138: 0
A139: 43190 | B139: Otros servicios prestados por el rastro municipal | C139: 0
A140: 43200 | B140: Registro civil | C140: 183,294 | D140: =SUM(D141:D143) -> 15,275 | E140: =SUM(E141:E143) -> 15,275 | F140: 15,275 | G140: 15,275 | H140: 15,275 | I140: 15,275 | J140: 15,275 | K140: 15,275 | L140: 15,275 | M140: 15,275 | N140: 15,275 | O140: 15,275
A141: 43210 | B141: Servicios en oficina fuera del horario | C141: 182,070 | D141: =$C141/12 -> 15,173 | E141: =$C141/12 -> 15,173 | F141: 15,173 | G141: 15,173 | H141: 15,173 | I141: 15,173 | J141: 15,173 | K141: 15,173 | L141: 15,173 | M141: 15,173 | N141: 15,173 | O141: 15,173
A142: 43211 | B142: Servicios a domicilio | C142: 0
A143: 43212 | B143: Anotaciones e inserciones en actas | C143: 1,224 | D143: =$C143/12 -> 102 | E143: =$C143/12 -> 102 | F143: 102 | G143: 102 | H143: 102 | I143: 102 | J143: 102 | K143: 102 | L143: 102 | M143: 102 | N143: 102 | O143: 102
A144: 43300 | B144: Certificaciones | C144: 87,414 | D144: =SUM(D145:D147) -> 7,285 | E144: =SUM(E145:E147) -> 7,285 | F144: 7,285 | G144: 7,285 | H144: 7,285 | I144: 7,285 | J144: 7,285 | K144: 7,285 | L144: 7,285 | M144: 7,285 | N144: 7,285 | O144: 7,285
A145: 43310 | B145: Expedición de certificados, certificaciones, constancias o copias certificadas | C145: 47,328 | D145: =$C145/12 -> 3,944 | E145: 3,944 | F145: 3,944 | G145: 3,944 | H145: 3,944 | I145: 3,944 | J145: 3,944 | K145: 3,944 | L145: 3,944 | M145: 3,944 | N145: 3,944 | O145: 3,944
A146: 43311 | B146: Extractos de actas | C146: 40,086 | D146: 3,341 | E146: 3,341 | F146: 3,341 | G146: 3,341 | H146: 3,341 | I146: 3,341 | J146: 3,341 | K146: 3,341 | L146: 3,341 | M146: 3,341 | N146: 3,341 | O146: 3,341
A147: 43312 | B147: Dictámenes de trazo, uso y destino | C147: 0
A148: 43400 | B148: Servicios de catastro | C148: 23,460 | D148: =SUM(D149:D154) -> 1,955 | E148: =SUM(E149:E154) -> 1,955 | F148: 1,955 | G148: 1,955 | H148: 1,955 | I148: 1,955 | J148: 1,955 | K148: 1,955 | L148: 1,955 | M148: 1,955 | N148: 1,955 | O148: 1,955
A149: 43410 | B149: Copias de planos | C149: 0
A150: 43420 | B150: Certificaciones catastrales | C150: 23,460 | D150: =$C150/12 -> 1,955 | E150: =$C150/12 -> 1,955 | F150: 1,955 | G150: 1,955 | H150: 1,955 | I150: 1,955 | J150: 1,955 | K150: 1,955 | L150: 1,955 | M150: 1,955 | N150: 1,955 | O150: 1,955
A151: 43421 | B151: Informes catastrales | C151: 0
A152: 43422 | B152: Deslindes catastrales | C152: 0
A153: 43423 | B153: Dictámenes catastrales | C153: 0
A154: 43424 | B154: Revisión y autorización de avalúos | C154: 0
A155: 44 | B155: OTROS DERECHOS | C155: 2,448 | D155: =D156 -> 204 | E155: 204 | F155: 204 | G155: 204 | H155: 204 | I155: 204 | J155: 204 | K155: 204 | L155: 204 | M155: 204 | N155: 204 | O155: 204
A156: 44100 | B156: Derechos no especificados | C156: 2,448 | D156: =SUM(D157:D161) -> 204 | E156: =SUM(E157:E161) -> 204 | F156: 204 | G156: 204 | H156: 204 | I156: 204 | J156: 204 | K156: 204 | L156: 204 | M156: 204 | N156: 204 | O156: 204
A157: 44120 | B157: Servicios prestados en horas hábiles | C157: 0
A158: 44130 | B158: Servicios prestados en horas inhábiles | C158: 0
A159: 44140 | B159: Solicitudes de información | C159: 2,448 | D159: =$C159/12 -> 204 | E159: =$C159/12 -> 204 | F159: 204 | G159: 204 | H159: 204 | I159: 204 | J159: 204 | K159: 204 | L159: 204 | M159: 204 | N159: 204 | O159: 204
A160: 44150 | B160: Servicios médicos | C160: 0
A161: 44190 | B161: Otros servicios no especificados | C161: 0
A162: 45 | B162: ACCESORIOS DE LOS DERECHOS | C162: 12,240 | D162: =D163+D165+D167+D169+D173 -> 1,020 | E162: =E163+E165+E167+E169+E173 -> 1,020 | F162: 1,020 | G162: 1,020 | H162: 1,020 | I162: 1,020 | J162: 1,020 | K162: 1,020 | L162: 1,020 | M162: 1,020 | N162: 1,020 | O162: 1,020
A163: 45100 | B163: Recargos | C163: 9,792 | D163: =SUM(D164) -> 816 | E163: 816 | F163: 816 | G163: 816 | H163: 816 | I163: 816 | J163: 816 | K163: 816 | L163: 816 | M163: 816 | N163: 816 | O163: 816
A164: 45110 | B164: Falta de pago | C164: 9,792 | D164: =$C164/12 -> 816 | E164: =$C164/12 -> 816 | F164: 816 | G164: 816 | H164: 816 | I164: 816 | J164: 816 | K164: 816 | L164: 816 | M164: 816 | N164: 816 | O164: 816
A165: 45200 | B165: Multas | C165: 0 | D165: =SUM(D166) -> 0 | E165: 0 | F165: 0 | G165: 0 | H165: 0 | I165: 0 | J165: 0 | K165: 0 | L165: 0 | M165: 0 | N165: 0 | O165: 0
A166: 45210 | B166: Infracciones | C166: 0
A167: 45300 | B167: Intereses | C167: 0 | D167: =SUM(D168:D168) -> 0 | E167: 0 | F167: 0 | G167: 0 | H167: 0 | I167: 0 | J167: 0 | K167: 0 | L167: 0 | M167: 0 | N167: 0 | O167: 0
A168: 45310 | B168: Plazo de créditos fiscales | C168: 0
A169: 45400 | B169: Gastos de ejecución y de embargo | C169: 2,448 | D169: =SUM(D170:D172) -> 204 | E169: =SUM(E170:E172) -> 204 | F169: 204 | G169: 204 | H169: 204 | I169: 204 | J169: 204 | K169: 204 | L169: 204 | M169: 204 | N169: 204 | O169: 204
A170: 45410 | B170: Gastos de notificación | C170: 2,448 | D170: =$C170/12 -> 204 | E170: =$C170/12 -> 204 | F170: 204 | G170: 204 | H170: 204 | I170: 204 | J170: 204 | K170: 204 | L170: 204 | M170: 204 | N170: 204 | O170: 204
A171: 45420 | B171: Gastos de embargo | C171: 0
A172: 45430 | B172: Otros gastos del procedimiento | C172: 0
A173: 45990 | B173: Otros no especificados | C173: 0 | D173: =SUM(D174) -> 0 | E173: 0 | F173: 0 | G173: 0 | H173: 0 | I173: 0 | J173: 0 | K173: 0 | L173: 0 | M173: 0 | N173: 0 | O173: 0
A174: 45999 | B174: Otros accesorios | C174: 0
A175: 5 | B175: PRODUCTOS | C175: 11,016 | D175: =D176+D198+D201 -> 918 | E175: =E176+E198+E201 -> 918 | F175: 918 | G175: 918 | H175: 918 | I175: 918 | J175: 918 | K175: 918 | L175: 918 | M175: 918 | N175: 918 | O175: 918
A176: 51 | B176: PRODUCTOS DE TIPO CORRIENTE | C176: 11,016 | D176: =D177+D183+D188 -> 918 | E176: =E177+E183+E188 -> 918 | F176: 918 | G176: 918 | H176: 918 | I176: 918 | J176: 918 | K176: 918 | L176: 918 | M176: 918 | N176: 918 | O176: 918
A177: 51100 | B177: Uso, goce, aprovechamiento o explotación de bienes de dominio privado | C177: 0 | D177: =SUM(D178:D182) -> 0 | E177: =SUM(E178:E182) -> 0 | F177: 0 | G177: 0 | H177: 0 | I177: 0 | J177: 0 | K177: 0 | L177: 0 | M177: 0 | N177: 0 | O177: 0
A178: 51120 | B178: Arrendamiento o concesión de locales en mercados | C178: 0
A179: 51130 | B179: Arrendamiento o concesión de kioscos en plazas y jardines | C179: 0
A180: 51140 | B180: Arrendamiento o concesión de escusados y baños | C180: 0
A181: 51150 | B181: Arrendamiento de inmuebles para anuncios | C181: 0
A182: 51190 | B182: Otros arrendamientos o concesiones de bienes | C182: 0
A183: 51200 | B183: Cementerios de dominio privado | C183: 6,120 | D183: =SUM(D184:D187) -> 510 | E183: =SUM(E184:E187) -> 510 | F183: 510 | G183: 510 | H183: 510 | I183: 510 | J183: 510 | K183: 510 | L183: 510 | M183: 510 | N183: 510 | O183: 510
A184: 51210 | B184: Lotes uso perpetuidad y temporal | C184: 6,120 | D184: =$C184/12 -> 510 | E184: =$C184/12 -> 510 | F184: 510 | G184: 510 | H184: 510 | I184: 510 | J184: 510 | K184: 510 | L184: 510 | M184: 510 | N184: 510 | O184: 510
A185: 51220 | B185: Mantenimiento | C185: 0
A186: 51230 | B186: Venta de gavetas a perpetuidad | C186: 0
A187: 51290 | B187: Otros | C187: 0
A188: 51990 | B188: Productos diversos | C188: 4,896 | D188: =SUM(D189:D197) -> 408 | E188: =SUM(E189:E197) -> 408 | F188: 408 | G188: 408 | H188: 408 | I188: 408 | J188: 408 | K188: 408 | L188: 408 | M188: 408 | N188: 408 | O188: 408
A189: 51991 | B189: Formas y ediciones impresas | C189: 4,896 | D189: =$C189/12 -> 408 | E189: =$C189/12 -> 408 | F189: 408 | G189: 408 | H189: 408 | I189: 408 | J189: 408 | K189: 408 | L189: 408 | M189: 408 | N189: 408 | O189: 408
A190: 51992 | B190: Calcomanías, credenciales, placas, escudos y otros medios de identificación | C190: 0
A191: 51993 | B191: Depósito de vehículos | C191: 0
A192: 51994 | B192: Explotación de bienes municipales de dominio privado | C192: 0
A193: 51995 | B193: Productos o utilidades de talleres y centros de trabajo | C193: 0
A194: 51996 | B194: Venta de esquilmos, productos de aparcería, desechos y basuras | C194: 0
A195: 51997 | B195: Venta de productos procedentes de viveros y jardines | C195: 0
A196: 51998 | B196: Por proporcionar información en documentos o elementos técnicos | C196: 0
A197: 51999 | B197: Otros productos no especificados | C197: 0
A198: 52 | B198: PRODUCTOS DE CAPITAL | C198: 0 | D198: =D199 -> 0 | E198: 0 | F198: 0 | G198: 0 | H198: 0 | I198: 0 | J198: 0 | K198: 0 | L198: 0 | M198: 0 | N198: 0 | O198: 0
A199: 52100 | B199: Productos de capital | C199: =SUM(D199:O199) -> 0 | D199: =SUM(D200:D200) -> 0 | E199: 0 | F199: 0 | G199: 0 | H199: 0 | I199: 0 | J199: 0 | K199: 0 | L199: 0 | M199: 0 | N199: 0 | O199: 0
A200: 52120 | B200: Otros no especificados | C200: 0
A201: 53 | B201: ACCESORIOS DE LOS PRODUCTOS | C201: 0 | D201: =D202 -> 0 | E201: 0 | F201: 0 | G201: 0 | H201: 0 | I201: 0 | J201: 0 | K201: 0 | L201: 0 | M201: 0 | N201: 0 | O201: 0
... 88 more rows

Sheet PRESUP. EGRESOS BASE MENSUAL
A1: Presupuesto de Egresos por Clasificación por Objeto del Gasto en Base Mensual - 2016
A2: ='Objetivos PMD'!$B$3 -> Entidad Pública: Municipio de Jilotlán de los Dolores, Jalisco
A3: COG | B3: DESCRIPCIÓN | C3: ANUAL | D3: ENERO | E3: FEBRERO | F3: MARZO | G3: ABRIL | H3: MAYO | I3: JUNIO | J3: JULIO | K3: AGOSTO | L3: SEPTIEMBRE | M3: OCTUBRE | N3: NOVIEMBRE | O3: DICIEMBRE
A5: 1000 | B5: SERVICIOS PERSONALES | C5: =SUM(D5:O5) -> 14,472,924 | D5: =D6+D11+D16+D25+D30+D37+D39 -> 1,206,077 | E5: =E6+E11+E16+E25+E30+E37+E39 -> 1,206,077 | F5: 1,206,077 | G5: 1,206,077 | H5: 1,206,077 | I5: 1,206,077 | J5: 1,206,077 | K5: 1,206,077 | L5: 1,206,077 | M5: 1,206,077 | N5: 1,206,077 | O5: 1,206,077
A6: 1100 | B6: REMUNERACIONES AL PERSONAL DE CARÁCTER PERMANENTE | C6: =SUM(D6:O6) -> 12,270,428 | D6: =SUM(D7:D10) -> 1,022,536 | E6: =SUM(E7:E10) -> 1,022,536 | F6: 1,022,536 | G6: 1,022,536 | H6: 1,022,536 | I6: 1,022,536 | J6: 1,022,536 | K6: 1,022,536 | L6: 1,022,536 | M6: 1,022,536 | N6: 1,022,536 | O6: 1,022,536 | P6: 1
A7: 111 | B7: Dietas | C7: 1,869,207 | D7: =$C7/12 -> 155,767 | E7: =$C7/12 -> 155,767 | F7: 155,767 | G7: 155,767 | H7: 155,767 | I7: 155,767 | J7: 155,767 | K7: 155,767 | L7: 155,767 | M7: 155,767 | N7: 155,767 | O7: 155,767 | P7: 2
A8: 112 | B8: Haberes | P8: 3
